Workbook

Sheet Facility Information
B2: Oil and Gas Emissions Spreadsheet with Impacts Analysis
B3: Revised 12/08/2011
B4: General Notes
B5: *** Before beginning, make sure to enable macros, so that this spreadsheet will run properly. *** See the links below for more information on creating a trusted location and enabling macros for this spreadsheet.
B6: Enable Macro Link
B7: Trusted Location Link
B8: See comments in individual cells and other written notes. Cells with red corners contain comments; place cursor anywhere in a cell which has a red corner, to view comment. These were added to guide you through using this spreadsheet and make it as easy as possible to use.
B9: This spreadsheet should be used as follows: (1) Enter information into this Facility Information spreadsheet tab, (2) after running the macro (which is explained below), fill out the emission calculation tabs, (3) populate the Emissions Summary table (you press a button on the Emissions Summary tab and the macro will populate the table with the values from the emission calculation tabs), and (4) go through the impacts review tabs (if applicable). This basically means estimate what each of the individual source emissions are, then summarize them in a table, then evaluate the impact of the emissions (if impacts review is applicable).
B10: If you want to use any of the impacts review tabs, you will need to have answered "Yes" to the initial question of "Are you using this to meet the new Barnett Shale area rule requirements?". You can press the "Reset" button at the bottom of this tab to have the question pop up again.
B11: Yellow cells require information to be entered. Red cells contain calculated values.
B12: Worst case emissions must be estimated on both an hourly and annual basis for air permitting purposes.
B13: Hourly emissions must be based on worst case maximum parameters realistically expected to occur over the course of any one hour. As an example, where ambient temperature is used as a parameter to estimate hourly emissions, the maximum temperature from the hottest day of the year must be used.
B14: Annual emissions can be based on average parameters. As an example, where ambient temperature is used as a parameter to estimate annual emissions, the average ambient temperature may be used.
B15: This difference between hourly and annual emissions could potentially mean that separate calculations or program runs will have to be done to estimate hourly and annual emission rates.
B16: Planned Maintenance, Start-up, and Shutdown (MSS) versus Alternate Operating Scenarios: Planned MSS emissions are not required to be registered for oil and gas sites until January 5, 2014. Before this date, it is voluntary to factor in planned MSS emissions. Alternate operating scenario emissions should be factored in now. Although historically alternate operating scenarios have sometimes been treated as planned MSS, it is actually different and should be addressed now to ensure that during these periods and continuously, the applicable emission limits are not exceeded. It is also encouraged that planned MSS emissions are addressed now because after the January 5, 2014 deadline, all emissions must continuously be shown not to exceed the applicable emission limits, even with planned MSS emissions factored in.
B17: What is Different About Estimating Emissions for the Barnett Shale Area Rule Requirements?
B18: There are level limits (or caps) for the different levels of authorization, which are: PBR Level 1, PBR Level 2, and Standard Permit. The level limits are emission limits of the following air pollutants: Total VOC, Total crude oil or condensate VOC, Total natural gas VOC, benzene, hydrogen sulfide (H2S), sulfur dioxide (SO2), nitrogen oxides (NOx), carbon monoxide (CO), and particulate matter (PM10 and PM2.5). There are different level limits for hourly and annual emissions and within hourly emissions there are different level limits for steady state emissions versus periodic emissions.
B19: There is an impacts review for both the Permit by Rule (PBR) and Standard Permit for the following air pollutants: benzene, H2S, SO2, and NOx.
B20: VOC emissions need to be separated into (1) Crude Oil or Condensate VOC and (2) Natural Gas VOC.
B21: Hourly and annual emissions need to be estimated. There are potentially three hourly emission types that need to be estimated (1) steady state hourly, (2) low pressure periodic, and (3) high pressure periodic. These are described in detail on the Emissions Summary tab.
B22: Benzene emissions need to be speciated for all sources.
B24: Oil and Gas Site General Information
B26: Administrative Information
B27: Company Name | C27: Company Name
B28: Facility/Well Name | C28: Site Name
B29: Field Name
B30: Nearest City/Town
B31: API Number/SIC Code
B32: Latitude/Longitude
B33: County
B34: Are you using a Form PI-7, PI-7-CERT, APD-CERT, PI-7 and APD-CERT, or are you using ePermits?
B35: Customer Number, CNxxxxxxxxx (if known)
B36: Regulated Entity Number, RNxxxxxxxxx (if known)
B38: Technical Information
B39: Natural Gas Site Throughput (MMSCF/day):
B40: Oil/Condensate Site Throughput (bbl/day):
B41: Produced Water Site Throughput (bbl/day):
B42: Are there any sour gas streams at this site?
B43: Is this site currently operational/producing?
B44: What is the date of the site start of construction or the date that the project changes were implemented (whichever is applicable to this project, anticipated date if in the future)?
B45: Has this site been registered before?
B47: Equipment/Processes at Site
B48: ***Before entering any numbers into the Equipment/Processes section of the table below, please make sure to review all of the comments in the cells of the table. These should make it clear what numbers need to be entered and where they need to be entered.***
B49: Equipment/Process Types | C49: How many for this project? | D49: How many for this registration?
B50: Fugitives
B51: IC Engines
B52: Turbines
B53: Diesel Engines
B54: Heaters-Boilers
B55: Oil / Condensate Tanks
B56: Produced Water Tanks
B57: Miscellaneous Tanks
B58: Loading Jobs
B59: Glycol Units
B60: Amine Units
B61: Vapor Recovery Units
B62: Flares-Vapor Combustors
B63: Thermal Oxidizers
B64: MSS
B65: Other
B67: When you are finished entering information on this tab, press the "Run" button below. When it is pressed, the spreadsheet tabs needed will be added and the "Emissions Summary" tab will also be added with the number of rows corresponding to the number of emission points in this registration.
B68: Before pressing "Run", please make sure to review all of the comments in the cells of the table above. These should make it clear what numbers need to be entered and where they need to be entered.
B69: The spreadsheet can be reset if needed by pressing the "Reset" button below. If the "Reset" button is pressed, everything will be cleared and you can start over (the added sheets will disappear along with any data entered into the sheets). When the "Reset" button is pressed and there is anything to clear, a question will pop up asking "Delete all macro created worksheets?". Then if you click "Yes", the question will pop back up asking "Are you using this to meet the new Barnett Shale area requirements?".
B70: If the "Run" button is pressed a second time, everything will be cleared and you can start over (the added sheets will disappear along with any data entered into the sheets). When the "Run" button is pressed a second time, a question will pop up asking "Delete all macro created worksheets?". The question will not pop back up asking "Are you using this to meet the new Barnett Shale area requirements?".
B71: Do not press "Run" again or "Reset", unless you intend to clear all of the added sheets (and any data entered into the sheets). This means that it is important to make sure the right numbers of each equipment/process type are entered. If it is possible that an extra piece of equipment could be included, include it because it is better to have too many entered than not enough.

Sheet Site Wide Gas & Liquid Analyses
B1: ='Facility Information'!C27 -> Company Name
B2: ='Facility Information'!C28 -> Site Name
B3: Gas and Liquid Analyses
B4: A) Enter information into the yellow boxes.
B5: B) The purpose of this tab is to extract information from a lab analysis that will be used in emission calculations. Unlike the other other tabs which calculate emissions, nothing from this tab gets pulled to the Emissions Summary table. The big pieces of information needed for emissions estimates are the VOC, benzene, and H2S weight percents. Sampling of gas and liquid streams from appropriate process sampling points is required in order to determine composition or other properties needed to estimate emissions such as heat content, specific gravity, and vapor pressure. It is essential that stream lab analyses/reports include a measurement of H2S, individual HAPs, and at least all those hydrocarbons up to at least 10 carbon atoms per molecule (C10+).
B6: C) There are two boxes on the left, for gas and liquid analyses, which take component weight percent inputs and there are two boxes on the right, for gas and liquid analyses, which take component mole percent inputs. You can either fill out the weight percent box OR the mole percent box, depending on what informaton you have available to you.
B8: The boxes are set up in the following arrangement: | G8: Gas Analysis Wt% Inputs | I8: Gas Analysis Mol% Inputs
G9: Liquid Analysis Wt% Inputs | I9: Liquid Analysis Mol% Inputs
B10: D) If weight percents are provided on the lab report, use the boxes on the left. If only mole percents are provided on the lab report, use the boxes on the right.
B11: E) Make sure to select whether you are inputting weight percents or mole percents from the pull down menus below.
B12: F) If you are using the weight percent boxes (left two), in addition to the component weight percents, you need to enter the gas molecular weight (molecular weight of the total sample) and the gas and liquid H2S content in parts per million by volume (H2S ppmv). This will allow for the calcultion of the gas specific gravity and the long tons of sulfur per day in the gas, and the determination of sweet versus sour gas.
B13: G) If you are using the mole percent boxes (right two), in addition to the component mole percents, you need to enter a real value, specific to this sample, for the molecular weight of the deacnes plus (C10+) fraction. You may use the default values listed below for the moleclar weights of the other hexanes (C6), other heptanes (C7), other ocatnes (C8), and nonanes (C9) fractions, unless you have a more accurate number. If you enter number other than the default, you need to explain where the number came from and why it is appropriate to use.
B14: H) What is expected to be inlcuded on these tables is the the inlet gas and liquid streams (the liquid would most likely be sampled from a separator if there is separation at the site). These tables can also be used for any sampled gas and liquid streams as needed. If needed, make a copy of this tab.
B15: I) Use the box provided below for entering any notes necessary.
B17: For the gas sample, I am inputting (pick from list): | E17: Select whether weight percents or mole percents are being entered for this gas sample.
F18: Then fill out this table | G18: OR | H18: fill out this table.
B19: Gas Analysis - Use if the Inputs are Weight Percents | H19: Gas Analysis - Use if the Inputs are Mole Percents
B20: Analysis Identifier/Name | H20: Analysis Identifier/Name
B21: What site is the sample from? | H21: Where was the sample taken?
B22: If the sample is from a representaive site, explain how this sampled stream is representative of the similar stream at this site (use the notes box provided below if more space is needed). | H22: If the sample is from a representaive site, explain how this sampled stream is representative of the similar stream at this site (use the notes box provided below if more space is needed).
B23: Where in the process was the sample taken? | H23: Where in the process was the sample taken?
B24: What is the temperature and pressure of the sample (include units)? | H24: What is the temperature and pressure of the sample (include units)?
B25: Who analyzed the sample? | H25: Who analyzed the sample?
B26: Date of sample: | H26: Date of sample:
B27: Component | C27: weight % | H27: Component | I27: mole % | J27: Molecular Weight (grams/mole, lb/lb-mol) | K27: grams per 100 moles of gas | L27: weight %
B28: hydrogen | H28: hydrogen | J28: 2.01588 | K28: =J28*I28 -> 0 | L28: =100*K28/$K$47 -> 
B29: helium | H29: helium | J29: 4.0026 | K29: =J29*I29 -> 0 | L29: =100*K29/$K$47 -> 
B30: nitrogen | H30: nitrogen | J30: 28.0134 | K30: 0
B31: CO2 | H31: CO2 | J31: 44.0095 | K31: 0
B32: H2S | H32: H2S | J32: 34.08188 | K32: 0
B33: methane (C1) | H33: methane (C1) | J33: 16.04246 | K33: 0
B34: ethane (C2) | H34: ethane (C2) | J34: 30.06904 | K34: 0
B35: propane (C3) | H35: propane (C3) | J35: 44.09562 | K35: 0
B36: butanes (C4) | H36: butanes (C4) | J36: 58.1222 | K36: 0
B37: pentanes (C5) | H37: pentanes (C5) | J37: 72.14878 | K37: 0
B38: benzene | H38: benzene | J38: 78.11 | K38: 0
B39: other hexanes (C6) | H39: other hexanes (C6) | J39: 86.18 | K39: 0
B40: toluene | H40: toluene | J40: 92.14 | K40: 0
B41: other heptanes (C7) | H41: other heptanes (C7) | J41: 100.2 | K41: 0
B42: ethylbenzene | H42: ethylbenzene | J42: 106.17 | K42: 0
B43: xylenes (o, m, p) | H43: xylenes (o, m, p) | J43: 106.17 | K43: 0
B44: other octanes (C8) | H44: other octanes (C8) | J44: 114.23 | K44: 0
B45: nonanes (C9) | H45: nonanes (C9) | J45: 128.26 | K45: 0
B46: decanes plus (C10+) | H46: decanes plus (C10+) | K46: 0
B47: Totals: | C47: =SUM(C28:C46) -> 0 | H47: Totals: | I47: =SUM(I28:I46) -> 0 | J47: =((I28/100)*J28)+((I29/100)*J29)+((I30/100)*J30)+((I31/100)*J31)+((I32/100)*J32)+((I33/100)*J33)+((I34/100)*J34)+((I35/100)*J35)+((I36/100)*J36)+((I37/100)*J37)+((I38/100)*J38)+((I39/100)*J39)+((I40/100)*J40)+((I41/100)*J41)+((I42/100)*J42)+((I43/100)*J43)+((I44/100)*J44)+((I45/100)*J45)+((I46/100)*J46) -> 0 | K47: =SUM(K28:K46) -> 0 | L47: =SUM(L28:L46) -> 
B48: VOC (Non-methane, Non-ethane hydrocarbons) | H48: VOC (Non-methane, Non-ethane hydrocarbons)
B49: VOC content of total sample | H49: VOC content of total sample
B50: VOC weight% = | C50: =C35+C36+C37+C38+C39+C40+C41+C42+C43+C44+C45+C46 -> 0 | H50: VOC weight% = | I50: =L35+L36+L37+L38+L39+L40+L41+L42+L43+L44+L45+L46 -> 
B51: VOC weight fraction = | C51: =C50/100 -> 0 | H51: VOC weight fraction = | I51: =I50/100 -> 
B53: VOC content of hydrocarbon fraction only | H53: VOC content of hydrocarbon fraction only
B54: VOC weight% = | C54: =100*(C35+C36+C37+C38+C39+C40+C41+C42+C43+C44+C45+C46)/(C33+C34+C35+C36+C37+C38+C39+C40+C41+C42+C43+C44+C45+C46) ->  | H54: VOC weight% = | I54: =100*(L35+L36+L37+L38+L39+L40+L41+L42+L43+L44+L45+L46)/(L33+L34+L35+L36+L37+L38+L39+L40+L41+L42+L43+L44+L45+L46) -> 
B55: VOC weight fraction = | C55: =C54/100 ->  | H55: VOC weight fraction = | I55: =I54/100 -> 
B57: Hydrogen Sulfide | E57: Constants: | H57: Hydrogen Sulfide | K57: Constants:
B58: H2S weight% = | C58: =C32 -> 0 | E58: 453.59237 | F58: mol/lb-mol | H58: H2S weight% = | I58: =L32 ->  | K58: 453.59237 | L58: mol/lb-mol
B59: H2S weight fraction = | C59: =C58/100 -> 0 | E59: 0.06479891 | F59: grams/grain | H59: H2S weight fraction = | I59: =I58/100 ->  | K59: 0.06479891 | L59: grams/grain
B60: H2S ppmV = | E60: =10.73159*(459.67+68)/14.69 -> 385.4825116 | F60: scf/lb-mol | H60: H2S ppmV = | I60: =(I32/100)/0.000001 -> 0 | K60: =10.73159*(459.67+68)/14.69 -> 385.4825116 | L60: scf/lb-mol
B61: H2S ppmWT= | C61: =(C32/100)/0.000001 -> 0 | E61: 34.08188 | F61: g/mol, lb/lb-mol | H61: H2S ppmWT= | I61: =(L32/100)/0.000001 -> 
B62: H2S grains/100 SCF = | C62: =C60/E60*E58*E61/E59/10000 -> 0 | F62: H2S mw | H62: H2S grains/100 SCF = | I62: =I32/K60*K58*J32/K59 -> 0
C63: =IF(C60>=24,"SOUR GAS","SWEET GAS") -> SWEET GAS | I63: =IF(I60>=24,"SOUR GAS","SWEET GAS") -> SWEET GAS
B65: Benzene | H65: Benzene
B66: Benzene content of total sample | H66: Benzene content of total sample
B67: Benzene weight% = | C67: =C38 -> 0 | H67: Benzene weight% = | I67: =L38 -> 
B68: Benzene weight fraction = | C68: =C67/100 -> 0 | H68: Benzene weight fraction = | I68: =I67/100 -> 
B70: Benzene content of hydrocarbon fraction only | H70: Benzene content of hydrocarbon fraction only
B71: Benzene weight% = | C71: =100*(C38)/(C33+C34+C35+C36+C36+C37+C38+C39+C40+C41++C42+C43+C44+C45+C46) ->  | H71: Benzene weight% = | I71: =100*(L38)/(L33+L34+L35+L36+L37+L38+L39+L40+L41+L42+L43+L44+L45+L46) -> 
B72: Benzene weight fraction = | C72: =C71/100 ->  | H72: Benzene weight fraction = | I72: =I71/100 -> 
E74: Constants: | K74: Constants:
B75: Gas Molecular Weight = | E75: 28.97 | F75: air mw | H75: Gas Molecular Weight = | I75: =K47/100 -> 0 | K75: 28.97 | L75: air mw
B76: Gas Specific Gravity = | C76: =C75/E75 -> 0 | E76: =10.73159*(459.67+68)/14.69 -> 385.4825116 | F76: scf/lb-mol | H76: Gas Specific Gravity = | I76: =I75/K75 -> 0 | K76: =10.73159*(459.67+68)/14.69 -> 385.4825116 | L76: scf/lb-mol
B78: Gas Throughput (MMscf/day)= | C78: ='Facility Information'!C39 -> 0 | H78: Gas Throughput (MMscf/day)= | I78: ='Facility Information'!C39 -> 0
B80: Long Tons Sulfur Compounds per Day = | C80: =C78*1000000*C75*C58/(2240*E76*100) -> 0 | H80: Long Tons Sulfur Compounds per Day = | I80: =I78*1000000*I75*I58/(2240*K76*100) -> 
B83: For the liquid sample, I am inputting (pick from list): | E83: Select whether weight percents or mole percents are being entered for this liquid sample.
F84: Then fill out this table | G84: OR | H84: fill out this table.
B85: Liquid Analysis - Use if the Inputs are Weight Percents | H85: Liquid Analysis - Use if the Inputs are Mole Percents
B86: Analysis Identifier/Name | H86: Analysis Identifier/Name
B87: What site is the sample from? | H87: What site is the sample from?
B88: If the sample is from a representaive site, explain how this sampled stream is representative of the similar stream at this site (use the notes box provided below if more space is needed). | H88: If the sample is from a representaive site, explain how this sampled stream is representative of the similar stream at this site (use the notes box provided below if more space is needed).
B89: Where in the process was the sample taken? | H89: Where in the process was the sample taken?
B90: What is the temperature and pressure of the sample (include units)? | H90: What is the temperature and pressure of the sample (include units)?
B91: Who analyzed the sample? | H91: Who analyzed the sample?
B92: Date of sample: | H92: Date of sample:
B93: Component | C93: weight % | H93: Component | I93: mole % | J93: Molecular Weight (grams/mole, lb/lb-mol) | K93: grams per 100 moles of gas | L93: weight %
B94: hydrogen | H94: hydrogen | J94: 2.01588 | K94: =J94*I94 -> 0 | L94: =100*K94/$K$113 -> 
B95: helium | H95: helium | J95: 4.0026 | K95: =J95*I95 -> 0 | L95: =100*K95/$K$113 -> 
B96: nitrogen | H96: nitrogen | J96: 28.0134 | K96: 0
B97: CO2 | H97: CO2 | J97: 44.0095 | K97: 0
B98: H2S | H98: H2S | J98: 34.08188 | K98: 0
B99: methane (C1) | H99: methane (C1) | J99: 16.04246 | K99: 0
B100: ethane (C2) | H100: ethane (C2) | J100: 30.06904 | K100: 0
B101: propane (C3) | H101: propane (C3) | J101: 44.09562 | K101: 0
B102: butanes (C4) | H102: butanes (C4) | J102: 58.1222 | K102: 0
B103: pentanes (C5) | H103: pentanes (C5) | J103: 72.14878 | K103: 0
B104: benzene | H104: benzene | J104: 78.11 | K104: 0
B105: other hexanes (C6) | H105: other hexanes (C6) | J105: 86.18 | K105: 0
B106: toluene | H106: toluene | J106: 92.14 | K106: 0
B107: other heptanes (C7) | H107: other heptanes (C7) | J107: 100.2 | K107: 0
B108: ethylbenzene | H108: ethylbenzene | J108: 106.17 | K108: 0
B109: xylenes (o, m, p) | H109: xylenes (o, m, p) | J109: 106.17 | K109: 0
B110: other octanes (C8) | H110: other octanes (C8) | J110: 114.23 | K110: 0
B111: nonanes (C9) | H111: nonanes (C9) | J111: 128.26 | K111: 0
B112: decanes plus (C10+) | H112: decanes plus (C10+) | K112: =J112*I112 -> 0
B113: Totals: | C113: =SUM(C94:C112) -> 0 | H113: Totals: | I113: =SUM(I94:I112) -> 0 | J113: =((I94/100)*J94)+((I95/100)*J95)+((I96/100)*J96)+((I97/100)*J97)+((I98/100)*J98)+((I99/100)*J99)+((I100/100)*J100)+((I101/100)*J101)+((I102/100)*J102)+((I103/100)*J103)+((I104/100)*J104)+((I105/100)*J105)+((I106/100)*J106)+((I107/100)*J107)+((I108/100)*J108)+((I109/100)*J109)+((I110/100)*J110)+((I111/100)*J111)+((I112/100)*J112) -> 0 | K113: =SUM(K94:K112) -> 0 | L113: =SUM(L94:L112) -> 
B114: VOC (Non-methane, Non-ethane hydrocarbons) | H114: VOC (Non-methane, Non-ethane hydrocarbons)
B115: VOC content of total sample | H115: VOC content of total sample
B116: VOC weight% = | C116: =(C101+C102+C103+C104+C105+C106+C107+C108+C109+C110+C111+C112) -> 0 | H116: VOC weight% = | I116: =(L101+L102+L103+L104+L105+L106+L107+L108+L109+L110+L111+L112) -> 
B117: VOC weight fraction = | C117: =C116/100 -> 0 | H117: VOC weight fraction = | I117: =I116/100 -> 
B119: VOC content of hydrocarbon fraction only | H119: VOC content of hydrocarbon fraction only
B120: VOC weight% = | C120: =100*(C101+C102+C103+C104+C105+C106+C107+C108+C109+C110+C111+C112)/(C99+C100+C101+C102+C103+C104+C105+C106+C107+C108+C109+C110+C111+C112) ->  | H120: VOC weight% = | I120: =100*(L101+L102+L103+L104+L105+L106+L107+L108+L109+L110+L111+L112)/(L99+L100+L101+L102+L103+L104+L105+L106+L107+L108+L109+L110+L111+L112) -> 
B121: VOC weight fraction = | C121: =C120/100 ->  | H121: VOC weight fraction = | I121: =I120/100 -> 
B123: Hydrogen Sulfide | H123: Hydrogen Sulfide
B124: H2S weight% = | C124: =C98 -> 0 | H124: H2S weight% = | I124: =L98 -> 
B125: H2S weight fraction = | C125: =C124/100 -> 0 | H125: H2S weight fraction = | I125: =I124/100 -> 
B126: H2S ppmV = | H126: H2S ppmV = | I126: =(I98/100)/0.000001 -> 0
B127: H2S ppmWT= | C127: =(C98/100)/0.000001 -> 0 | H127: H2S ppmWT= | I127: =(L98/100)/0.000001 -> 
B129: Benzene | H129: Benzene
B130: Benzene content of total sample | H130: Benzene content of total sample
B131: Benzene weight% = | C131: =C104 -> 0 | H131: Benzene weight% = | I131: =L104 -> 
B132: Benzene weight fraction = | C132: =C131/100 -> 0 | H132: Benzene weight fraction = | I132: =I131/100 -> 
B134: Benzene content of hydrocarbon fraction only | H134: Benzene content of hydrocarbon fraction only
B135: Benzene weight% = | C135: =100*(C104)/(C99+C100+C101+C102+C103+C104+C105+C106+C107+C108+C109+C110+C111+C112) ->  | H135: Benzene weight% = | I135: =100*(L104)/(L99+L100+L101+L102+L103+L104+L105+L106+L107+L108+L109+L110+L111+L112) -> 
B136: Benzene weight fraction = | C136: =C135/100 ->  | H136: Benzene weight fraction = | I136: =I135/100 -> 
B139: Enter any notes here:

Sheet IC Engines (hidden)
B1: ='Facility Information'!C27 -> Company Name
B2: ='Facility Information'!C28 -> Site Name
B3: Internal Combustion Engine Emissions
B4: A) Enter information into the yellow boxes.
B5: B) Use the box provided below for entering any notes necessary (such as the source/justification for any calculation inputs).
B6: C) Make sure to select the correct Emission Type from the pull down menus below. A VOC type does not need to be selected here; see the note in the comment for more explanation.
B8: Engine Emission Calculations
B10: Note: The TCEQ prefers the following basis for calculating emissions (in order of preference):
B11: 1. Stack test data from the engine
B12: 2. Manufacturer's specification sheet and control specification sheet (if control used) | S12: select one
B13: 3. AP-42 emission factors | S13: new
B15: Site Location | E15: Discharge Parameters | I15: Fuel Data | S15: pick from list
S16: natural gas
B17: County | E17: Stack height (feet) | I17: Fuel Type | L17: pick from list | S17: field gas
B18: Region | E18: Stack diameter (feet) | I18: Fuel Consumption (BTU/bhp-hr) | S18: liquid petroleum gas
E19: Stage Temperature (°F) | I19: Heat Value (HHV) | S19: diesel
B20: Existing or new source: | C20: pick from list | E20: Exit Velocity (fps) | I20: Heat Value (LHV) | S20: digester gas
B21: Installation date: | I21: Sulfur Content (grains/100scf) | S21: landfill gas
B23: Engine Data | E23: Method of Emission Control | I23: Federal/State Standards | S23: pick from list
G24: Yes/No | K24: Yes/No
B25: EPN | E25: NSCR Catalyst | I25: NSPS Subpart JJJJ | S25: gas compression
B26: Name | E26: SCR Catalyst | I26: MACT Subpart ZZZZ | S26: electric generation
B27: Manufacturer | E27: JLCC Catalyst | I27: 30 TAC, Chapter 117 | S27: refrigeration
B28: Model Number | E28: Parameter Adjustment | S28: emergency/stand by
B29: Serial Number | E29: Stratified Charge
B30: Manufacture Date | E30: Other (Specify) | S30: pick from list
B31: Last Rebuild Date | S31: fixed
B32: Application | C32: pick from list | S32: variable
B33: Ignition/Injection Timing | C33: pick from list | E33: Additional Required Information | S33: pick from list
S34: 2 Stroke, Lean-Burn
B35: Horsepower: | E35: 1. Submit a copy of the engine manufacturer's site rating or general rating specification data. | S35: 4 Stroke, Lean-Burn
B36: Fuel consumption (Btu/hp-hr): | E36: 2. Submit a typical fuel analysis, including sulfur content and heating value. For gaseous fuels, provide mole percent of constituents. | S36: 4 Stroke, Rich-Burn
B37: Hours of operation per year: | E37: 3. Submit a description of the air/fuel ratio control system (manufactuer's information is acceptable).
B38: Engine Type:
B41: SO2 Mass Balance calculation for sour gas fuel:
B43: Fuel Heat Value (Btu/SCF) | E43: MW SO2 = | F43: 64.06 | G43: grams/mole
B44: Fuel H2S content (mol%) | E44: Ideal Gas Law | F44: 378.61 | G44: SCF/lb-mole
B46: SO2 produced (lb/hr) = | C46: =IF(C43=0,0,C36*C35*F43*C44/(C43*F44*100)) -> 0
B47: SO2 produced (tpy) = | C47: =IF(C46=0,0,C46*C37/2000) -> 0
B50: Does the VOC emission factor being used below include formaldehyde? (pick Yes or No from list)
B52: To Determine Emissions for Air Permitting
E53: from AP-42:
C54: If available, enter the test results or manufacturer's emission factors before control (g/hp-hr) | D54: Table 3.2-1 2 stroke lean-burn engine emission factors (lb/MMBtu) | E54: Table 3.2-2 4 stroke, lean-burn engine emission factors (lb/MMBtu) | F54: Table 3.2-3 4 stroke, rich burn engine emission factors (lb/MMBtu) | G54: appropriate AP-42 factor | H54: emission factor used | I54: units | J54: Uncontrolled lb/hr | K54: Uncontrolled tpy | L54: If present, enter the efficiency of any control device (as a %) | M54: If present, enter the controlled emission factor (as g/hp-hr) | N54: control factor used | O54: lb/hr | P54: tpy
B55: VOC | D55: 0.12 | E55: 0.118 | F55: 0.0296 | G55: =IF($C$38="4 Stroke, Lean-Burn",E55,IF($C$38="2 Stroke",D55,F55)) -> 0.0296 | H55: =IF(C55=0,G55,C55) -> 0.0296 | I55: =IF(C55=0,"lb/MMBtu","g/hp-hr") -> lb/MMBtu | J55: =IF(I55="g/hp-hr",H55*$C$35/453.59,H55*$C$36*$C$35/1000000) -> 0 | K55: =J55*$C$37/2000 -> 0 | N55: =IF(L55=0,M55,L55) -> 0 | O55: =IF(L55>0,J55*(100-L55)/100,IF(M55=0,J55,M55*$C$35/453.59))+IF(OR(C50="No", C50=""), O61, 0) -> 0 | P55: =O55*$C$37/2000 -> 0
B56: NOx | D56: 3.17 | E56: 4.08 | F56: 2.21 | G56: =IF($C$38="4 Stroke, Lean-Burn",E56,IF($C$38="2 Stroke",D56,F56)) -> 2.21 | H56: =IF(C56=0,G56,C56) -> 2.21 | I56: =IF(C56=0,"lb/MMBtu","g/hp-hr") -> lb/MMBtu | J56: =IF(I56="g/hp-hr",H56*$C$35/453.59,H56*$C$36*$C$35/1000000) -> 0 | K56: =J56*$C$37/2000 -> 0 | N56: =IF(L56=0,M56,L56) -> 0 | O56: =IF(L56>0,J56*(100-L56)/100,IF(M56=0,J56,M56*$C$35/453.59)) -> 0 | P56: =O56*$C$37/2000 -> 0
B57: CO | D57: 0.386 | E57: 0.317 | F57: 3.72 | G57: =IF($C$38="4 Stroke, Lean-Burn",E57,IF($C$38="2 Stroke",D57,F57)) -> 3.72 | H57: 3.72 | I57: lb/MMBtu | J57: =IF(I57="g/hp-hr",H57*$C$35/453.59,H57*$C$36*$C$35/1000000) -> 0 | K57: 0 | N57: 0 | O57: 0 | P57: 0
B58: PM10 | D58: 0.0384 | E58: 7.71e-05 | F58: 0.0095 | G58: 0.0095 | H58: 0.0095 | I58: lb/MMBtu | J58: =IF(I58="g/hp-hr",H58*$C$35/453.59,H58*$C$36*$C$35/1000000) -> 0 | K58: 0 | N58: 0 | O58: 0 | P58: 0
B59: PM2.5 | D59: 0.0384 | E59: 7.71e-05 | F59: 0.0095 | G59: 0.0095 | H59: 0.0095 | I59: lb/MMBtu | J59: =IF(I59="g/hp-hr",H59*$C$35/453.59,H59*$C$36*$C$35/1000000) -> 0 | K59: 0 | N59: 0 | O59: 0 | P59: 0
B60: SO2 | D60: 0.000588 | E60: 0.000588 | F60: 0.000588 | G60: 0.000588 | H60: 0.000588 | I60: lb/MMBtu | J60: =IF(C46=0,IF(I60="g/hp-hr",H60*$C$35/453.59,H60*$C$36*$C$35/1000000),C46) -> 0 | K60: 0 | N60: 0 | O60: =IF(L60>0,J60*(100-L60)/100,IF(M60=0,J60,M60*$C$35/453.59)) -> 0 | P60: 0
B61: Formaldehyde | D61: 0.0552 | E61: 0.0528 | F61: 0.0205 | G61: 0.0205 | H61: 0.0205 | I61: lb/MMBtu | J61: =IF(I61="g/hp-hr",H61*$C$35/453.59,H61*$C$36*$C$35/1000000) -> 0 | K61: 0 | N61: 0 | O61: 0 | P61: 0
B62: Benzene | D62: 0.00194 | E62: 0.000404 | F62: 0.00158 | G62: 0.00158 | H62: 0.00158 | I62: lb/MMBtu | J62: =IF(I62="g/hp-hr",H62*$C$35/453.59,H62*$C$36*$C$35/1000000) -> 0 | K62: 0 | N62: 0 | O62: 0 | P62: 0
B65: Emission Type: (pick from list)
B66: Steady State (continuous)
B68: Enter any notes here:
S70: pick from list
S71: natural gas
S72: field gas
S73: liquid petroleum gas
S74: diesel
S75: digester gas
S76: landfill gas
S78: pick from list
S79: gas compression
S80: electric generation
S81: refrigeration
S82: emergency/stand by
S84: pick from list
S85: fixed
S86: variable
S87: pick from list
S88: 2 Stroke, Lean-Burn
S89: 4 Stroke, Lean-Burn
S90: 4 Stroke, Rich-Burn
S118: existing
S119: pick from list
S120: natural gas
S121: field gas
S122: liquid petroleum gas
S123: diesel
S124: digester gas
S125: landfill gas
S127: pick from list
S128: gas compression
S129: electric generation
S130: refrigeration
S131: emergency/stand by
S133: pick from list
S134: fixed
S135: variable
S136: pick from list
S137: 2 Stroke, Lean-Burn
S138: 4 Stroke, Lean-Burn
S139: 4 Stroke, Rich-Burn
S167: existing
S168: pick from list
S169: natural gas
S170: field gas
S171: liquid petroleum gas
S172: diesel
S173: digester gas
S174: landfill gas
S176: pick from list
S177: gas compression
S178: electric generation
S179: refrigeration
S180: emergency/stand by
S182: pick from list
S183: fixed
S184: variable
S185: pick from list
S186: 2 Stroke, Lean-Burn
S187: 4 Stroke, Lean-Burn
S188: 4 Stroke, Rich-Burn

Sheet Turbines (hidden)
B1: ='Facility Information'!C27 -> Company Name
B2: ='Facility Information'!C28 -> Site Name
B3: Turbines Emissions
B4: A) Enter information into the yellow boxes.
B5: B) Use the box provided below for entering any notes necessary (such as the source/justification for any calculation inputs).
B6: C) Make sure to select the correct Emission Type from the pull down menus below. A VOC type does not need to be selected here; see the note in the comment for more explanation.
B8: Turbine Emission Calculations
B10: Note: The TCEQ prefers the following basis for calculating emissions (in order of preference):
B11: 1. Stack test data from the engine
B12: 2. Manufacturer's specification sheet and control specification sheet (if control used)
B13: 3. AP-42 emission factors
T14: select one
B15: Site Location | E15: Discharge Parameters | I15: Fuel Data | T15: existing
B17: County | E17: Stack height (feet) | I17: Fuel Type | L17: pick from list | T17: pick from list
B18: Region | E18: Stack diameter (feet) | I18: Fuel Consumption (BTU/bhp-hr) | T18: natural gas
E19: Stage Temperature (°F) | I19: Heat Value (HHV) | T19: field gas
B20: Existing or new source: | C20: pick from list | E20: Exit Velocity (fps) | I20: Heat Value (LHV) | T20: liquid petroleum gas
B21: Installation date: | I21: Sulfur Content (grains/100scf) | T21: diesel
T22: digester gas
B23: Turbine Data | E23: Method of Emission Control | I23: Federal/State Standards | T23: landfill gas
G24: Yes/No | K24: Yes/No
B25: EPN | E25: SCR Catalyst | I25: NSPS Subpart GG
B26: Name | E26: Dry Low NOx | I26: NSPS Subpart KKKK
B27: Manufacturer | E27: Water Injection | I27: MACT Subpart YYYY
B28: Model Number | E28: Steam Injection | I28: 30 TAC, Chapter 117
B29: Serial Number
B30: Manufacture Date
B31: Last Rebuild Date | E31: Additional Required Information
T32: pick from list
B33: Horsepower: | E33: 1. Submit a copy of the engine manufacturer's site rating or general rating specification data. | T33: uncontrolled
B34: Fuel consumption (Btu/hp-hr): | E34: 2. Submit a typical fuel analysis, including sulfur content and heating value. For gaseous fuels, provide mole percent of constituents. | T34: water-steam injection
B35: Hours of operation per year: | E35: 3. Submit a description of the air/fuel ratio control system (manufactuer's information is acceptable). | T35: lean-premix
B36: Control Method: | C36: pick from list
B39: SO2 Mass Balance calculation for sour gas fuel:
B41: Fuel Heat Value (Btu/SCF)
B42: Fuel H2S content (mol%) | E42: MW SO2 = | F42: 64.06 | G42: grams/mole
E43: Ideal Gas Law | F43: 378.61 | G43: SCF/lb-mole
B44: SO2 produced (lb/hr) = | C44: =IF(C41=0,0,C35*C34*F42*C42/(C41*F43*100)) -> 0
B45: SO2 produced (tpy) = | C45: =IF(C44=0,0,C44*C35/2000) -> 0
B48: Does the VOC emission factor being used below include formaldehyde? (pick Yes or No from list)
B50: To Determine Emissions for Air Permitting
D51: from AP-42:
C52: If available, enter the test results or manufacturer's emission factors before control (g/hp-hr) | D52: Table 3.1-1 Natural gas-fired turbine uncontrolled emission factors (lb/MMBtu) | E52: Table 3.1-1 Natural gas-fired turbine water-steam injection emission factors (lb/MMBtu) | F52: Table 3.1-1 Natural gas fired turbine lean-premix emission factors (lb/MMBtu) | G52: Table 3.2-1 Natural gas-fired turbine emission factors (lb/MMBtu) | H52: appropriate AP-42 factor | I52: emission factor used | J52: units | K52: Uncontrolled lb/hr | L52: Uncontrolled tpy | M52: If present, enter the efficiency of any control device (as a %) | N52: If present, enter the controlled emission factor (as g/hp-hr) | O52: control factor used | P52: lb/hr | Q52: tpy
B53: VOC | D53: -- | E53: -- | F53: -- | G53: 0.0021 | H53: =G53 -> 0.0021 | I53: =IF(C53=0,H53,C53) -> 0.0021 | J53: =IF(C53=0,"lb/MMBtu","g/hp-hr") -> lb/MMBtu | K53: =IF(J53="g/hp-hr",I53*$C$33/453.59,I53*$C$34*$C$33/1000000) -> 0 | L53: =K53*$C$35/2000 -> 0 | O53: =IF(M53=0,N53,M53) -> 0 | P53: =IF(M53>0,K53*(100-M53)/100,IF(N53=0,K53,M53*$C$35/453.59))+IF(OR(C48="No", C48=""), P59, 0) -> 0 | Q53: =P53*8760/2000 -> 0
B54: NOx | D54: 0.32 | E54: 0.13 | F54: 0.099 | G54: -- | H54: =IF($C$36="uncontrolled",D54,IF($C$36="water-steam injection",E54,F54)) -> 0.099 | I54: =IF(C54=0,H54,C54) -> 0.099 | J54: =IF(C54=0,"lb/MMBtu","g/hp-hr") -> lb/MMBtu | K54: =IF(J54="g/hp-hr",I54*$C$33/453.59,I54*$C$34*$C$33/1000000) -> 0 | L54: 0 | O54: =IF(M54=0,N54,M54) -> 0 | P54: =IF(M54>0,K54*(100-M54)/100,IF(N54=0,K54,N54*$C$33/453.59)) -> 0 | Q54: =P54*8760/2000 -> 0
B55: CO | D55: 0.082 | E55: 0.03 | F55: 0.015 | G55: -- | H55: =IF($C$36="uncontrolled",D55,IF($C$36="water-steam injection",E55,F55)) -> 0.015 | I55: 0.015 | J55: lb/MMBtu | K55: =IF(J55="g/hp-hr",I55*$C$33/453.59,I55*$C$34*$C$33/1000000) -> 0 | L55: 0 | O55: 0 | P55: 0 | Q55: 0
B56: PM10 | D56: -- | E56: -- | F56: -- | G56: 0.0047 | H56: =G56 -> 0.0047 | I56: 0.0047 | J56: lb/MMBtu | K56: =IF(J56="g/hp-hr",I56*$C$33/453.59,I56*$C$34*$C$33/1000000) -> 0 | L56: 0 | O56: 0 | P56: 0 | Q56: 0
B57: PM2.5 | D57: -- | E57: -- | F57: -- | G57: 0.0019 | H57: =G57 -> 0.0019 | I57: 0.0019 | J57: lb/MMBtu | K57: =IF(J57="g/hp-hr",I57*$C$33/453.59,I57*$C$34*$C$33/1000000) -> 0 | L57: 0 | O57: 0 | P57: 0 | Q57: 0
B58: SO2 | D58: -- | E58: -- | F58: -- | G58: 0.0034 | H58: =G58 -> 0.0034 | I58: 0.0034 | J58: lb/MMBtu | K58: =IF(C44=0,IF(J58="g/hp-hr",I58*$C$33/453.59,I58*$C$34*$C$33/1000000),C44) -> 0 | L58: 0 | O58: 0 | P58: =IF(M58>0,K58*(100-M58)/100,IF(N58=0,K58,N58*$C$33/453.59)) -> 0 | Q58: 0
B59: Formaldehyde | D59: -- | E59: -- | F59: -- | G59: 0.00071 | H59: =G59 -> 0.00071 | I59: 0.00071 | J59: lb/MMBtu | K59: =IF(J59="g/hp-hr",I59*$C$33/453.59,I59*$C$34*$C$33/1000000) -> 0 | L59: 0 | O59: 0 | P59: 0 | Q59: 0
B60: Benzene | D60: -- | E60: -- | F60: -- | G60: 1.2e-05 | H60: =G60 -> 1.2e-05 | I60: 1.2e-05 | J60: lb/MMBtu | K60: =IF(J60="g/hp-hr",I60*$C$33/453.59,I60*$C$34*$C$33/1000000) -> 0 | L60: 0 | O60: 0 | P60: 0 | Q60: 0
B63: Emission Type: (pick from list)
B64: Steady State (continuous)
B66: Enter any notes here:

Sheet Diesel Engines (hidden)
B1: ='Facility Information'!C27 -> Company Name
B2: ='Facility Information'!C28 -> Site Name
B3: Diesel Engines
B4: A) Enter information into the yellow boxes.
B5: B) Use the box provided below for entering any notes necessary (such as the source/justification for any calculation inputs).
B6: C) Make sure to select the correct Emission Type from the pull down menus below. A VOC type does not need to be selected here; see the note in the comment for more explanation.
B8: Engine Emission Calculations
B10: Note: The TCEQ prefers the following basis for calculating emissions (in order of preference):
B11: 1. Stack test data from the engine
B12: 2. Manufacturer's specification sheet and control specification sheet (if control used) | S12: select one
B13: 3. AP-42 emission factors | S13: new
B15: Site Location | E15: Discharge Parameters | I15: Fuel Data | S15: pick from list
S16: natural gas
B17: County | E17: Stack height (feet) | I17: Fuel Type | L17: pick from list | S17: field gas
B18: Region | E18: Stack diameter (feet) | I18: Fuel Consumption (BTU/bhp-hr) | S18: liquid petroleum gas
E19: Stage Temperature (°F) | I19: Heat Value (HHV) | S19: diesel
B20: Existing or new source: | C20: pick from list | E20: Exit Velocity (fps) | I20: Heat Value (LHV) | S20: digester gas
B21: Installation date: | I21: Sulfur Content (grains/100scf) | S21: landfill gas
B23: Engine Data | E23: Method of Emission Control | I23: Federal/State Standards | S23: pick from list
G24: Yes/No | K24: Yes/No
B25: EPN | E25: NSCR Catalyst | I25: NSPS Subpart IIII | S25: gas compression
B26: Name | E26: SCR Catalyst | I26: MACT Subpart ZZZZ | S26: electric generation
B27: Manufacturer | E27: JLCC Catalyst | I27: 30 TAC, Chapter 117 | S27: refrigeration
B28: Model Number | E28: Parameter Adjustment | S28: emergency/stand by
B29: Serial Number | E29: Stratified Charge
B30: Manufacture Date | E30: Other (Specify) | S30: pick from list
B31: Last Rebuild Date | S31: fixed
B32: Application | C32: pick from list | S32: variable
B33: Ignition/Injection Timing | C33: pick from list | E33: Additional Required Information | S33: pick from list
S34: 2 Stroke, Lean-Burn
B35: Horsepower: | E35: 1. Submit a copy of the engine manufacturer's site rating or general rating specification data. | S35: 4 Stroke, Lean-Burn
B36: Fuel consumption (Btu/hp-hr): | E36: 2. Submit a typical fuel analysis, including sulfur content and heating value. For gaseous fuels, provide mole percent of constituents. | S36: 4 Stroke, Rich-Burn
B37: Hours of operation per year: | E37: 3. Submit a description of the air/fuel ratio control system (manufactuer's information is acceptable).
B38: Engine Type: | C38: Diesel
B41: Does the VOC emission factor being used below include formaldehyde? (pick Yes or No from list)
B43: To Determine Emissions for Air Permitting
D44: from AP-42:
C45: If available, enter the test results or manufacturer's emission factors before control (g/hp-hr) | D45: Table 3.3-1 Diesel Fuel engine emission factors (lb/MMBtu) | E45: appropriate AP-42 factor | F45: emission factor used | G45: units | H45: Uncontrolled lb/hr | I45: Uncontrolled tpy | J45: If present, enter the efficiency of any control device (as a %) | K45: If present, enter the controlled emission factor (as g/hp-hr) | L45: control factor used | M45: lb/hr | N45: tpy
B46: VOC | D46: 0.35 | E46: =IF($C$38="DIESEL",D46,IF($C$38="DIESEL",#REF!,D46)) -> 0.35 | F46: =IF(C46=0,D46,C46) -> 0.35 | G46: =IF(C46=0,"lb/MMBtu","g/hp-hr") -> lb/MMBtu | H46: =IF(G46="g/hp-hr",F46*$C$35/453.59,F46*$C$36*$C$35/1000000) -> 0 | I46: =H46*$C$37/2000 -> 0 | L46: =IF(J46=0,K46,J46) -> 0 | M46: =IF(J46>0,H46*(100-J46)/100,IF(K46=0,H46,K46*$C$35/453.59))+IF(OR(C41="No", C41=""), M52, 0) -> 0 | N46: =M46*8760/2000 -> 0
B47: NOx | D47: 4.41 | E47: =IF($C$38="DIESEL",D47,IF($C$38="DIESEL",#REF!,D47)) -> 4.41 | F47: 4.41 | G47: lb/MMBtu | H47: 0 | I47: 0 | L47: =IF(J47=0,K47,J47) -> 0 | M47: =IF(J47>0,H47*(100-J47)/100,IF(K47=0,H47,K47*$C$35/453.59)) -> 0 | N47: =M47*8760/2000 -> 0
B48: CO | D48: 0.95 | E48: =IF($C$38="DIESEL",D48,IF($C$38="DIESEL",#REF!,D48)) -> 0.95 | F48: 0.95 | G48: lb/MMBtu | H48: 0 | I48: 0 | L48: 0 | M48: 0 | N48: 0
B49: PM10 | D49: 0.31 | E49: =IF($C$38="DIESEL",D49,IF($C$38="DIESEL",#REF!,D49)) -> 0.31 | F49: 0.31 | G49: lb/MMBtu | H49: 0 | I49: 0 | L49: 0 | M49: 0 | N49: 0
B50: PM2.5 | D50: =D49*0.764 -> 0.23684 | E50: =IF($C$38="DIESEL",D50,IF($C$38="DIESEL",#REF!,D50)) -> 0.23684 | F50: 0.23684 | G50: lb/MMBtu | H50: 0 | I50: 0 | L50: 0 | M50: 0 | N50: 0
B51: SO2 | D51: 0.29 | E51: =IF($C$38="DIESEL",D51,IF($C$38="DIESEL",#REF!,D51)) -> 0.29 | F51: 0.29 | G51: lb/MMBtu | H51: 0 | I51: 0 | L51: 0 | M51: 0 | N51: 0
B52: Formaldehyde | D52: 0.00118 | E52: =IF($C$38="DIESEL",D52,IF($C$38="DIESEL",#REF!,D52)) -> 0.00118 | F52: 0.00118 | G52: lb/MMBtu | H52: 0 | I52: 0 | L52: 0 | M52: 0 | N52: 0
B53: Benzene | D53: 0.000933 | E53: =IF($C$38="DIESEL",D53,IF($C$38="DIESEL",#REF!,D53)) -> 0.000933 | F53: 0.000933 | G53: lb/MMBtu | H53: 0 | I53: 0 | L53: 0 | M53: 0 | N53: 0
B56: Emission Type: (pick from list)
B57: Steady State (continuous)
B59: Enter any notes here:
S62: existing
S63: pick from list
S64: natural gas

Sheet Heaters-Boilers (hidden)
B1: ='Facility Information'!C27 -> Company Name
B2: ='Facility Information'!C28 -> Site Name
B3: Heaters-Boilers Emissions
B4: A) Enter information into the yellow boxes.
B5: B) Use the box provided below for entering any notes necessary (such as the source/justification for any calculation inputs).
B6: C) Make sure to select the correct Emission Type from the pull down menus below. A VOC type does not need to be selected here; see the note in the comment for more explanation.
B8: Heater and Boiler Emission Calculations (fueled by natural gas)
B10: EPN
B11: Name
B12: Heater/Boiler rating (MMBtu/hr): | O12: NOx: | P12: pick from list
B13: Rating above is (select from list): | C13: pick from list | D13: (assume uncontrolled, unless specifically stated otherwise) | O13: 100 | P13: below 100 MMBtu/hr, uncontrolled
B14: Operating hours/year: | O14: 50 | P14: below 100 MMBtu/hp-hr, controlled - low NOx burner
B15: Fuel Heat Value (Btu/SCF): | O15: 32 | P15: below 100 MMBtu/hr, controlled - low NOx burner, flue gas recirculation
O16: 280 | P16: above 100 MMBtu/hr, uncontrolled, pre-NSPS
B17: Pollutant | C17: Emission Factor (lb/MMCF) | D17: lb/hr | E17: tpy | O17: 190 | P17: above 100 MMBtu/hr, uncontrolled, post-NSPS
B18: VOC | C18: 5.5 | D18: =IF(C15="", 0, C18*C12/C15) -> 0 | E18: =D18*C14/2000 -> 0 | O18: 140 | P18: above 100 MMBtu/hr, controlled - low NOx burner
B19: NOx | C19: =IF(C13="below 100 MMBtu/hr, uncontrolled",100,IF(C13="below 100 MMBtu/hp-hr, controlled - low NOx burner",50,IF(C13="below 100 MMBtu/hr, controlled - low NOx burner, flue gas recirculation",32,(IF(C13="above 100 MMBtu/hr, uncontrolled, pre-NSPS",280,(IF(C13="above 100 MMBtu/hr, uncontrolled, post-NSPS",190,(IF(C13="above 100 MMBtu/hr, controlled - low NOx burner",140,(IF(C13="above 100 MMBtu/hr, controlled - flue gas recirculation",100,0))))))))))) -> 0 | D19: =IF(C15="", 0, C19*C12/C15) -> 0 | E19: =D19*C14/2000 -> 0 | O19: 100 | P19: above 100 MMBtu/hr, controlled - flue gas recirculation
B20: CO | C20: 84 | D20: =IF(C15="", 0, C20*C12/C15) -> 0 | E20: =D20*C14/2000 -> 0
B21: PM10 | C21: 7.6 | D21: =IF(C15="", 0, C21*C12/C15) -> 0 | E21: =D21*C14/2000 -> 0
B22: PM2.5 | C22: 5.7 | D22: =IF(C15="", 0, C22*C12/C15) -> 0 | E22: =D22*C14/2000 -> 0
B23: SO2 | C23: 0.6 | D23: =IF(NOT(C29=0), C29, IF(AND(C29=0, NOT(C15=0)), C23*C12/C15,0)) -> 0 | E23: =D23*C14/2000 -> 0
B25: If the heater/boiler is fueled by Sour Gas, cannot use emission factors above to calculate SO2 emissions, must use SO2 mass balance:
B27: SO2 Mass Balance calculation:
B28: Fuel H2S content (mol %) = | F28: assumptions:
B29: SO2 produced (lb/hr) = | C29: =IF(C15="", 0, C12*1000000*C28*G29/(C15*G30*100)) -> 0 | F29: SO2 MW | G29: 64.06 | H29: lb/lb-mole
B30: SO2 produced (tpy) = | C30: =C29*C14/2000 -> 0 | F30: Ideal Gas Law | G30: 378.61 | H30: SCF/lb-mole
B33: Emission Type: (pick from list)
B34: Steady State (continuous)
B36: Enter any notes here:

Sheet Fugitives (hidden)
B1: ='Facility Information'!C27 -> Company Name
B2: ='Facility Information'!C28 -> Site Name
B3: Fugitives Emissions
B5: EPN
B6: Name
B8: A) Enter information into the yellow boxes.
B9: B) VOC and H2S control efficiencies may be entered (as applicable for reductions from leak detection and repair programs).
B10: C) The vapor VOC, benzene, and H2S weight percents may be entered. The weight percents from the Analyses tab are displayed below.
B11: D) Use the box provided below for entering any notes necessary (such as the source/justification for any calculation inputs).
B12: E) This sheet has five parts to it. Part (1) is for Gas Service, (2) is for Heavy Oil Service, (3) is for Light Oil Service, (4) is for Water/Oil Service, and (5) is for a combination of all the results. Fill out all applicable yellow cells in parts (1)-(4) and the final results will be in part (5).
B14: The five parts are set up in this arrangement: | G14: (1) | H14: (2)
G15: (3) | H15: (4)
G16: (5)
B17: F) Make sure to select the correct VOC Type and Emission Type from the pull down menus below in part (5).
B20: Gas Weight Percents From Analyses Tab: | K20: Liquid Weight Percents From Analyses Tab:
B21: VOC wt % | C21: =IF('Site Wide Gas & Liquid Analyses'!$D$17 = "weight percents", 'Site Wide Gas & Liquid Analyses'!C54, IF('Site Wide Gas & Liquid Analyses'!$D$17 = "mole percents", 'Site Wide Gas & Liquid Analyses'!I54, "Error")) -> Error | K21: VOC wt % | L21: =IF('Site Wide Gas & Liquid Analyses'!$D$17 = "weight percents", 'Site Wide Gas & Liquid Analyses'!C120, IF('Site Wide Gas & Liquid Analyses'!$D$17 = "mole percents", 'Site Wide Gas & Liquid Analyses'!I120, "Error")) -> Error
B22: Benzene wt % | C22: =IF('Site Wide Gas & Liquid Analyses'!$D$17 = "weight percents", 'Site Wide Gas & Liquid Analyses'!C71, IF('Site Wide Gas & Liquid Analyses'!$D$17 = "mole percents", 'Site Wide Gas & Liquid Analyses'!I71, "Error")) -> Error | K22: Benzene wt % | L22: =IF('Site Wide Gas & Liquid Analyses'!$D$17 = "weight percents", 'Site Wide Gas & Liquid Analyses'!C135, IF('Site Wide Gas & Liquid Analyses'!$D$17 = "mole percents", 'Site Wide Gas & Liquid Analyses'!I135, "Error")) -> Error
B23: H2S wt % | C23: =IF('Site Wide Gas & Liquid Analyses'!$D$17 = "weight percents", 'Site Wide Gas & Liquid Analyses'!C58, IF('Site Wide Gas & Liquid Analyses'!$D$17 = "mole percents", 'Site Wide Gas & Liquid Analyses'!I58, "Error")) -> Error | K23: H2S wt % | L23: =IF('Site Wide Gas & Liquid Analyses'!$D$17 = "weight percents", 'Site Wide Gas & Liquid Analyses'!C124, IF('Site Wide Gas & Liquid Analyses'!$D$17 = "mole percents", 'Site Wide Gas & Liquid Analyses'!I124, "Error")) -> Error
A25: (1) | B25: Gas | J25: (2) | K25: Heavy Oil
B26: number | C26: component | D26: emission factor (lb/hr of TOC per component) | E26: lb/hr | F26: tpy | K26: number | L26: component | M26: emission factor (lb/hr of TOC per component) | N26: lb/hr | O26: tpy
C27: Valve | D27: 0.00992 | E27: =D27*B27 -> 0 | F27: =E27*4.38 -> 0 | L27: Valve | M27: 1.85e-05 | N27: =M27*K27 -> 0 | O27: =N27*4.38 -> 0
C28: Pump Seal | D28: 0.00529 | E28: 0 | F28: 0 | L28: Pumps | M28: 0.00113 | N28: 0 | O28: 0
C29: Connector | D29: 0.00044 | E29: 0 | F29: 0 | L29: Connector | M29: 1.65e-05 | N29: 0 | O29: 0
C30: Flange | D30: 0.00086 | E30: 0 | F30: 0 | L30: Flange | M30: 8.6e-07 | N30: 0 | O30: 0
C31: Open-ended Line | D31: 0.00441 | E31: 0 | F31: 0 | L31: Open-ended Line | M31: 0.000309 | N31: 0 | O31: 0
C32: Other | D32: 0.0194 | E32: 0 | F32: 0 | L32: Other | M32: 6.83e-05 | N32: 0 | O32: 0
D33: Total: | E33: =SUM(E27:E32) -> 0 | F33: =SUM(F27:F32) -> 0 | M33: Total: | N33: =SUM(N27:N32) -> 0 | O33: 0
B35: VOC content (wt %) | C35: Benzene content (wt%) | D35: H2S content (wt%) | E35: Control Efficiency (%) | K35: VOC content (wt%) | L35: Benzene content (wt%) | M35: H2S content (wt%) | N35: Control Efficiency (%)
A36: Valves | J36: Valves
A37: Pump Seal | J37: Pump Seal
A38: Connector | J38: Connector
A39: Flange | J39: Flange
A40: Open-ended Line | J40: Open-ended Line
A41: Other | J41: Other
B43: VOC Emissions | D43: H2S Emissions | F43: Benzene Emissions | K43: VOC Emissions | M43: H2S Emissions | O43: Benzene Emissions
B44: lb/hr | C44: tpy | D44: lb/hr | E44: tpy | F44: lb/hr | G44: tpy | K44: lb/hr | L44: tpy | M44: lb/hr | N44: tpy | O44: lb/hr | P44: tpy
A45: Valves | B45: =IF(B36="", E27*100*(100-E36)/10000, E27*B36*(100-E36)/10000) -> 0 | C45: =B45*8760/2000 -> 0 | D45: =IF(D36="", E27*0.001*(100-E36)/10000, E27*D36*(100-E36)/10000) -> 0 | E45: =D45*8760/2000 -> 0 | F45: =IF(C36="", E27*3*(100-E36)/10000, E27*C36*(100-E36)/10000) -> 0 | G45: =F45*8760/2000 -> 0 | J45: Valves | K45: =IF(K36="", N27*100*(100-N36)/10000, N27*K36*(100-N36)/10000) -> 0 | L45: =K45*8760/2000 -> 0 | M45: =IF(M36="", N27*0.001*(100-N36)/10000, N27*M36*(100-N36)/10000) -> 0 | N45: =M45*8760/2000 -> 0 | O45: =IF(L36="", N27*3*(100-N36)/10000, N27*L36*(100-N36)/10000) -> 0 | P45: =O45*8760/2000 -> 0
A46: Pump Seal | B46: =IF(B37="", E28*100*(100-E37)/10000, E28*B37*(100-E37)/10000) -> 0 | C46: =B46*8760/2000 -> 0 | D46: 0 | E46: =D46*8760/2000 -> 0 | F46: =IF(C37="", E28*3*(100-E37)/10000, E28*C37*(100-E37)/10000) -> 0 | G46: 0 | J46: Pump Seal | K46: 0 | L46: 0 | M46: 0 | N46: 0 | O46: 0 | P46: 0
A47: Connector | B47: 0 | C47: 0 | D47: 0 | E47: 0 | F47: 0 | G47: 0 | J47: Connector | K47: 0 | L47: 0 | M47: 0 | N47: 0 | O47: 0 | P47: 0
A48: Flange | B48: 0 | C48: 0 | D48: 0 | E48: 0 | F48: 0 | G48: 0 | J48: Flange | K48: 0 | L48: 0 | M48: 0 | N48: 0 | O48: 0 | P48: 0
A49: Open-ended Line | B49: 0 | C49: 0 | D49: 0 | E49: 0 | F49: 0 | G49: 0 | J49: Open-ended Line | K49: 0 | L49: 0 | M49: 0 | N49: 0 | O49: 0 | P49: 0
A50: Other | B50: 0 | C50: 0 | D50: 0 | E50: 0 | F50: 0 | G50: 0 | J50: Other | K50: 0 | L50: 0 | M50: 0 | N50: 0 | O50: 0 | P50: 0
A51: Total: | B51: =SUM(B45:B50) -> 0 | C51: 0 | D51: =SUM(D45:D50) -> 0 | E51: =D51*8760/2000 -> 0 | F51: =SUM(F45:F50) -> 0 | G51: 0 | J51: Total: | K51: =SUM(K45:K50) -> 0 | L51: 0 | M51: =SUM(M45:M50) -> 0 | N51: 0 | O51: =SUM(O45:O50) -> 0 | P51: 0
B57: Liquid Weight Percents From Analyses Tab:
B58: VOC wt % | C58: =IF('Site Wide Gas & Liquid Analyses'!$D$17 = "weight percents", 'Site Wide Gas & Liquid Analyses'!C120, IF('Site Wide Gas & Liquid Analyses'!$D$17 = "mole percents", 'Site Wide Gas & Liquid Analyses'!I120, "Error")) -> Error
B59: Benzene wt % | C59: =IF('Site Wide Gas & Liquid Analyses'!$D$17 = "weight percents", 'Site Wide Gas & Liquid Analyses'!C135, IF('Site Wide Gas & Liquid Analyses'!$D$17 = "mole percents", 'Site Wide Gas & Liquid Analyses'!I135, "Error")) -> Error
B60: H2S wt % | C60: =IF('Site Wide Gas & Liquid Analyses'!$D$17 = "weight percents", 'Site Wide Gas & Liquid Analyses'!C124, IF('Site Wide Gas & Liquid Analyses'!$D$17 = "mole percents", 'Site Wide Gas & Liquid Analyses'!I124, "Error")) -> Error
A62: (3) | B62: Light Oil | J62: (4) | K62: Water/Oil
B63: number | C63: component | D63: emission factor (lb/hr of TOC per component) | E63: lb/hr | F63: tpy | K63: number | L63: component | M63: emission factor (lb/hr of TOC per component) | N63: lb/hr | O63: tpy
C64: Valve | D64: 0.0055 | E64: =D64*B64 -> 0 | F64: =E64*4.38 -> 0 | L64: Valve | M64: 0.000216 | N64: =M64*K64 -> 0 | O64: =N64*4.38 -> 0
C65: Pump Seal | D65: 0.02866 | E65: 0 | F65: 0 | L65: Pump Seal | M65: 5.2e-05 | N65: 0 | O65: 0
C66: Connector | D66: 0.000463 | E66: 0 | F66: 0 | L66: Connector | M66: 0.000243 | N66: 0 | O66: 0
C67: Flange | D67: 0.000243 | E67: 0 | F67: 0 | L67: Flange | M67: 6e-06 | N67: 0 | O67: 0
C68: Open-ended Line | D68: 0.00309 | E68: 0 | F68: 0 | L68: Open-ended Line | M68: 0.00055 | N68: 0 | O68: 0
C69: Other | D69: 0.0165 | E69: 0 | F69: 0 | L69: Other | M69: 0.0309 | N69: 0 | O69: 0
D70: Total: | E70: =SUM(E64:E69) -> 0 | F70: 0 | M70: Total: | N70: =SUM(N64:N69) -> 0 | O70: 0
B72: VOC content (wt%) | C72: Benzene content (wt%) | D72: H2S content (wt%) | E72: Control Efficiency (%) | K72: VOC content (wt%) | L72: Benzene content (wt%) | M72: H2S content (wt%) | N72: Control Efficiency (%)
A73: Valves | J73: Valves
A74: Pump Seal | J74: Pump Seal
A75: Connector | J75: Connector
A76: Flange | J76: Flange
A77: Open-ended Line | J77: Open-ended Line
A78: Other | J78: Other
B80: VOC Emissions | D80: H2S Emissions | F80: Benzene Emissions | K80: VOC Emissions | M80: H2S Emissions | O80: Benzene Emissions
B81: lb/hr | C81: tpy | D81: lb/hr | E81: tpy | F81: lb/hr | G81: tpy | K81: lb/hr | L81: tpy | M81: lb/hr | N81: tpy | O81: lb/hr | P81: tpy
A82: Valves | B82: =IF(B73="", E64*100*(100-E73)/10000, E64*B73*(100-E73)/10000) -> 0 | C82: =B82*8760/2000 -> 0 | D82: =IF(D73="", E64*0.001*(100-E73)/10000, E64*D73*(100-E73)/10000) -> 0 | E82: =D82*8760/2000 -> 0 | F82: =IF(C73="", E64*3*(100-E73)/10000, E64*C73*(100-E73)/10000) -> 0 | G82: =F82*8760/2000 -> 0 | J82: Valves | K82: =IF(K73="", N64*100*(100-N73)/10000, N64*K73*(100-N73)/10000) -> 0 | L82: =K82*8760/2000 -> 0 | M82: =IF(M73="", N64*0.001*(100-N73)/10000, N64*M73*(100-N73)/10000) -> 0 | N82: =M82*8760/2000 -> 0 | O82: =IF(L73="", N64*3*(100-N73)/10000, N64*L73*(100-N73)/10000) -> 0 | P82: =O82*8760/2000 -> 0
A83: Pump Seal | B83: =IF(B74="", E65*100*(100-E74)/10000, E65*B74*(100-E74)/10000) -> 0 | C83: 0 | D83: 0 | E83: 0 | F83: 0 | G83: 0 | J83: Pump Seal | K83: 0 | L83: 0 | M83: 0 | N83: 0 | O83: =N65*L74*(100-N74)/10000 -> 0 | P83: 0
A84: Connector | B84: 0 | C84: 0 | D84: 0 | E84: 0 | F84: 0 | G84: 0 | J84: Connector | K84: 0 | L84: 0 | M84: 0 | N84: 0 | O84: =N66*L75*(100-N75)/10000 -> 0 | P84: 0
A85: Flange | B85: 0 | C85: 0 | D85: 0 | E85: 0 | F85: 0 | G85: 0 | J85: Flange | K85: 0 | L85: 0 | M85: 0 | N85: 0 | O85: =N67*L76*(100-N76)/10000 -> 0 | P85: 0
A86: Open-ended Line | B86: 0 | C86: 0 | D86: 0 | E86: 0 | F86: 0 | G86: 0 | J86: Open-ended Line | K86: 0 | L86: 0 | M86: 0 | N86: 0 | O86: =N68*L77*(100-N77)/10000 -> 0 | P86: 0
A87: Other | B87: 0 | C87: 0 | D87: 0 | E87: 0 | F87: 0 | G87: 0 | J87: Other | K87: 0 | L87: 0 | M87: 0 | N87: 0 | O87: =N69*L78*(100-N78)/10000 -> 0 | P87: 0
A88: Total: | B88: =SUM(B82:B87) -> 0 | C88: 0 | D88: =SUM(D82:D87) -> 0 | E88: 0 | F88: =SUM(F82:F87) -> 0 | G88: 0 | J88: Total: | K88: =SUM(K82:K87) -> 0 | L88: 0 | M88: =SUM(M82:M87) -> 0 | N88: 0 | O88: =SUM(O82:O87) -> 0 | P88: 0
A95: (5) | B95: Fugitive Total Emissions
C96: Hourly Emissions (lb/hr) | D96: Annual Emissions (tpy)
B97: VOC | C97: =SUM(B45:B50,B82:B87,K45:K50,K82:K87) -> 0 | D97: =SUM(C45:C50,C82:C87,L45:L50,L82:L87) -> 0
B98: benzene | C98: =SUM(F45:F50,F82:F87,O45:O50,O82:O87) -> 0 | D98: =SUM(G45:G50,G82:G87,P45:P50,P82:P87) -> 0
B99: H2S | C99: =SUM(D45:D50,D82:D87,M45:M50,M82:M87) -> 0 | D99: =SUM(E45:E50,E82:E87,N45:N50,N82:N87) -> 0
B101: VOC Type: (pick from list)
B102: Crude Oil or Condensate VOC
B104: Emission Type: (pick from list)
B105: Steady State (continuous)
A110: Enter any notes here:

Sheet Direct Measurement (hidden)
C1: ='Facility Information'!C27 -> Company Name
C2: ='Facility Information'!C28 -> Site Name
C3: Tank Emissions - Direct Measurement
C4: A) Enter information into the yellow boxes.
C5: B) VOC and H2S control efficiencies may be entered (if applicable).
C6: C) A reduction for produced water tank emissions calculated as oil/condensate may be entered.
C7: D) The tank vapor VOC, benzene, and H2S weight percents may be entered.
C8: E) Use the box provided below for entering any notes necessary (such as the source/justification for any calculation inputs).
C9: F) Make sure to answer the control device question.
C10: G) Make sure to select the correct VOC Type and Emission Type from the pull down menus below.
B12: Direct Measurement
B13: EPN | C13: Tank Identifier | D13: Throughput (gal/year) | E13: Stream Identification | F13: Turn-overs per year | G13: Mixture/Component | H13: RVP (psia) | I13: Temperature (°F) | J13: Total Uncontrolled Emissions (lb/hr) | K13: Total Uncontrolled Emissions (ton/yr) | L13: Tank Vapor VOC wt% | M13: Tank Vapor Benzene wt% | N13: Tank Vapor H2S wt% | O13: Percent Reduction for Produced Water Tank Calc. as Oil/Cond. (%) | P13: Are tank vapors (A) uncontrolled; (B) controlled by a flare, vapor combustor, thermal oxidizer, or vapor recovery unit (VRU); or (C) controlled by another type of control device? | Q13: VOC Control Efficiency (%) | R13: H2S Control Efficiency (%) | S13: VOC Results (lb/hr) | T13: VOC Results (tpy) | U13: Benzene Results (lb/hr) | V13: Benzene Results (tpy) | W13: H2S Results (lb/hr) | X13: H2S Results (tpy)
S14: =IF(L14="", J14*(100/100)*((100-O14)/100)*((100-Q14)/100), J14*(L14/100)*((100-O14)/100)*((100-Q14)/100)) -> 0 | T14: =IF(L14="", K14*(100/100)*((100-O14)/100)*((100-Q14)/100), K14*(L14/100)*((100-O14)/100)*((100-Q14)/100)) -> 0 | U14: =IF(M14="", J14*(3/100)*((100-O14)/100)*((100-Q14)/100), J14*(M14/100)*((100-O14)/100)*((100-Q14)/100)) -> 0 | V14: =IF(M14="", K14*(3/100)*((100-O14)/100)*((100-Q14)/100), K14*(M14/100)*((100-O14)/100)*((100-Q14)/100)) -> 0 | W14: =IF(N14="", J14*(0.001/100)*((100-R14)/100), J14*(N14/100)*((100-R14)/100)) -> 0 | X14: =IF(N14="", K14*(0.001/100)*((100-R14)/100), K14*(N14/100)*((100-R14)/100)) -> 0
S15: =IF(L15="", J15*(100/100)*((100-O15)/100)*((100-Q15)/100), J15*(L15/100)*((100-O15)/100)*((100-Q15)/100)) -> 0 | T15: =IF(L15="", K15*(100/100)*((100-O15)/100)*((100-Q15)/100), K15*(L15/100)*((100-O15)/100)*((100-Q15)/100)) -> 0 | U15: =IF(M15="", J15*(3/100)*((100-O15)/100)*((100-Q15)/100), J15*(M15/100)*((100-O15)/100)*((100-Q15)/100)) -> 0 | V15: =IF(M15="", K15*(3/100)*((100-O15)/100)*((100-Q15)/100), K15*(M15/100)*((100-O15)/100)*((100-Q15)/100)) -> 0 | W15: =IF(N15="", J15*(0.001/100)*((100-R15)/100), J15*(N15/100)*((100-R15)/100)) -> 0 | X15: =IF(N15="", K15*(0.001/100)*((100-R15)/100), K15*(N15/100)*((100-R15)/100)) -> 0
S16: =IF(L16="", J16*(100/100)*((100-O16)/100)*((100-Q16)/100), J16*(L16/100)*((100-O16)/100)*((100-Q16)/100)) -> 0 | T16: 0 | U16: 0 | V16: 0 | W16: =IF(N16="", J16*(0.001/100)*((100-R16)/100), J16*(N16/100)*((100-R16)/100)) -> 0 | X16: =IF(N16="", K16*(0.001/100)*((100-R16)/100), K16*(N16/100)*((100-R16)/100)) -> 0
S17: =IF(L17="", J17*(100/100)*((100-O17)/100)*((100-Q17)/100), J17*(L17/100)*((100-O17)/100)*((100-Q17)/100)) -> 0 | T17: 0 | U17: 0 | V17: 0 | W17: =IF(N17="", J17*(0.001/100)*((100-R17)/100), J17*(N17/100)*((100-R17)/100)) -> 0 | X17: =IF(N17="", K17*(0.001/100)*((100-R17)/100), K17*(N17/100)*((100-R17)/100)) -> 0
R18: Totals: | S18: =SUM(S14:S17) -> 0 | T18: 0 | U18: 0 | V18: 0 | W18: 0 | X18: 0
C20: VOC Type: (pick from list)
C21: Crude Oil or Condensate VOC
C23: Emission Type: (pick from list)
C24: Steady State (continuous)
B26: Enter any notes here:

Sheet Tanks 4.0 (hidden)
B1: ='Facility Information'!C27 -> Company Name
B2: ='Facility Information'!C28 -> Site Name
B3: Tank Emissions - Tanks 4.0
B4: A) Enter information into the yellow boxes.
B5: B) VOC and H2S control efficiencies may be entered (if applicable).
B6: C) A reduction for produced water tank emissions calculated as oil/condensate may be entered.
B7: D) The tank vapor VOC, benzene, and H2S weight percents may be entered.
B8: E) Use the box provided below for entering any notes necessary (such as the source/justification for any calculation inputs).
B9: F) Make sure to answer the control device question.
B10: G) Make sure to select the correct VOC Type and Emission Type from the pull down menus below.
B12: Tanks 4.0 Software TANKS 4.0 SOFTWARE [FOR ESTIMATING WORKING AND BREATHING LOSSES FROM STORAGE TANKS]
B13: EPN | C13: Tank Identifier | D13: Throughput (gal/year) | E13: Turnovers per year | F13: Mixture/Component | G13: Basis for VP Calculations | H13: Vapor MW | I13: Total Uncontrolled Emissions (lb/hr) | J13: Total Uncontrolled Emissions (ton/yr) | K13: Tank Vapor VOC wt% | L13: Tank Vapor Benzene wt% | M13: Tank Vapor H2S wt% | N13: Percent Reduction for Produced Water Tank Calc. as Oil/Cond. (%) | O13: Are tank vapors (A) uncontrolled; (B) controlled by a flare, vapor combustor, thermal oxidizer, or vapor recovery unit (VRU); or (C) controlled by another type of control device? | P13: VOC Control Efficiency (%) | Q13: H2S Control Efficiency (%) | R13: VOC Results (lb/hr) | S13: VOC Results (tpy) | T13: Benzene Results (lb/hr) | U13: Benzene Results (tpy) | V13: H2S Results (lb/hr) | W13: H2S Results (tpy)
R14: =IF(K14="", I14*(100/100)*((100-N14)/100)*((100-P14)/100), I14*(K14/100)*((100-N14)/100)*((100-P14)/100)) -> 0 | S14: =IF(K14="", J14*(100/100)*((100-N14)/100)*((100-P14)/100), J14*(K14/100)*((100-N14)/100)*((100-P14)/100)) -> 0 | T14: =IF(L14="", I14*(3/100)*((100-N14)/100)*((100-P14)/100), I14*(L14/100)*((100-N14)/100)*((100-P14)/100)) -> 0 | U14: =IF(L14="", J14*(3/100)*((100-N14)/100)*((100-P14)/100), J14*(L14/100)*((100-N14)/100)*((100-P14)/100)) -> 0 | V14: =IF(M14="", I14*(0.001/100)*((100-Q14)/100), I14*(M14/100)*((100-Q14)/100)) -> 0 | W14: =IF(M14="", J14*(0.001/100)*((100-Q14)/100), J14*(M14/100)*((100-Q14)/100)) -> 0
R15: =IF(K15="", I15*(100/100)*((100-N15)/100)*((100-P15)/100), I15*(K15/100)*((100-N15)/100)*((100-P15)/100)) -> 0 | S15: =IF(K15="", J15*(100/100)*((100-N15)/100), J15*(K15/100)*((100-N15)/100)) -> 0 | T15: =IF(L15="", I15*(3/100)*((100-N15)/100)*((100-P15)/100), I15*(L15/100)*((100-N15)/100)*((100-P15)/100)) -> 0 | U15: =IF(L15="", J15*(3/100)*((100-N15)/100)*((100-P15)/100), J15*(L15/100)*((100-N15)/100)*((100-P15)/100)) -> 0 | V15: =IF(M15="", I15*(0.001/100)*((100-Q15)/100), I15*(M15/100)*((100-Q15)/100)) -> 0 | W15: =IF(M15="", J15*(0.001/100)*((100-Q15)/100), J15*(M15/100)*((100-Q15)/100)) -> 0
R16: 0 | S16: =IF(K16="", J16*(100/100)*((100-N16)/100), J16*(K16/100)*((100-N16)/100)) -> 0 | T16: 0 | U16: 0 | V16: =IF(M16="", I16*(0.001/100)*((100-Q16)/100), I16*(M16/100)*((100-Q16)/100)) -> 0 | W16: =IF(M16="", J16*(0.001/100)*((100-Q16)/100), J16*(M16/100)*((100-Q16)/100)) -> 0
R17: 0 | S17: =IF(K17="", J17*(100/100)*((100-N17)/100), J17*(K17/100)*((100-N17)/100)) -> 0 | T17: 0 | U17: 0 | V17: =IF(M17="", I17*(0.001/100)*((100-Q17)/100), I17*(M17/100)*((100-Q17)/100)) -> 0 | W17: =IF(M17="", J17*(0.001/100)*((100-Q17)/100), J17*(M17/100)*((100-Q17)/100)) -> 0
Q18: Totals: | R18: =SUM(R14:R17) -> 0 | S18: 0 | T18: 0 | U18: 0 | V18: 0 | W18: =SUM(W14:W17) -> 0
C20: VOC Type: (pick from list)
C21: Crude Oil or Condensate VOC
C23: Emission Type: (pick from list)
C24: Steady State (continuous)
B26: Enter any notes here:

Sheet Process Simulator (hidden)
B1: ='Facility Information'!C27 -> Company Name
B2: ='Facility Information'!C28 -> Site Name
B3: Tank Emissions - Process Simulator
B4: A) Enter information into the yellow boxes.
B5: B) VOC and H2S control efficiencies may be entered (if applicable).
B6: C) A reduction for produced water tank emissions calculated as oil/condensate may be entered.
B7: D) Use the box provided below for entering any notes necessary (such as the source/justification for any calculation inputs).
B8: E) Make sure to answer the control device question.
B9: F) Make sure to select the correct VOC Type and Emission Type from the pull down menus below.
B11: Process Simulator
B12: EPN | C12: Tank Identifier | D12: Throughput (gal/year) | E12: Stream Identification | F12: Turnovers per year | G12: Mixture/Component | H12: RVP (psia) | I12: Temperature (°F) | J12: Emissions Uncontrolled VOC (lb/hr) | K12: Emissions Uncontrolled VOC (ton/yr) | L12: Emissions Uncontrolled Benzene (lb/hr) | M12: Emissions Uncontrolled Benzene (ton/yr) | N12: Emissions Uncontrolled H2S (lb/hr) | O12: Emissions Uncontrolled H2S (ton/yr) | P12: Are tank vapors (A) uncontrolled; (B) controlled by a flare, vapor combustor, thermal oxidizer, or vapor recovery unit (VRU); or (C) controlled by another type of control device? | Q12: VOC Control Efficiency (%) | R12: H2S Control Efficiency (%) | S12: Percent Reduction for Produced Water Tank Calc. as Oil/Cond. (%) | T12: VOC Results (lb/hr) | U12: VOC Results (tpy) | V12: Benzene Results (lb/hr) | W12: Benzene Results (tpy) | X12: H2S Results (lb/hr) | Y12: H2S Results (tpy)
T13: =J13*((100-Q13)/100)*((100-S13)/100) -> 0 | U13: =K13*((100-Q13)/100)*((100-S13)/100) -> 0 | V13: =L13*((100-Q13)/100)*((100-S13)/100) -> 0 | W13: =M13*((100-Q13)/100)*((100-S13)/100) -> 0 | X13: =N13*((100-R13)/100) -> 0 | Y13: =O13*((100-R13)/100) -> 0
T14: =J14*((100-Q14)/100)*((100-S14)/100) -> 0 | U14: =K14*((100-Q14)/100)*((100-S14)/100) -> 0 | V14: =L14*((100-Q14)/100)*((100-S14)/100) -> 0 | W14: =M14*((100-Q14)/100)*((100-S14)/100) -> 0 | X14: =N14*((100-R14)/100) -> 0 | Y14: =O14*((100-R14)/100) -> 0
T15: =J15*((100-Q15)/100)*((100-S15)/100) -> 0 | U15: =K15*((100-Q15)/100)*((100-S15)/100) -> 0 | V15: =L15*((100-Q15)/100)*((100-S15)/100) -> 0 | W15: =M15*((100-Q15)/100)*((100-S15)/100) -> 0 | X15: =N15*((100-R15)/100) -> 0 | Y15: =O15*((100-R15)/100) -> 0
T16: =J16*((100-Q16)/100)*((100-S16)/100) -> 0 | U16: =K16*((100-Q16)/100)*((100-S16)/100) -> 0 | V16: =L16*((100-Q16)/100)*((100-S16)/100) -> 0 | W16: =M16*((100-Q16)/100)*((100-S16)/100) -> 0 | X16: =N16*((100-R16)/100) -> 0 | Y16: =O16*((100-R16)/100) -> 0
S17: Totals: | T17: =SUM(T13:T16) -> 0 | U17: 0 | V17: 0 | W17: 0 | X17: 0 | Y17: 0
C19: VOC Type: (pick from list)
C20: Crude Oil or Condensate VOC
C22: Emission Type: (pick from list)
C23: Steady State (continuous)
B25: Enter any notes here:

Sheet E&P Tanks L l HP OIL (hidden)
B1: ='Facility Information'!C27 -> Company Name
B2: ='Facility Information'!C28 -> Site Name
B3: Tank Emissions - E&P Tanks Low or High Pressure Oil Option
B4: A) Enter information into the yellow boxes.
B5: B) VOC and H2S control efficiencies may be entered (if applicable).
B6: C) A reduction for produced water tank emissions calculated as oil/condensate may be entered.
B7: D) Use the box provided below for entering any notes necessary (such as the source/justification for any calculation inputs).
B8: E) Make sure to answer the control device question.
B9: F) Make sure to select the correct VOC Type and Emission Type from the pull down menus below.
B11: E&P TANKS - LOW OR HIGH PRESSURE OIL [FOR ESTIMATING WORKING, BREATHING, AND FLASH LOSSES FROM STORAGE TANKS]
B12: EPN | C12: Tank Identifier | D12: Separator Pressure (psig) | E12: Separator Temperature (°F) | F12: Ambient Pressure (psia) | G12: Ambient Temperature (°F) | H12: C10+ MW | I12: C10+ SG | J12: Production Rate (bbl/day) | K12: API Gravity | L12: RVP (psia) | M12: Emissions Uncontrolled VOC (lb/hr) | N12: Emissions Uncontrolled VOC (ton/yr) | O12: Emissions Uncontrolled Benzene (lb/hr) | P12: Emissions Uncontrolled Benzene (ton/yr) | Q12: Emissions Uncontrolled H2S (lb/hr) | R12: Emissions Uncontrolled H2S (ton/yr) | S12: Are tank vapors (A) uncontrolled; (B) controlled by a flare, vapor combustor, thermal oxidizer, or vapor recovery unit (VRU); or (C) controlled by another type of control device? | T12: VOC Control Efficiency (%) | U12: H2S Control Efficiency (%) | V12: Percent Reduction for Produced Water Tank Calc. as Oil/Cond. (%) | W12: VOC Results (lb/hr) | X12: VOC Results (tpy) | Y12: Benzene Results (lb/hr) | Z12: Benzene Results (tpy) | AA12: H2S Results (lb/hr) | AB12: H2S Results (tpy)
W13: =M13*((100-T13)/100)*((100-V13)/100) -> 0 | X13: =N13*((100-T13)/100)*((100-V13)/100) -> 0 | Y13: =O13*((100-T13)/100)*((100-V13)/100) -> 0 | Z13: =P13*((100-T13)/100)*((100-V13)/100) -> 0 | AA13: =Q13*((100-U13)/100) -> 0 | AB13: =R13*((100-U13)/100) -> 0
W14: =M14*((100-T14)/100)*((100-V14)/100) -> 0 | X14: =N14*((100-T14)/100)*((100-V14)/100) -> 0 | Y14: =O14*((100-T14)/100)*((100-V14)/100) -> 0 | Z14: =P14*((100-T14)/100)*((100-V14)/100) -> 0 | AA14: =Q14*((100-U14)/100) -> 0 | AB14: =R14*((100-U14)/100) -> 0
W15: =M15*((100-T15)/100)*((100-V15)/100) -> 0 | X15: =N15*((100-T15)/100)*((100-V15)/100) -> 0 | Y15: =O15*((100-T15)/100)*((100-V15)/100) -> 0 | Z15: =P15*((100-T15)/100)*((100-V15)/100) -> 0 | AA15: =Q15*((100-U15)/100) -> 0 | AB15: =R15*((100-U15)/100) -> 0
W16: =M16*((100-T16)/100)*((100-V16)/100) -> 0 | X16: =N16*((100-T16)/100)*((100-V16)/100) -> 0 | Y16: =O16*((100-T16)/100)*((100-V16)/100) -> 0 | Z16: =P16*((100-T16)/100)*((100-V16)/100) -> 0 | AA16: =Q16*((100-U16)/100) -> 0 | AB16: =R16*((100-U16)/100) -> 0
V17: Totals: | W17: =SUM(W13:W16) -> 0 | X17: 0 | Y17: 0 | Z17: 0 | AA17: 0 | AB17: 0
C19: VOC Type: (pick from list)
C20: Crude Oil or Condensate VOC
C22: Emission Type: (pick from list)
C23: Steady State (continuous)
B25: Enter any notes here:

Sheet E&P Tanks LP Gas (hidden)
B1: ='Facility Information'!C27 -> Company Name
B2: ='Facility Information'!C28 -> Site Name
B3: Tank Emissions - E&P Tanks Low-Pressure Gas Option
B4: A) Enter information into the yellow boxes.
B5: B) VOC and H2S control efficiencies may be entered (if applicable).
B6: C) A reduction for produced water tank emissions calculated as oil/condensate may be entered.
B7: D) Use the box provided below for entering any notes necessary (such as the source/justification for any calculation inputs).
B8: E) Make sure to answer the control device question.
B9: F) Make sure to select the correct VOC Type and Emission Type from the pull down menus below.
B11: E&P TANKS - LOW PRESSURE GAS [FOR ESTIMATING WORKING, BREATHING, AND FLASH LOSSES FROM STORAGE TANKS]
B12: EPN | C12: Tank Identifier | D12: Separator Pressure (psig) | E12: Separator Temperature (°F) | F12: Molar GOR | G12: C10+ MW | H12: C10+ SG | I12: C7:C8:C9:C10+ ratio | J12: Production Rate (bbl/day) | K12: API Gravity | L12: RVP (psia) | M12: Emissions Uncontrolled VOC (lb/hr) | N12: Emissions Uncontrolled VOC (ton/yr) | O12: Emissions Uncontrolled Benzene (lb/hr) | P12: Emissions Uncontrolled Benzene (ton/yr) | Q12: Emissions Uncontrolled H2S (lb/hr) | R12: Emissions Uncontrolled H2S (ton/yr) | S12: Are tank vapors (A) uncontrolled; (B) controlled by a flare, vapor combustor, thermal oxidizer, or vapor recovery unit (VRU); or (C) controlled by another type of control device? | T12: VOC Control Efficiency (%) | U12: H2S Control Efficiency (%) | V12: Percent Reduction for Produced Water Tank Calc. as Oil/Cond. (%) | W12: VOC Results (lb/hr) | X12: VOC Results (tpy) | Y12: Benzene Results (lb/hr) | Z12: Benzene Results (tpy) | AA12: H2S Results (lb/hr) | AB12: H2S Results (tpy)
W13: =M13*((100-T13)/100)*((100-V13)/100) -> 0 | X13: =N13*((100-T13)/100)*((100-V13)/100) -> 0 | Y13: =O13*((100-T13)/100)*((100-V13)/100) -> 0 | Z13: =P13*((100-T13)/100)*((100-V13)/100) -> 0 | AA13: =Q13*((100-U13)/100) -> 0 | AB13: =R13*((100-U13)/100) -> 0
W14: =M14*((100-T14)/100)*((100-V14)/100) -> 0 | X14: =N14*((100-T14)/100)*((100-V14)/100) -> 0 | Y14: =O14*((100-T14)/100)*((100-V14)/100) -> 0 | Z14: =P14*((100-T14)/100)*((100-V14)/100) -> 0 | AA14: =Q14*((100-U14)/100) -> 0 | AB14: =R14*((100-U14)/100) -> 0
W15: =M15*((100-T15)/100)*((100-V15)/100) -> 0 | X15: =N15*((100-T15)/100)*((100-V15)/100) -> 0 | Y15: =O15*((100-T15)/100)*((100-V15)/100) -> 0 | Z15: =P15*((100-T15)/100)*((100-V15)/100) -> 0 | AA15: =Q15*((100-U15)/100) -> 0 | AB15: =R15*((100-U15)/100) -> 0
W16: =M16*((100-T16)/100)*((100-V16)/100) -> 0 | X16: =N16*((100-T16)/100)*((100-V16)/100) -> 0 | Y16: =O16*((100-T16)/100)*((100-V16)/100) -> 0 | Z16: =P16*((100-T16)/100)*((100-V16)/100) -> 0 | AA16: =Q16*((100-U16)/100) -> 0 | AB16: =R16*((100-U16)/100) -> 0
V17: Totals: | W17: =SUM(W13:W16) -> 0 | X17: 0 | Y17: 0 | Z17: 0 | AA17: 0 | AB17: 0
C19: VOC Type: (pick from list)
C20: Crude Oil or Condensate VOC
C22: Emission Type: (pick from list)
C23: Steady State (continuous)
B25: Enter any notes here:

Sheet E&P Tanks Stable Oil (hidden)
B1: ='Facility Information'!C27 -> Company Name
B2: ='Facility Information'!C28 -> Site Name
B3: Tank Emissions - E&P Tanks Stable Oil Option
B4: A) Enter information into the yellow boxes.
B5: B) VOC and H2S control efficiencies may be entered (if applicable).
B6: C) A reduction for produced water tank emissions calculated as oil/condensate may be entered.
B7: D) Use the box provided below for entering any notes necessary (such as the source/justification for any calculation inputs).
B8: E) Make sure to answer the control device question.
B9: F) Make sure to select the correct VOC Type and Emission Type from the pull down menus below.
B11: E&P TANKS STABLE OIL OPTION [FOR ESTIMATING WORKING AND BREATHING LOSSES FROM STORAGE TANKS]
B12: EPN | C12: Tank Identifier | D12: C10+ MW | E12: C10+ SG | F12: Production Rate (bbl/day) | G12: API Gravity | H12: RVP (psia) | I12: Bulk Temperature (°F) | J12: Emissions Uncontrolled VOC (lb/hr) | K12: Emissions Uncontrolled VOC (ton/yr) | L12: Emissions Uncontrolled Benzene (lb/hr) | M12: Emissions Uncontrolled Benzene (ton/yr) | N12: Emissions Uncontrolled H2S (lb/hr) | O12: Emissions Uncontrolled H2S (ton/yr) | P12: Are tank vapors (A) uncontrolled; (B) controlled by a flare, vapor combustor, thermal oxidizer, or vapor recovery unit (VRU); or (C) controlled by another type of control device? | Q12: VOC Control Efficiency (%) | R12: H2S Control Efficiency (%) | S12: Percent Reduction for Produced Water Tank Calc. as Oil/Cond. (%) | T12: VOC Results (lb/hr) | U12: VOC Results (tpy) | V12: Benzene Results (lb/hr) | W12: Benzene Results (tpy) | X12: H2S Results (lb/hr) | Y12: H2S Results (tpy)
T13: =J13*((100-Q13)/100)*((100-S13)/100) -> 0 | U13: =K13*((100-Q13)/100)*((100-S13)/100) -> 0 | V13: =L13*((100-Q13)/100)*((100-S13)/100) -> 0 | W13: =M13*((100-Q13)/100)*((100-S13)/100) -> 0 | X13: =N13*((100-R13)/100) -> 0 | Y13: =O13*((100-R13)/100) -> 0
T14: =J14*((100-Q14)/100)*((100-S14)/100) -> 0 | U14: =K14*((100-Q14)/100)*((100-S14)/100) -> 0 | V14: =L14*((100-Q14)/100)*((100-S14)/100) -> 0 | W14: =M14*((100-Q14)/100)*((100-S14)/100) -> 0 | X14: =N14*((100-R14)/100) -> 0 | Y14: =O14*((100-R14)/100) -> 0
T15: =J15*((100-Q15)/100)*((100-S15)/100) -> 0 | U15: =K15*((100-Q15)/100)*((100-S15)/100) -> 0 | V15: =L15*((100-Q15)/100)*((100-S15)/100) -> 0 | W15: =M15*((100-Q15)/100)*((100-S15)/100) -> 0 | X15: =N15*((100-R15)/100) -> 0 | Y15: =O15*((100-R15)/100) -> 0
T16: =J16*((100-Q16)/100)*((100-S16)/100) -> 0 | U16: =K16*((100-Q16)/100)*((100-S16)/100) -> 0 | V16: =L16*((100-Q16)/100)*((100-S16)/100) -> 0 | W16: =M16*((100-Q16)/100)*((100-S16)/100) -> 0 | X16: =N16*((100-R16)/100) -> 0 | Y16: =O16*((100-R16)/100) -> 0
S17: Totals: | T17: =SUM(T13:T16) -> 0 | U17: 0 | V17: 0 | W17: 0 | X17: 0 | Y17: 0
C19: VOC Type: (pick from list)
C20: Crude Oil or Condensate VOC
C22: Emission Type: (pick from list)
C23: Steady State (continuous)
B25: Enter any notes here:

Sheet E&P Tanks Geo (hidden)
B1: ='Facility Information'!C27 -> Company Name
B2: ='Facility Information'!C28 -> Site Name
B3: Tank Emissions - E&P Tanks Geographical Database Option
B4: A) Enter information into the yellow boxes.
B5: B) VOC and H2S control efficiencies may be entered (if applicable).
B6: C) A reduction for produced water tank emissions calculated as oil/condensate may be entered.
B7: D) Use the box provided below for entering any notes necessary (such as the source/justification for any calculation inputs).
B8: E) Make sure to answer the control device question.
B9: F) Make sure to select the correct VOC Type and Emission Type from the pull down menus below.
B11: E&P TANKS GEOGRAPHICAL DATABASE [FOR ESTIMATING WORKING, BREATHING, AND FLASH LOSSES FROM STORAGE TANKS]
E12: Case Parameters | I12: Actual Parameters
B13: EPN | C13: Tank Identifier | D13: Case # and Region | E13: API Gravity | F13: RVP (psia) | G13: Separator Pressure (psig) | H13: Separator Temperature (°F) | I13: API Gravity | J13: RVP (psia) | K13: Separator Pressure (psig) | L13: Separator Temperature (°F) | M13: Production Rate (bbl/day) | N13: Emissions Uncontrolled VOC (lb/hr) | O13: Emissions Uncontrolled VOC (ton/yr) | P13: Emissions Uncontrolled Benzene (lb/hr) | Q13: Emissions Uncontrolled Benzene (ton/yr) | R13: Emissions Uncontrolled H2S (lb/hr) | S13: Emissions Uncontrolled H2S (ton/yr) | T13: Are tank vapors (A) uncontrolled; (B) controlled by a flare, vapor combustor, thermal oxidizer, or vapor recovery unit (VRU); or (C) controlled by another type of control device? | U13: VOC Control Efficiency (%) | V13: H2S Control Efficiency (%) | W13: Percent Reduction for Produced Water Tank Calc. as Oil/Cond. (%) | X13: VOC Results (lb/hr) | Y13: VOC Results (tpy) | Z13: Benzene Results (lb/hr) | AA13: Benzene Results (tpy) | AB13: H2S Results (lb/hr) | AC13: H2S Results (tpy)
X14: =N14*((100-U14)/100)*((100-W14)/100) -> 0 | Y14: =O14*((100-U14)/100)*((100-W14)/100) -> 0 | Z14: =P14*((100-U14)/100)*((100-W14)/100) -> 0 | AA14: =Q14*((100-U14)/100)*((100-W14)/100) -> 0 | AB14: =R14*((100-V14)/100) -> 0 | AC14: =S14*((100-V14)/100) -> 0
X15: =N15*((100-U15)/100)*((100-W15)/100) -> 0 | Y15: =O15*((100-U15)/100)*((100-W15)/100) -> 0 | Z15: =P15*((100-U15)/100)*((100-W15)/100) -> 0 | AA15: =Q15*((100-U15)/100)*((100-W15)/100) -> 0 | AB15: =R15*((100-V15)/100) -> 0 | AC15: =S15*((100-V15)/100) -> 0
X16: 0 | Y16: 0 | Z16: 0 | AA16: 0 | AB16: 0 | AC16: 0
X17: 0 | Y17: 0 | Z17: 0 | AA17: =Q17*((100-U17)/100)*((100-W17)/100) -> 0 | AB17: =R17*((100-V17)/100) -> 0 | AC17: =S17*((100-V17)/100) -> 0
W18: Totals: | X18: =SUM(X14:X17) -> 0 | Y18: 0 | Z18: 0 | AA18: 0 | AB18: 0 | AC18: 0
C20: VOC Type: (pick from list)
C21: Crude Oil or Condensate VOC
C23: Emission Type: (pick from list)
C24: Steady State (continuous)
B26: Please explain why the use of the geographical database option is appropriate?
B28: Enter any notes here:

Sheet GOR (hidden)
C1: ='Facility Information'!C27 -> Company Name
C2: ='Facility Information'!C28 -> Site Name
C3: Tank Emissions - Lab Gas Oil Ratio (GOR) Method
C4: A) Enter information into the yellow boxes.
C5: B) VOC and H2S control efficiencies may be entered (if applicable).
C6: C) A reduction for produced water tank emissions calculated as oil/condensate may be entered.
C7: D) The tank vapor VOC, benzene, and H2S weight percents may be entered.
C8: E) Use the box provided below for entering any notes necessary (such as the source/justification for any calculation inputs).
C9: F) The table below can be used to calculate the flash gas molecular weight and the component weight percents if needed.
C10: G) Make sure to answer the control device question.
C11: H) Make sure to select the correct VOC Type and Emission Type from the pull down menus below.
B13: GOR [FOR ESTIMATING FLASH LOSSES FROM STORAGE TANKS]
B14: EPN | C14: Tank Identifier | D14: Flash Initial Press. (psig) | E14: Flash Initial Temp. (°F) | F14: Flash Final Press. (psig) | G14: Flash Final Temp. (°F) | H14: GOR (scf of flash gas/bbl of oil/cond. produced) | I14: Barrels of Oil or Condensate per day (bbl/day) | J14: Flash Gas Molecular Weight | K14: Flash Gas VOC wt% | L14: Flash Gas Benzene wt% | M14: Flash Gas H2S wt% | N14: Percent Reduction for Produced Water Tank Calc. as Oil/Cond. (%) | O14: Are tank vapors (A) uncontrolled; (B) controlled by a flare, vapor combustor, thermal oxidizer, or vapor recovery unit (VRU); or (C) controlled by another type of control device? | P14: VOC Control Efficiency (%) | Q14: H2S Control Efficiency (%) | R14: VOC Results (lb/hr) | S14: VOC Results (tpy) | T14: Benzene Results (lb/hr) | U14: Benzene Results (tpy) | V14: H2S Results (lb/hr) | W14: H2S Results (tpy)
R15: =IF(K15="", ((H15*I15*J15/379.4832/24))*(100/100)*((100-N15)/100)*((100-P15)/100), ((H15*I15*J15/379.4832/24))*(K15/100)*((100-N15)/100)*((100-P15)/100)) -> 0 | S15: =R15*(8760/2000) -> 0 | T15: =IF(L15="", ((H15*I15*J15/379.4832/24))*(3/100)*((100-N15)/100)*((100-P15)/100), ((H15*I15*J15/379.4832/24))*(L15/100)*((100-N15)/100)*((100-P15)/100)) -> 0 | U15: =T15*(8760/2000) -> 0 | V15: =IF(M15="", ((H15*I15*J15/379.4832/24))*(0.001/100)*((100-Q15)/100), ((H15*I15*J15/379.4832/24))*(M15/100)*((100-Q15)/100)) -> 0 | W15: =V15*(8760/2000) -> 0
R16: =IF(K16="", ((H16*I16*J16/379.4832/24))*(100/100)*((100-N16)/100)*((100-P16)/100), ((H16*I16*J16/379.4832/24))*(K16/100)*((100-N16)/100)*((100-P16)/100)) -> 0 | S16: =R16*(8760/2000) -> 0 | T16: =IF(L16="", ((H16*I16*J16/379.4832/24))*(3/100)*((100-N16)/100)*((100-P16)/100), ((H16*I16*J16/379.4832/24))*(L16/100)*((100-N16)/100)*((100-P16)/100)) -> 0 | U16: =T16*(8760/2000) -> 0 | V16: =IF(M16="", ((H16*I16*J16/379.4832/24))*(0.001/100)*((100-Q16)/100), ((H16*I16*J16/379.4832/24))*(M16/100)*((100-Q16)/100)) -> 0 | W16: =V16*(8760/2000) -> 0
R17: 0 | S17: 0 | T17: 0 | U17: 0 | V17: =IF(M17="", ((H17*I17*J17/379.4832/24))*(0.001/100)*((100-Q17)/100), ((H17*I17*J17/379.4832/24))*(M17/100)*((100-Q17)/100)) -> 0 | W17: 0
Q18: Totals: | R18: =SUM(R15:R17) -> 0 | S18: 0 | T18: 0 | U18: 0 | V18: 0 | W18: 0
C20: VOC Type: (pick from list)
C21: Crude Oil or Condensate VOC
C23: Emission Type: (pick from list)
C24: Steady State (continuous)
B26: Enter any notes here:
C28: GOR Calculator
C29: This table can be used to calculate the flash gas molecular weight and the component weight percents if needed, if the flash gas mole percents are entered. It can also calculate the overall VOC, benzene, and H2S flash emissions if the GOR and the oil/condensate throughput are entered.
C30: Gas Oil Ratio: | E30: in standard cubic feet of flash gas per barrel (SCF/bbl) of oil/condensate produced
C31: Barrels of Oil or Condensate per day:
C34: Flash Gas Speciation: | I34: Flash Gas MW = | J34: =F55/100 -> 0
C35: Component | D35: mole % | E35: Molecular Weight (grams/mole, lb/lb-mol) | F35: grams per 100 moles of gas | G35: weight %
C36: hydrogen | E36: 2.01588 | F36: =E36*D36 -> 0 | G36: =100*F36/$F$55 ->  | H36: Total gas emitted:
C37: helium | E37: 4.0026 | F37: =E37*D37 -> 0 | G37: =100*F37/$F$55 ->  | H37: lb/hr: | J37: =(D30*D31*J34)/(379.4832*24) -> 0
C38: nitrogen | E38: 28.0134 | F38: 0 | H38: tpy: | J38: =J37*4.38 -> 0
C39: CO2 | E39: 44.0095 | F39: 0
C40: H2S | E40: 34.08188 | F40: 0 | H40: VOC wt% = | J40: =SUM(G43:G54) -> 
C41: methane (C1) | E41: 16.04246 | F41: 0
C42: ethane (C2) | E42: 30.06904 | F42: 0 | H42: VOC, lb/hr: | J42: =J37*J40/100 -> 
C43: propane (C3) | E43: 44.09562 | F43: 0 | H43: VOC, tpy: | J43: =J42*4.38 -> 
C44: butanes (C4) | E44: 58.1222 | F44: 0
C45: pentanes (C5) | E45: 72.14878 | F45: 0 | H45: Benzene wt% = | J45: =G46 -> 
C46: benzene | E46: 78.11 | F46: 0
C47: other hexanes (C6) | E47: 86.18 | F47: 0 | H47: Benzene, lb/hr: | J47: =J37*J45/100 -> 
C48: toluene | E48: 92.14 | F48: 0 | H48: Benzene, tpy: | J48: =J47*4.38 -> 
C49: other heptanes (C7) | E49: 100.2 | F49: 0
C50: ethylbenzene | E50: 106.17 | F50: 0 | H50: H2S wt% = | J50: =G40 -> 
C51: xylenes (o, m, p) | E51: 106.17 | F51: 0
C52: other octanes (C8) | E52: 114.23 | F52: 0 | H52: H2S, lb/hr: | J52: =J37*J50/100 -> 
C53: nonanes (C9) | E53: 128.26 | F53: 0 | H53: H2S, tpy: | J53: =J52*4.38 -> 
C54: decanes plus (C10+) | F54: 0
C55: Totals: | D55: =SUM(D36:D54) -> 0 | E55: =((D36/100)*E36)+((D37/100)*E37)+((D38/100)*E38)+((D39/100)*E39)+((D40/100)*E40)+((D41/100)*E41)+((D42/100)*E42)+((D43/100)*E43)+((D44/100)*E44)+((D45/100)*E45)+((D46/100)*E46)+((D47/100)*E47)+((D48/100)*E48)+((D49/100)*E49)+((D50/100)*E50)+((D51/100)*E51)+((D52/100)*E52)+((D53/100)*E53)+((D54/100)*E54) -> 0 | F55: =SUM(F36:F54) -> 0 | G55: =SUM(G36:G54) -> 

Sheet GWR (hidden)
C1: ='Facility Information'!C27 -> Company Name
C2: ='Facility Information'!C28 -> Site Name
C3: Tank Emissions - Lab Gas Water Ratio (GWR) Method
C4: A) Enter information into the yellow boxes.
C5: B) VOC and H2S control efficiencies may be entered (if applicable).
C6: C) The tank vapor VOC, benzene, and H2S weight percents may be entered.
C7: D) Use the box provided below for entering any notes necessary (such as the source/justification for any calculation inputs).
C8: E) The table below can be used to calculate the flash gas molecular weight and the component weight percents if needed.
C9: F) Make sure to answer the control device question.
C10: G) Make sure to select the correct VOC Type and Emission Type from the pull down menus below.
B12: GWR [FOR ESTIMATING FLASH LOSSES FROM STORAGE TANKS]
B13: EPN | C13: Tank Identifier | D13: Flash Initial Press. (psig) | E13: Flash Initial Temp. (°F) | F13: Flash Final Press. (psig) | G13: Flash Final Temp. (°F) | H13: GWR (scf of flash gas/bbl of water produced) | I13: Barrels of Water per day (bbl/day) | J13: Flash Gas Molecular Weight | K13: Flash Gas VOC wt% | L13: Flash Gas Benzene wt% | M13: Flash Gas H2S wt% | N13: Are tank vapors (A) uncontrolled; (B) controlled by a flare, vapor combustor, thermal oxidizer, or vapor recovery unit (VRU); or (C) controlled by another type of control device? | O13: VOC Control Efficiency (%) | P13: H2S Control Efficiency (%) | Q13: VOC Results (lb/hr) | R13: VOC Results (tpy) | S13: Benzene Results (lb/hr) | T13: Benzene Results (tpy) | U13: H2S Results (lb/hr) | V13: H2S Results (tpy)
Q14: =IF(K14="", ((H14*I14*J14/379.4832/24))*(100/100)*((100-O14)/100), ((H14*I14*J14/379.4832/24))*(K14/100)*((100-O14)/100)) -> 0 | R14: =Q14*(8760/2000) -> 0 | S14: =IF(L14="", ((H14*I14*J14/379.4832/24))*(3/100)*((100-O14)/100), ((H14*I14*J14/379.4832/24))*(L14/100)*((100-O14)/100)) -> 0 | T14: =S14*(8760/2000) -> 0 | U14: =IF(M14="", ((H14*I14*J14/379.4832/24))*(0.001/100)*((100-P14)/100), ((H14*I14*J14/379.4832/24))*(M14/100)*((100-P14)/100)) -> 0 | V14: =U14*(8760/2000) -> 0
Q15: =IF(K15="", ((H15*I15*J15/379.4832/24))*(100/100)*((100-O15)/100), ((H15*I15*J15/379.4832/24))*(K15/100)*((100-O15)/100)) -> 0 | R15: =Q15*(8760/2000) -> 0 | S15: =IF(L15="", ((H15*I15*J15/379.4832/24))*(3/100)*((100-O15)/100), ((H15*I15*J15/379.4832/24))*(L15/100)*((100-O15)/100)) -> 0 | T15: =S15*(8760/2000) -> 0 | U15: =IF(M15="", ((H15*I15*J15/379.4832/24))*(0.001/100)*((100-P15)/100), ((H15*I15*J15/379.4832/24))*(M15/100)*((100-P15)/100)) -> 0 | V15: =U15*(8760/2000) -> 0
Q16: =IF(K16="", ((H16*I16*J16/379.4832/24))*(100/100)*((100-O16)/100), ((H16*I16*J16/379.4832/24))*(K16/100)*((100-O16)/100)) -> 0 | R16: =Q16*(8760/2000) -> 0 | S16: =IF(L16="", ((H16*I16*J16/379.4832/24))*(3/100)*((100-O16)/100), ((H16*I16*J16/379.4832/24))*(L16/100)*((100-O16)/100)) -> 0 | T16: =S16*(8760/2000) -> 0 | U16: =IF(M16="", ((H16*I16*J16/379.4832/24))*(0.001/100)*((100-P16)/100), ((H16*I16*J16/379.4832/24))*(M16/100)*((100-P16)/100)) -> 0 | V16: 0
P17: Totals: | Q17: =SUM(Q14:Q16) -> 0 | R17: 0 | S17: 0 | T17: 0 | U17: 0 | V17: 0
C19: VOC Type: (pick from list)
C20: Crude Oil or Condensate VOC
C22: Emission Type: (pick from list)
C23: Steady State (continuous)
B25: Enter any notes here:
C27: GWR Calculator
C28: This table can be used to calculate the flash gas molecular weight and the component weight percents if needed, if the flash gas mole percents are entered. It can also calculate the overall VOC, benzene, and H2S flash emissions if the GWR and the oil/condensate throughput are entered.
C29: Gas Water Ratio: | E29: in standard cubic feet of flash gas per barrel (SCF/bbl) of water produced
C30: Barrels of Oil or Condensate per day:
C33: Flash Gas Speciation: | I33: Flash Gas MW = | J33: =F54/100 -> 0
C34: Component | D34: mole % | E34: Molecular Weight (grams/mole, lb/lb-mol) | F34: grams per 100 moles of gas | G34: weight %
C35: hydrogen | E35: 2.01588 | F35: =E35*D35 -> 0 | G35: =100*F35/$F$54 ->  | H35: Total gas emitted:
C36: helium | E36: 4.0026 | F36: =E36*D36 -> 0 | G36: =100*F36/$F$54 ->  | H36: lb/hr: | J36: =(D29*D30*J33)/(379.4832*24) -> 0
C37: nitrogen | E37: 28.0134 | F37: 0 | H37: tpy: | J37: =J36*4.38 -> 0
C38: CO2 | E38: 44.0095 | F38: 0
C39: H2S | E39: 34.08188 | F39: 0 | H39: VOC wt% = | J39: =SUM(G42:G53) -> 
C40: methane (C1) | E40: 16.04246 | F40: 0
C41: ethane (C2) | E41: 30.06904 | F41: 0 | H41: VOC, lb/hr: | J41: =J36*J39/100 -> 
C42: propane (C3) | E42: 44.09562 | F42: 0 | H42: VOC, tpy: | J42: =J41*4.38 -> 
C43: butanes (C4) | E43: 58.1222 | F43: 0
C44: pentanes (C5) | E44: 72.14878 | F44: 0 | H44: Benzene wt% = | J44: =G45 -> 
C45: benzene | E45: 78.11 | F45: 0
C46: other hexanes (C6) | E46: 86.18 | F46: 0 | H46: Benzene, lb/hr: | J46: =J36*J44/100 -> 
C47: toluene | E47: 92.14 | F47: 0 | H47: Benzene, tpy: | J47: =J46*4.38 -> 
C48: other heptanes (C7) | E48: 100.2 | F48: 0
C49: ethylbenzene | E49: 106.17 | F49: 0 | H49: H2S wt% = | J49: =G39 -> 
C50: xylenes (o, m, p) | E50: 106.17 | F50: 0
C51: other octanes (C8) | E51: 114.23 | F51: 0 | H51: H2S, lb/hr: | J51: =J36*J49/100 -> 
C52: nonanes (C9) | E52: 128.26 | F52: 0 | H52: H2S, tpy: | J52: =J51*4.38 -> 
C53: decanes plus (C10+) | F53: 0
D54: =SUM(D35:D53) -> 0 | F54: =SUM(F35:F53) -> 0 | G54: =SUM(G35:G53) -> 

Sheet Vasquez-Beggs (hidden)
C1: ='Facility Information'!C27 -> Company Name
C2: ='Facility Information'!C28 -> Site Name
C3: Tank Emissions - Vasquez-Beggs Method | N3: hide | O3: hide | P3: hide | Q3: hide | R3: hide | S3: hide
C4: A) Enter information into the yellow boxes.
C5: B) VOC and H2S control efficiencies may be entered (if applicable).
C6: C) A reduction for produced water tank emissions calculated as oil/condensate may be entered.
C7: D) The tank vapor VOC, benzene, and H2S weight fractions may be entered.
C8: E) Use the box provided below for entering any notes necessary (such as the source/justification for any calculation inputs).
C9: F) There are constraints on the variable ranges as shown here. If a variable is outside of the range, use a different method. | J9: Acceptable Variable Ranges
C10: G) The following equations are used for this method: | J10: 40 | K10: >API> | L10: 16 | M10: °API
C11: SGx = Dissolved gas gravity at 100 psig = SGi [1.0+0.00005912*API*Ti*Log(Pi/114.7)] | J11: 5250 | K11: > P+Patm > | L11: 50 | M11: (psia)
C12: Rs = (C1 * SGx * Pi^C2) exp ((C3 * API) / (Ti + 460)) | J12: 295 | K12: > Ti > | L12: 70 | M12: (°F)
C13: THC = Rs * Q * MW * 1/385 scf/lb-mole * 365 D/Yr * 1 ton/2000 lbs | J13: 1.18 | K13: > SGi > | L13: 0.56 | M13: (MW/28.97)
C14: VOC = THC * Frac. of C3+ in the Stock Tank Vapor | J14: 125 | K14: > MW > | L14: 18 | M14: (lb/lb-mole)
C15: H) The constants C1, C2, and C3 vary as shown below based on the API gravity, specifically if the API gravity is less than 30° or if the API gravity is equal to or greater than than 30°. | J15: 1 | K15: > VOC > | L15: 0.5 | M15: fraction
E16: API < 30 | F16: API ≥ 30
D17: C1 | E17: 0.0362 | F17: 0.0178
D18: C2 | E18: 1.0937 | F18: 1.187
D19: C3 | E19: 25.724 | F19: 23.931
C20: I) Make sure to answer the control device question.
C21: J) Make sure to select the correct VOC Type and Emission Type from the pull down menus below.
B23: VASQUEZ-BEGGS GAS OIL RATIO CORRELATION [FOR ESTIMATING FLASH LOSSES FROM STORAGE TANKS]
B24: EPN | C24: Tank Identifier | D24: Stock Tank API Gravity | E24: Separator Pressure (psig) | F24: Separator Temperature (°F) | G24: Separator Gas Gravity at Initial Condition | H24: Stock Tank Barrels of Oil per day (BOPD) | I24: Stock Tank Gas Molecular Weight | J24: VOC (C3+) Fraction of Stock Tank Gas | K24: Benzene Fraction of Stock Tank Gas | L24: H2S Fraction of Stock Tank Gas | M24: Atmospheric Pressure (psia) | N24: In range? | O24: In range? | P24: In range? | Q24: In range? | R24: In range? | S24: In range? | T24: Are all variables in range? | U24: Calculated | V24: Calculated | W24: Calculated | X24: Calculated | Y24: Percent Reduction for Produced Water Tank Calc. as Oil/Cond. (%) | Z24: Are tank vapors (A) uncontrolled; (B) controlled by a flare, vapor combustor, thermal oxidizer, or vapor recovery unit (VRU); or (C) controlled by another type of control device? | AA24: VOC Control Efficiency (%) | AB24: H2S Control Efficiency (%) | AC24: VOC Results (lb/hr) | AD24: VOC Results (tpy) | AE24: Benzene Results (lb/hr) | AF24: Benzene Results (tpy) | AG24: H2S Results (lb/hr) | AH24: H2S Results (tpy)
B25: - | C25: - | D25: API | E25: P | F25: Ti | G25: SGi | H25: Q | I25: MW | J25: - | K25: - | L25: - | M25: Patm | N25: API | O25: P+Patm | P25: Ti | Q25: SGi | R25: MW | S25: VOC | T25: - | U25: SGx | V25: Rs | W25: THC Emissions (lb/hr) | X25: THC Emissions (ton/yr) | Y25: - | Z25: - | AA25: - | AB25: - | AC25: - | AD25: - | AE25: - | AF25: - | AG25: - | AH25: -
N26: =IF(AND(D26>=$L$10, D26<=$J$10), "Yes", "No") -> No | O26: =IF(AND((E26+M26)>=$L$11, (E26+M26)<=$J$11), "Yes", "No") -> No | P26: =IF(AND(F26>=$L$12, F26<=$J$12), "Yes", "No") -> No | Q26: =IF(AND(G26>=$L$13, G26<=$J$13), "Yes", "No") -> No | R26: =IF(AND(I26>=$L$14, I26<=$J$14), "Yes", "No") -> No | S26: =IF(AND(J26>=$L$15, J26<=$J$15), "Yes", "No") -> No | T26: =IF(AND(N26="Yes", O26="Yes", P26="Yes", Q26="Yes", R26="Yes", S26="Yes"), "Yes", "No") -> No | U26: =G26*(1+0.00005912*D26*F26*LOG((E26+14.7)/114.7)) -> 0 | V26: =IF(D26<30,($E$17*U26*POWER(E26+14.7,$E$18))*EXP(($E$19*D26)/(F26+460)),($F$17*U26*POWER(E26+14.7,$F$18))*EXP(($F$19*D26)/(F26+460))) -> 0 | W26: =X26*(2000/8760) -> 0 | X26: =V26*H26*I26*(1/385)*365*(1/2000) -> 0 | AC26: =IF(J26="", W26*(100/100)*((100-Y26)/100)*((100-AA26)/100), W26*(J26)*((100-Y26)/100)*((100-AA26)/100)) -> 0 | AD26: =IF(J26="", X26*(100/100)*((100-Y26)/100)*((100-AA26)/100), X26*(J26)*((100-Y26)/100)*((100-AA26)/100)) -> 0 | AE26: =IF(K26="", W26*(3/100)*((100-Y26)/100)*((100-AA26)/100), W26*(K26)*((100-Y26)/100)*((100-AA26)/100)) -> 0 | AF26: =IF(K26="", X26*(3/100)*((100-Y26)/100)*((100-AA26)/100), X26*(K26)*((100-Y26)/100)*((100-AA26)/100)) -> 0 | AG26: =IF(L26="", W26*(0.001/100)*((100-AB26)/100), W26*(L26))*((100-AB26)/100) -> 0 | AH26: =IF(L26="", X26*(0.001/100)*((100-AB26)/100), X26*(L26)*((100-AB26)/100)) -> 0
N27: =IF(AND(D27>=$L$10, D27<=$J$10), "Yes", "No") -> No | O27: =IF(AND((E27+M27)>=$L$11, (E27+M27)<=$J$11), "Yes", "No") -> No | P27: =IF(AND(F27>=$L$12, F27<=$J$12), "Yes", "No") -> No | Q27: =IF(AND(G27>=$L$13, G27<=$J$13), "Yes", "No") -> No | R27: =IF(AND(I27>=$L$14, I27<=$J$14), "Yes", "No") -> No | S27: =IF(AND(J27>=$L$15, J27<=$J$15), "Yes", "No") -> No | T27: =IF(AND(N27="Yes", O27="Yes", P27="Yes", Q27="Yes", R27="Yes", S27="Yes"), "Yes", "No") -> No | U27: =G27*(1+0.00005912*D27*F27*LOG((E27+14.7)/114.7)) -> 0 | V27: =IF(D27<30,($E$17*U27*POWER(E27+14.7,$E$18))*EXP(($E$19*D27)/(F27+460)),($F$17*U27*POWER(E27+14.7,$F$18))*EXP(($F$19*D27)/(F27+460))) -> 0 | W27: =X27*(2000/8760) -> 0 | X27: =V27*H27*I27*(1/385)*365*(1/2000) -> 0 | AC27: =IF(J27="", W27*(100/100)*((100-Y27)/100)*((100-AA27)/100), W27*(J27)*((100-Y27)/100)*((100-AA27)/100)) -> 0 | AD27: =IF(J27="", X27*(100/100)*((100-Y27)/100)*((100-AA27)/100), X27*(J27)*((100-Y27)/100)*((100-AA27)/100)) -> 0 | AE27: =IF(K27="", W27*(3/100)*((100-Y27)/100)*((100-AA27)/100), W27*(K27)*((100-Y27)/100)*((100-AA27)/100)) -> 0 | AF27: =IF(K27="", X27*(3/100)*((100-Y27)/100)*((100-AA27)/100), X27*(K27)*((100-Y27)/100)*((100-AA27)/100)) -> 0 | AG27: =IF(L27="", W27*(0.001/100)*((100-AB27)/100), W27*(L27))*((100-AB27)/100) -> 0 | AH27: =IF(L27="", X27*(0.001/100)*((100-AB27)/100), X27*(L27)*((100-AB27)/100)) -> 0
B28: Totals: | W28: =SUM(W26:W27) -> 0 | X28: =SUM(X26:X27) -> 0 | AB28: Totals: | AC28: =SUM(AC26:AC27) -> 0 | AD28: 0 | AE28: 0 | AF28: 0 | AG28: 0 | AH28: 0
C30: VOC Type: (pick from list)
C31: Crude Oil or Condensate VOC
C33: Emission Type: (pick from list)
C34: Steady State (continuous)
B36: Enter any notes here:

Sheet Loading Jobs (hidden)
C1: ='Facility Information'!C27 -> Company Name
C2: ='Facility Information'!C28 -> Site Name
C3: Loading Emissions
C4: A) Enter information into the yellow boxes.
C5: B) VOC and H2S control and collection efficiencies may be entered (if applicable).
C6: C) The vapor VOC, benzene, and H2S weight percents may be entered.
C7: D) There are two separate areas below to calculate hourly and annual loading emissions. Then underneath, there is a table summarizing the hourly and annual loading emissions.
C8: E) Use the box provided below for entering any notes necessary (such as the source/justification for any calculation inputs).
C9: F) If vapor balancing is being performed and the tank is not being controlled, contact TCEQ about the appropriate tank working loss calculation.
C10: G) Make sure to answer the control device question.
C11: H) Make sure to select the correct VOC Type and Emission Type from the pull down menus below.
C13: EPN
C14: Identifier
C16: Truck Hourly Loading Emission Calculations
C18: Using equation LL = 12.46* SPM/T from AP-42, Chapter 5, Section 5.2-4
C20: S = | E20: Saturation Factor | L20: Enter temperature in Fahrenheit °F): | N20: Temperature in Rankine (°R):
C21: P = | E21: True vapor pressure of liquid loaded (psia)
C22: M = | E22: Molecular Weight of Vapors (lb/lb-mole)
C23: T = | E23: Temperature of bulk liquid loaded (in degrees Rankine) | N23: =IF(L23="", "", L23+459.67) -> 
C24: Hourly Loading Rate | E24: Gallons Loaded per Hour
L25: Enter Barrels of Liquid | N25: Gallons of liquid:
C26: LL = | D26: =IF(D23=0, 0, 12.46*D20*D21*D22/D23) -> 0 | E26: Loading Loss (lb VOC released/1000 gal liquid loaded) | N26: =L26*42 -> 0
D27: =D26*D24/1000 -> 0 | E27: VOC Uncontrolled Emissions (lb/hr)
C29: Are loading vapors (A) uncontrolled; (B) controlled by a flare, vapor combustor, thermal oxidizer, or vapor recovery unit (VRU); or (C) controlled by another type of control device? | L29: Enter gallons per year | N29: Barrels per day:
N30: =L30/(42*365) -> 0
C31: Vapor Weight Percents
C32: VOC | E32: Vapor VOC wt% | L32: Enter any notes here:
C33: benzene | E33: Vapor Benzene wt%
C34: H2S | E34: Vapor H2S wt%
C36: Produced Water Reduction
E37: Percent Reduction for Produced Water Tank Calc. as Oil/Cond. (%)
C39: Uncontrolled Emissions
C40: VOC | D40: =IF(D32="", D27*(100/100)*(((100-D37)/100)),D27*(D32/100)*(((100-D37)/100))) -> 0 | E40: Emissions Uncontrolled VOC (lb/hr)
C41: benzene | D41: =IF(D33="", D27*(3/100)*(((100-D37)/100)),D27*(D33/100)*(((100-D37)/100))) -> 0 | E41: Emissions Uncontrolled Benzene (lb/hr)
C42: H2S | D42: =IF(D34="", D27*(0.001/100),D27*(D34/100)) -> 0 | E42: Emissions Uncontrolled H2S (lb/hr)
C44: Collection Efficiency
E45: Collection Efficiency (%)
C47: Vapors Uncaptured by Control Device
C48: VOC | D48: =IF(D45=0, 0, D40*((100-D45)/100)) -> 0 | E48: VOC Uncaptured Vapors (lb/hr)
C49: benzene | D49: =IF(D45=0, 0, D41*((100-D45)/100)) -> 0 | E49: benzene Uncaptured Vapors (lb/hr)
C50: H2S | D50: =IF(D45=0, 0, D42*((100-D45)/100)) -> 0 | E50: H2S Uncaptured Vapors (lb/hr)
C52: Vapors Captured by Control Device
C53: VOC | D53: =IF(D45=0, 0, D40*((D45)/100)) -> 0 | E53: VOC Uncaptured Vapors (lb/hr)
C54: benzene | D54: =IF(D45=0, 0, D41*((D45)/100)) -> 0 | E54: benzene Uncaptured Vapors (lb/hr)
C55: H2S | D55: =IF(D45=0, 0, D42*((D45)/100)) -> 0 | E55: H2S Uncaptured Vapors (lb/hr)
C57: Control Efficiency
C58: VOC | E58: VOC Control Efficiency (%)
C59: H2S | E59: H2S Control Efficiency (%)
C61: Vapors Uncontrolled by Control Device (Controlled Emissions)
C62: VOC | D62: =D40*(D45/100)*((100-D58)/100) -> 0 | E62: VOC Results (lb/hr)
C63: benzene | D63: =D41*(D45/100)*((100-D58)/100) -> 0 | E63: Benzene Results (lb/hr)
C64: H2S | D64: =D42*(D45/100)*((100-D59)/100) -> 0 | E64: H2S Results (lb/hr)
C66: Truck Annual Loading Emission Calculations
C68: Using equation LL = 12.46* SPM/T from AP-42, Chapter 5, Section 5.2-4
C70: S = | E70: = Saturation Factor | L70: Enter temperature in Fahrenheit °F): | N70: Temperature in Rankine (°R):
C71: P = | E71: = True vapor pressure of liquid loaded (psia)
C72: M = | E72: = Molecular Weight of Vapors (lb/lb-mole)
C73: T = | E73: = Temperature of bulk liquid loaded (in degrees Rankine) | N73: =IF(L73="", "", L73+459.67) -> 
C74: Annual Loading Rate | E74: = Gallons Loaded per Year
L75: Enter Barrels of Liquid | N75: Gallons of liquid:
C76: LL = | D76: =IF(D73=0, 0, 12.46*D70*D71*D72/D73) -> 0 | E76: Loading Loss (lb VOC released/1000 gal liquid loaded) | N76: =L76*42 -> 0
D77: =D76*D74/1000/2000 -> 0 | E77: VOC Uncontrolled Emissions (ton/yr)
C79: Vapor Weight Percents | L79: Enter gallons per year | N79: Barrels per day:
C80: VOC | E80: Vapor VOC wt%
C81: benzene | E81: Vapor Benzene wt% | N81: =L81/(42*365) -> 0
C82: H2S | E82: Vapor H2S wt%
C84: Produced Water Reduction | L84: Enter any notes here:
E85: Percent Reduction for Produced Water Tank Calc. as Oil/Cond. (%)
C87: Uncontrolled Emissions
C88: VOC | D88: =IF(D80="", D77*(100/100)*(((100-D85)/100)),D77*(D80/100)*(((100-D85)/100))) -> 0 | E88: Emissions Uncontrolled VOC (ton/yr)
C89: benzene | D89: =IF(D81="", D77*(3/100)*(((100-D85)/100)),D77*(D81/100)*(((100-D85)/100))) -> 0 | E89: Emissions Uncontrolled Benzene (ton/yr)
C90: H2S | D90: =IF(D82="", D77*(0.001/100),D77*(D82/100)) -> 0 | E90: Emissions Uncontrolled H2S (ton/yr)
C92: Collection Efficiency
E93: Collection Efficiency (%)
C95: Vapors Uncaptured by Control Device
C96: VOC | D96: =IF(D93=0, 0, D88*((100-D93)/100)) -> 0 | E96: VOC Uncaptured Vapors (ton/yr)
C97: benzene | D97: =IF(D93=0, 0, D89*((100-D93)/100)) -> 0 | E97: benzene Uncaptured Vapors (ton/yr)
C98: H2S | D98: =IF(D93=0, 0, D90*((100-D93)/100)) -> 0 | E98: H2S Uncaptured Vapors (ton/yr)
C100: Vapors Captured by Control Device
C101: VOC | D101: =IF(D93=0, 0, D88*((D93)/100)) -> 0 | E101: VOC Uncaptured Vapors (lb/hr)
C102: benzene | D102: =IF(D93=0, 0, D89*((D93)/100)) -> 0 | E102: benzene Uncaptured Vapors (lb/hr)
C103: H2S | D103: =IF(D93=0, 0, D90*((D93)/100)) -> 0 | E103: H2S Uncaptured Vapors (lb/hr)
C105: Control Efficiency
C106: VOC | E106: VOC Control Efficiency (%)
C107: H2S | E107: H2S Control Efficiency (%)
C109: Vapors Uncontrolled by Control Device (Controlled Emissions)
C110: VOC | D110: =D88*(D93/100)*((100-D106)/100) -> 0 | E110: VOC Results (ton/yr)
C111: benzene | D111: =D89*(D93/100)*((100-D106)/100) -> 0 | E111: Benzene Results (ton/yr)
C112: H2S | D112: =D90*(D93/100)*((100-D107)/100) -> 0 | E112: H2S Results (ton/yr)
C114: Loading Emissions
D115: Hourly Emissions (lb/hr) | E115: Annual Emissions (tpy)
C116: VOC | D116: =IF(H29="(A) uncontrolled", D40, IF(H29="(B) cont. by flare/ VC/TO/VRU", D48, IF(H29="(C) cont. by other control device", D48+D62, ""))) ->  | E116: =IF(H29="(A) uncontrolled", D88, IF(H29="(B) cont. by flare/ VC/TO/VRU", D96, IF(H29="(C) cont. by other control device", D96+D110, ""))) -> 
C117: benzene | D117: =IF(H29="(A) uncontrolled", D41, IF(H29="(B) cont. by flare/ VC/TO/VRU", D49, IF(H29="(C) cont. by other control device", D49+D63, ""))) ->  | E117: =IF(H29="(A) uncontrolled", D89, IF(H29="(B) cont. by flare/ VC/TO/VRU", D97, IF(H29="(C) cont. by other control device", D97+D111, ""))) -> 
C118: H2S | D118: =IF(H29="(A) uncontrolled", D42, IF(H29="(B) cont. by flare/ VC/TO/VRU", D50, IF(H29="(C) cont. by other control device", D50+D64, ""))) ->  | E118: =IF(H29="(A) uncontrolled", D90, IF(H29="(B) cont. by flare/ VC/TO/VRU", D98, IF(H29="(C) cont. by other control device", D98+D112, ""))) -> 
C120: VOC Type: (pick from list)
C121: Crude Oil or Condensate VOC
C123: Emission Type: (pick from list)
C124: Low Pressure Periodic
C126: Helpful Information:
C129: AP-42, Table 5.2-1
C130: S Saturation Factor | D130: Type of Loading
C131: 0.5 | D131: submerged loading of a clean cargo tank
C132: 0.6 | D132: submerged loading, dedicated normal service
C133: 1 | D133: submerged loading, dedicated vapor balance service
C134: 1.45 | D134: splash loading of a clean cargo tank
C135: 1.45 | D135: splash loading, dedicated normal service
C136: 1 | D136: splash loading, dedicated vapor balance service
C139: AP-42, Table 7.1-2 | D139: M Molecular Weight of Vapors at 60°F (lb/lb-mole) | G139: P True vapor pressure (psia)
C140: Liquid in Tank
G141: 40°F | H141: 50°F | I141: 60°F | J141: 70°F | K141: 80°F | L141: 90°F | M141: 100°F
C142: RVP 5 (crude oil) | D142: 50 | G142: 1.8 | H142: 2.3 | I142: 2.8 | J142: 3.4 | K142: 4 | L142: 4.8 | M142: 5.7
C143: RVP 7 (gasoline) | D143: 68 | G143: 2.3 | H143: 2.9 | I143: 3.5 | J143: 4.3 | K143: 5.2 | L143: 6.2 | M143: 7.4
C144: RVP 7.8 (gasoline) | D144: 68 | G144: 2.5929 | H144: 3.2079 | I144: 3.9363 | J144: 4.793 | K144: 5.7937 | L144: 6.9552 | M144: 8.2952
C145: RVP 8.3 (gasoline) | D145: 68 | G145: 2.788 | H145: 3.444 | I145: 4.2188 | J145: 5.1284 | K145: 6.1891 | L145: 7.4184 | M145: 8.8344
C146: RVP 10 (gasoline) | D146: 66 | G146: 3.4 | H146: 4.2 | I146: 5.2 | J146: 6.2 | K146: 7.4 | L146: 8.8 | M146: 10.5
C147: RVP 11.5 (gasoline) | D147: 65 | G147: 4.087 | H147: 4.9997 | I147: 6.069 | J147: 7.3132 | K147: 8.7519 | L147: 10.4053 | M147: 12.2949
C148: RVP 13 (gasoline) | D148: 62 | G148: 4.7 | H148: 5.7 | I148: 6.9 | J148: 8.3 | K148: 9.9 | L148: 11.7 | M148: 13.8
C149: RVP 13.5 (gasoline) | D149: 62 | G149: 4.932 | H149: 6.0054 | I149: 7.2573 | J149: 8.7076 | K149: 10.3774 | L149: 12.2888 | M149: 14.4646
C150: RVP 15 (gasoline) | D150: 60 | G150: 5.5802 | H150: 6.774 | I150: 8.1621 | J150: 9.7656 | K150: 11.6067 | L150: 13.7085 | M150: 16.0948
C151: Jet Naphtha | D151: 80 | G151: 0.8 | H151: 1 | I151: 1.3 | J151: 1.6 | K151: 1.9 | L151: 2.4 | M151: 2.7
C152: Disillate Fuel Oil No. 2 | D152: 130 | G152: 0.0031 | H152: 0.0045 | I152: 0.0065 | J152: 0.009 | K152: 0.012 | L152: 0.016 | M152: 0.022
C153: Jet Kerosene | D153: 130 | G153: 0.0041 | H153: 0.006 | I153: 0.0085 | J153: 0.011 | K153: 0.015 | L153: 0.021 | M153: 0.029
C154: Residual Oil No. 6 | D154: 190 | G154: 2e-05 | H154: 3e-05 | I154: 4e-05 | J154: 6e-05 | K154: 9e-05 | L154: 0.00013 | M154: 0.00019

Sheet Glycol Units (hidden)
B1: ='Facility Information'!C27 -> Company Name
B2: ='Facility Information'!C28 -> Site Name
B3: Glycol Dehydrator Emissions
B4: Calculated Using GRI-GLYCalc or a Process Simulator
B5: A) Enter information into the yellow boxes.
B6: B) VOC and H2S control efficiencies may be entered (if applicable). VOC, benzene, and H2S regenerator condenser efficiencies may also be entered (if applicable).
B7: C) There are two separate areas to enter information about the two emissions points, the flash tank and the regenerator. Then underneath, there is a table of the sum of flash tank and regenerator emissions.
B8: D) The program results and any lab analysis results used as the calculation basis must be provided.
B9: E) Use the box provided below for entering any notes necessary (such as the source/justification for any calculation inputs).
B10: F) Make sure to answer the control device question.
B11: G) Make sure to select the correct VOC Type and Emission Type from the pull down menus below.
B13: EPN
B14: Identifier
B16: Glycol Dehydrator Unit Information
B17: Are you using GLYCalc or a Process Simulator?
B18: GLYCalc Calculation Method (if using GLYCalc)
B19: Type of Glycol Used:
B20: Annual Hours of Operation (hrs/yr):
B21: Dry Gas Flow Rate (MMscf/day)
B22: Laboratory Wet Gas Analysis Provided? If not, explain why. (Use notes box below if more space needed.)
B23: Date of Sample:
B24: Is sample site specific or representative? If representative, please justify. (Use notes box below if more space needed.)
B25: At what point in the process was the sample taken?
B26: Wet Gas Temperature (°F)
B27: Wet Gas Pressure (psig)
B28: Lean Glycol Pump Type
B29: Lean Glycol Pump Make and Model
B30: Lean Glycol Flow Rate (gpm)
B31: Number of Pump Stokes per Minute for the Lean Glycol Pump (pump strokes/min, if applicable)
B32: Flash Tank Temperature (°F)
B33: Flash Tank Pressure (psig)
B35: Flash Tank
B36: Is there a flash tank? (If no, leave the inputs in this block blank.) | D36: -
C38: lb/hr | D38: tpy
B39: Emissions Uncontrolled VOC,(lb/hr, tpy)
B40: Emissions Uncontrolled Benzene, (lb/hr, tpy)
B41: Emissions Uncontrolled H2S, (lb/hr, tpy)
B42: Are flash tank vapors (A) uncontrolled; (B) controlled by a flare, vapor combustor, thermal oxidizer, or vapor recovery unit (VRU); or (C) controlled by another type of control device? | D42: -
B43: VOC Control Efficiency (%) | D43: -
B44: H2S Control Efficiency (%) | D44: -
B45: VOC Results, (lb/hr, tpy) | C45: =C39*((100-C43)/100) -> 0 | D45: =D39*((100-C43)/100) -> 0
B46: Benzene Results, (lb/hr, tpy) | C46: =C40*((100-C43)/100) -> 0 | D46: =D40*((100-C43)/100) -> 0
B47: H2S Results, (lb/hr, tpy) | C47: =C41*((100-C44)/100) -> 0 | D47: =D41*((100-C44)/100) -> 0
A48: hide | B48: Hidden Flash Tank Results (Pull values from here for the Emissions Summary table unless (B) is selected; if B is selected, put zeroes in the emissions summary table.)
A49: hide | B49: VOC Results, (lb/hr, tpy) | C49: =IF(OR($C$42="(A) uncontrolled", $C$42="(C) cont. by other control device"), C45, IF((OR($C$42= "(B) cont. by flare/ VC/TO/VRU", $C$36="No")), 0, "Answer vapor control question.")) -> Answer vapor control question. | D49: Answer vapor control question.
A50: hide | B50: Benzene Results, (lb/hr, tpy) | C50: Answer vapor control question. | D50: Answer vapor control question.
A51: hide | B51: H2S Results, (lb/hr, tpy) | C51: Answer vapor control question. | D51: Answer vapor control question.
B53: Regenerator
C54: lb/hr | D54: tpy
B55: Emissions Uncontrolled VOC (lb/hr, tpy)
B56: Emissions Uncontrolled Benzene, (lb/hr, tpy)
B57: Emissions Uncontrolled H2S, (lb/hr, tpy)
B58: Are regenerator vapors controlled by a condenser? | D58: -
B59: VOC Condenser Efficiency (%) - if applicable | D59: -
B60: Benzene Condenser Efficiency (%) - if applicable | D60: -
B61: H2S Condenser Efficiency (%) - if applicable | D61: -
B62: Are regenerator vapors (A) uncontrolled; (B) controlled by a flare, vapor combustor, thermal oxidizer, or vapor recovery unit (VRU); or (C) controlled by another type of control device? | D62: -
B63: VOC Control Efficiency (%) | D63: -
B64: H2S Control Efficiency (%) | D64: -
B65: VOC Results, (lb/hr, tpy) | C65: =C55*((100-C59)/100)*((100-C63)/100) -> 0 | D65: =D55*((100-C59)/100)*((100-C63)/100) -> 0
B66: Benzene Results, (lb/hr, tpy) | C66: =C56*((100-C60)/100)*((100-C63)/100) -> 0 | D66: =D56*((100-C60)/100)*((100-C63)/100) -> 0
B67: H2S Results, (lb/hr, tpy) | C67: =C57*((100-C61)/100)*((100-C64)/100) -> 0 | D67: =D57*((100-C61)/100)*((100-C64)/100) -> 0
A68: hide | B68: Hidden Regenerator Results (Pull values from here for the Emissions Summary table unless (B) is selected; if B is selected, put zeroes in the emissions summary table.)
A69: hide | B69: VOC Results, (lb/hr, tpy) | C69: =IF(OR($C$62="(A) uncontrolled", $C$62="(C) cont. by other control device"), C65, IF(($C$62= "(B) cont. by flare/ VC/TO/VRU"), 0, "Answer vapor control question.")) -> Answer vapor control question. | D69: =IF(OR($C$62="(A) uncontrolled", $C$62="(C) cont. by other control device"), D65, IF(($C$62= "(B) cont. by flare/ VC/TO/VRU"), 0, "Answer vapor control question.")) -> Answer vapor control question.
A70: hide | B70: Benzene Results, (lb/hr, tpy) | C70: =IF(OR($C$62="(A) uncontrolled", $C$62="(C) cont. by other control device"), C66, IF(($C$62= "(B) cont. by flare/ VC/TO/VRU"), 0, "Answer vapor control question.")) -> Answer vapor control question. | D70: =IF(OR($C$62="(A) uncontrolled", $C$62="(C) cont. by other control device"), D66, IF(($C$62= "(B) cont. by flare/ VC/TO/VRU"), 0, "Answer vapor control question.")) -> Answer vapor control question.
A71: hide | B71: H2S Results, (lb/hr, tpy) | C71: =IF(OR($C$62="(A) uncontrolled", $C$62="(C) cont. by other control device"), C67, IF(($C$62= "(B) cont. by flare/ VC/TO/VRU"), 0, "Answer vapor control question.")) -> Answer vapor control question. | D71: =IF(OR($C$62="(A) uncontrolled", $C$62="(C) cont. by other control device"), D67, IF(($C$62= "(B) cont. by flare/ VC/TO/VRU"), 0, "Answer vapor control question.")) -> Answer vapor control question.
B73: Sum of Flash Tank and Regenerator Results
C74: lb/hr | D74: tpy
B75: VOC Results | C75: =IF(OR(C49="Answer vapor control question.",C69="Answer vapor control question."), "Answer vapor control question.", C49+C69) -> Answer vapor control question. | D75: =IF(OR(D49="Answer vapor control question.",D69="Answer vapor control question."), "Answer vapor control question.", D49+D69) -> Answer vapor control question.
B76: Benzene Results | C76: =IF(OR(C50="Answer vapor control question.",C70="Answer vapor control question."), "Answer vapor control question.", C50+C70) -> Answer vapor control question. | D76: Answer vapor control question.
B77: H2S Results | C77: Answer vapor control question. | D77: =IF(OR(D51="Answer vapor control question.",D71="Answer vapor control question."), "Answer vapor control question.", D51+D71) -> Answer vapor control question.
B79: VOC Type: (pick from list)
B80: Natural Gas VOC
B82: Emission Type: (pick from list)
B83: Steady State (continuous)
B85: Federal Applicability
B86: 40 CFR Part 63 - Subpart HH
B87: All area sources, with TEG dehydration units, will have some requirements under the rule. Emission reduction requirements may apply or only recordkeeping requirements may apply.
B88: Is this subpart applicable?
B89: If yes, how will compliance be achieved? If no, please explain why.
B91: Enter any notes here:

Sheet Amine Units (hidden)
B1: ='Facility Information'!C27 -> Company Name
B2: ='Facility Information'!C28 -> Site Name
B3: Amine Unit Emissions
B4: Calculated Using AmineCalc or a Process Simulator
B5: A) Enter information into the yellow boxes.
B6: B) VOC and H2S control efficiencies may be entered (if applicable).
B7: C) There are two separate areas to enter information about the two emissions points, the flash tank and the regenerator. Then underneath, there is a table of the sum of flash tank and regenerator emissions.
B8: D) The program results and any lab analysis results used as the calculation basis must be provided.
B9: E) Use the box provided below for entering any notes necessary (such as the source/justification for any calculation inputs).
B10: F) Make sure to answer the control device question.
B11: G) Make sure to select the correct VOC Type and Emission Type from the pull down menus below.
B13: EPN
B14: Identifier
B16: Amine Unit Information
B17: Are you using AmineCalc or a Process Simulator?
B18: AmineCalc Model Selection (if using AmineCalc):
B19: Type of Amine Used:
B20: Annual Hours of Operation (hrs/yr):
B21: Feed Gas Flow Rate (MMscf/day):
B22: Laboratory Feed Gas Analysis Provided? If not, explain why. (Use notes box below if more space needed.)
B23: Date of Sample:
B24: Is sample site specific or representative? If representative, please justify. (Use notes box below if more space needed.)
B25: At what point in the process was the sample taken?
B26: Feed Gas Temperature (°F)
B27: Feed Gas Pressure (psia)
B28: Lean Amine Flow Rate (gpm)
B29: Flash Tank Temperature (°F)
B30: Flash Tank Pressure (psia)
B32: Flash Tank
B33: Is there a flash tank? (If no, leave the inputs in this block blank.) | D33: -
C35: lb/hr | D35: tpy
B36: Emissions Uncontrolled VOC,(lb/hr, tpy)
B37: Emissions Uncontrolled Benzene, (lb/hr, tpy)
B38: Emissions Uncontrolled H2S, (lb/hr, tpy)
B39: Are flash tank vapors (A) uncontrolled; (B) controlled by a flare, vapor combustor, thermal oxidizer, or vapor recovery unit (VRU); or (C) controlled by another type of control device? | D39: -
B40: VOC Control Efficiency (%) | D40: -
B41: H2S Control Efficiency (%) | D41: -
B42: VOC Results, (lb/hr, tpy) | C42: =C36*((100-C40)/100) -> 0 | D42: =D36*((100-C40)/100) -> 0
B43: Benzene Results, (lb/hr, tpy) | C43: =C37*((100-C40)/100) -> 0 | D43: =D37*((100-C40)/100) -> 0
B44: H2S Results, (lb/hr, tpy) | C44: =C38*((100-C41)/100) -> 0 | D44: =D38*((100-C41)/100) -> 0
A45: hide | B45: Hidden Flash Tank Results (Pull values from here for the Emissions Summary table unless (B) is selected; if B is selected, put zeroes in the emissions summary table.)
A46: hide | B46: VOC Results, (lb/hr, tpy) | C46: =IF(OR($C$39="(A) uncontrolled", $C$39="(C) cont. by other control device"), C42, IF((OR($C$39= "(B) cont. by flare/ VC/TO/VRU", $C$33="No")), 0, "Answer vapor control question.")) -> Answer vapor control question. | D46: =IF(OR($C$39="(A) uncontrolled", $C$39="(C) cont. by other control device"), D42, IF((OR($C$39= "(B) cont. by flare/ VC/TO/VRU", $C$33="No")), 0, "Answer vapor control question.")) -> Answer vapor control question.
A47: hide | B47: Benzene Results, (lb/hr, tpy) | C47: =IF(OR($C$39="(A) uncontrolled", $C$39="(C) cont. by other control device"), C43, IF((OR($C$39= "(B) cont. by flare/ VC/TO/VRU", $C$33="No")), 0, "Answer vapor control question.")) -> Answer vapor control question. | D47: =IF(OR($C$39="(A) uncontrolled", $C$39="(C) cont. by other control device"), D43, IF((OR($C$39= "(B) cont. by flare/ VC/TO/VRU", $C$33="No")), 0, "Answer vapor control question.")) -> Answer vapor control question.
A48: hide | B48: H2S Results, (lb/hr, tpy) | C48: Answer vapor control question. | D48: =IF(OR($C$39="(A) uncontrolled", $C$39="(C) cont. by other control device"), D44, IF((OR($C$39= "(B) cont. by flare/ VC/TO/VRU", $C$33="No")), 0, "Answer vapor control question.")) -> Answer vapor control question.
B50: Regenerator
C51: lb/hr | D51: tpy
B52: Emissions Uncontrolled VOC (lb/hr, tpy)
B53: Emissions Uncontrolled Benzene, (lb/hr, tpy)
B54: Emissions Uncontrolled H2S, (lb/hr, tpy)
B55: Are regenerator vapors (A) uncontrolled; (B) controlled by a flare, vapor combustor, thermal oxidizer, or vapor recovery unit (VRU); or (C) controlled by another type of control device? | D55: -
B56: VOC Control Efficiency (%) | D56: -
B57: H2S Control Efficiency (%) | D57: -
B58: VOC Results, (lb/hr, tpy) | C58: =C52*((100-C56)/100) -> 0 | D58: =D52*((100-C56)/100) -> 0
B59: Benzene Results, (lb/hr, tpy) | C59: =C53*((100-C56)/100) -> 0 | D59: =D53*((100-C56)/100) -> 0
B60: H2S Results, (lb/hr, tpy) | C60: =C54*((100-C57)/100) -> 0 | D60: =D54*((100-C57)/100) -> 0
A61: hide | B61: Hidden Regenerator Results (Pull values from here for the Emissions Summary table unless (B) is selected; if B is selected, put zeroes in the emissions summary table.)
A62: hide | B62: VOC Results, (lb/hr, tpy) | C62: =IF(OR($C$55="(A) uncontrolled", $C$55="(C) cont. by other control device"), C58, IF(($C$55= "(B) cont. by flare/ VC/TO/VRU"), 0, "Answer vapor control question.")) -> Answer vapor control question. | D62: =IF(OR($C$55="(A) uncontrolled", $C$55="(C) cont. by other control device"), D58, IF(($C$55= "(B) cont. by flare/ VC/TO/VRU"), 0, "Answer vapor control question.")) -> Answer vapor control question.
A63: hide | B63: Benzene Results, (lb/hr, tpy) | C63: Answer vapor control question. | D63: =IF(OR($C$55="(A) uncontrolled", $C$55="(C) cont. by other control device"), D59, IF(($C$55= "(B) cont. by flare/ VC/TO/VRU"), 0, "Answer vapor control question.")) -> Answer vapor control question.
A64: hide | B64: H2S Results, (lb/hr, tpy) | C64: Answer vapor control question. | D64: Answer vapor control question.
B66: Sum of Flash Tank and Regenerator Results
C67: lb/hr | D67: tpy
B68: VOC Results | C68: =IF(OR(C46="Answer vapor control question.", C62="Answer vapor control question."), "Answer vapor control question.", C46+C62) -> Answer vapor control question. | D68: =IF(OR(D46="Answer vapor control question.", D62="Answer vapor control question."), "Answer vapor control question.", D46+D62) -> Answer vapor control question.
B69: Benzene Results | C69: =IF(OR(C47="Answer vapor control question.", C63="Answer vapor control question."), "Answer vapor control question.", C47+C63) -> Answer vapor control question. | D69: Answer vapor control question.
B70: H2S Results | C70: Answer vapor control question. | D70: =IF(OR(D48="Answer vapor control question.", D64="Answer vapor control question."), "Answer vapor control question.", D48+D64) -> Answer vapor control question.
B72: VOC Type: (pick from list)
B73: Natural Gas VOC
B75: Emission Type: (pick from list)
B76: Steady State (continuous)
B78: Federal Applicability
B79: 40 CFR Part 60 - Subpart LLL
B80: Is this subpart applicable?
B81: If yes, how will compliance be achieved? If no, please explain why.
B83: Enter any notes here:

Sheet Vapor Recovery Units (hidden)
B1: ='Facility Information'!C27 -> Company Name
B2: ='Facility Information'!C28 -> Site Name
B3: Vapor Recovery Unit Emissions
B4: A) Enter information into the yellow boxes.
B5: B) See notes/instructions incuded below.
B6: C) Use the box provided below for entering any notes necessary (such as the source/justification for any calculation inputs).
B7: D) Make sure to select the correct Emission Type from the pull down menu below.
B9: FIN
B10: Identifier
B12: Is this unit a mechanical VRU (mVRU) or a liquid VRU (lVRU)? Pick from list.
B13: Annual Hours of Operation:
B14: VOC percent control efficiency (%):
B15: H2S percent control efficiency (%):
B17: Stream Information
B18: Each numbered column represents a stream. The twelve columns are for any streams sent to the VRU, such as "tank 1", "glycol flash tank", etc. Under the column numbers, these columns should be labeled with the stream name. Information only needs to be entered for the number of streams sent to the VRU. If for example, there are only two process/waste streams routed to the VRU, only colums 1and 2 need to be filled out.
B19: Stream Sent to VRU No. | C19: 1 | D19: 2 | E19: 3 | F19: 4 | G19: 5 | H19: 6 | I19: 7 | J19: 8 | K19: 9 | L19: 10 | M19: 11 | N19: 12 | O19: Total
B20: Stream Sent to VRU Name (Enter Names of Each Stream Here) | O20: -
B21: Amount of Time Stream Routed to VRU (hrs/yr) | O21: -
B23: It is suggested that you link these cells below to the cells in the other tabs of this spreadsheet which contain the calculated uncontrolled emissions for the stream.
B24: Mass Flow Rates of the Vapors Sent to this Control Device, Hourly Basis (lb/hr)
B25: Stream Sent to VRU No. | C25: =IF(C19="", "", C19) -> 1 | D25: =IF(D19="", "", D19) -> 2 | E25: 3 | F25: 4 | G25: 5 | H25: 6 | I25: 7 | J25: 8 | K25: 9 | L25: 10 | M25: 11 | N25: =IF(N19="", "", N19) -> 12 | O25: Total
B26: Stream Sent to VRU Name | C26: =IF(C20="", "", C20) ->  | L26: =IF(L20="", "", L20) ->  | O26: -
B27: H2S | O27: =SUM(C27:N27) -> 0
B28: Crude or Condensate VOC | O28: =SUM(C28:N28) -> 0
B29: Natural Gas VOC | O29: 0
B30: Total VOC | O30: 0
B31: benzene | O31: 0
B32: Mass Flow Rates of the Vapors Sent to this Control Device, Annual Basis (tpy)
B33: H2S | O33: =SUM(C33:N33) -> 0
B34: Crude or Condensate VOC | O34: =SUM(C34:N34) -> 0
B35: Natural Gas VOC | O35: =SUM(C35:N35) -> 0
B36: Total VOC | O36: 0
B37: benzene | O37: =SUM(C37:N37) -> 0
B39: Controlled Emissions
B40: Hourly (lb/hr)
B41: Stream Sent to VRU No. | C41: =IF(C19="", "", C19) -> 1 | D41: =IF(D19="", "", D19) -> 2 | E41: 3 | F41: 4 | G41: 5 | H41: 6 | I41: 7 | J41: 8 | K41: 9 | L41: 10 | M41: 11 | N41: 12 | O41: Total
B42: Stream Sent to VRU Name | C42: =IF(C20="", "", C20) ->  | O42: -
B43: H2S | C43: =C27*(100-$C$15)/100 -> 0 | D43: =D27*(100-$C$15)/100 -> 0 | E43: 0 | F43: 0 | G43: 0 | H43: 0 | I43: 0 | J43: 0 | K43: 0 | L43: 0 | M43: 0 | N43: 0 | O43: =SUM(C43:N43) -> 0
B44: Crude or Condensate VOC | C44: =C28*(100-$C$14)/100 -> 0 | D44: =D28*(100-$C$14)/100 -> 0 | E44: 0 | F44: 0 | G44: 0 | H44: 0 | I44: 0 | J44: 0 | K44: 0 | L44: 0 | M44: 0 | N44: 0 | O44: =SUM(C44:N44) -> 0
B45: Natural Gas VOC | C45: =C29*(100-$C$14)/100 -> 0 | D45: 0 | E45: 0 | F45: 0 | G45: 0 | H45: 0 | I45: 0 | J45: 0 | K45: 0 | L45: 0 | M45: 0 | N45: 0 | O45: =SUM(C45:N45) -> 0
B46: Total VOC | C46: =C30*(100-$C$14)/100 -> 0 | D46: 0 | E46: 0 | F46: 0 | G46: 0 | H46: 0 | I46: 0 | J46: 0 | K46: 0 | L46: 0 | M46: 0 | N46: 0 | O46: =SUM(C46:N46) -> 0
B47: benzene | C47: =C31*(100-$C$14)/100 -> 0 | D47: 0 | E47: 0 | F47: 0 | G47: 0 | H47: 0 | I47: 0 | J47: 0 | K47: 0 | L47: 0 | M47: 0 | N47: =N31*(100-$C$14)/100 -> 0 | O47: =SUM(C47:N47) -> 0
B48: Annual (tpy)
B49: Stream Sent to VRU No. | C49: =IF(C19="", "", C19) -> 1 | D49: =IF(D19="", "", D19) -> 2 | E49: 3 | F49: 4 | G49: 5 | H49: 6 | I49: 7 | J49: 8 | K49: 9 | L49: 10 | M49: 11 | N49: 12 | O49: Total
B50: Stream Sent to VRU Name | C50: =IF(C20="", "", C20) ->  | O50: -
B51: H2S | C51: =C33*(100-$C$15)/100 -> 0 | D51: =D33*(100-$C$15)/100 -> 0 | E51: 0 | F51: 0 | G51: 0 | H51: 0 | I51: 0 | J51: 0 | K51: 0 | L51: 0 | M51: 0 | N51: 0 | O51: =SUM(C51:N51) -> 0
B52: Crude or Condensate VOC | C52: =C34*(100-$C$14)/100 -> 0 | D52: =D34*(100-$C$14)/100 -> 0 | E52: 0 | F52: 0 | G52: 0 | H52: 0 | I52: 0 | J52: 0 | K52: 0 | L52: 0 | M52: 0 | N52: 0 | O52: =SUM(C52:N52) -> 0
B53: Natural Gas VOC | C53: =C35*(100-$C$14)/100 -> 0 | D53: 0 | E53: 0 | F53: 0 | G53: 0 | H53: 0 | I53: 0 | J53: 0 | K53: 0 | L53: 0 | M53: 0 | N53: 0 | O53: 0
B54: Total VOC | C54: =C36*(100-$C$14)/100 -> 0 | D54: 0 | E54: 0 | F54: 0 | G54: 0 | H54: 0 | I54: 0 | J54: 0 | K54: 0 | L54: 0 | M54: 0 | N54: 0 | O54: 0
B55: benzene | C55: =C37*(100-$C$14)/100 -> 0 | D55: 0 | E55: 0 | F55: 0 | G55: 0 | H55: 0 | I55: 0 | J55: 0 | K55: 0 | L55: 0 | M55: 0 | N55: 0 | O55: 0
B58: Flare/Vapor Combustor Total Emissions
C59: Hourly Emissions (lb/hr) | D59: Annual Emissions (tpy)
B60: Total Crude Oil or Condensate VOC | C60: =O44 -> 0 | D60: =O52 -> 0
B61: Total Natural Gas VOC | C61: =O45 -> 0 | D61: =O53 -> 0
B62: Total VOC | C62: =O46 -> 0 | D62: =O54 -> 0
B63: H2S | C63: =O43 -> 0 | D63: =O51 -> 0
B64: benzene | C64: =O47 -> 0 | D64: =O55 -> 0
B66: Emission Type: (pick from list)
B67: Steady State (continuous)
B69: Enter any notes here as needed. You must address the following:
C70: (1) How is this control efficiency justified? Please be specific.
C71: (2) Explain what happens to the material once it is recovered.
C72: (3) Explain what happens when this unit is down. Include how long the unit could be down for.

Sheet Flares-Vapor Combustors (hidden)
B1: ='Facility Information'!C27 -> Company Name
B2: ='Facility Information'!C28 -> Site Name
B4: Flare / Vapor Combustor
B5: A) Enter information into the yellow boxes.
B6: B) See notes/instructions incuded below.
B7: C) Use the box provided below for entering any notes necessary (such as the source/justification for any calculation inputs).
B8: D) Make sure to select the correct Emission Type from the pull down menu below.
B10: General Information | I10: Emission Factors
B11: Unit Name:
B12: Unit EPN: | I12: Emission Factors from AP-42 Table 1.4-1 and 1.4-2 (lb/MMscf)
B13: Which is utilized for this device? | J13: NOx | K13: 100
J14: CO | K14: 84
B15: NOx and CO Emission Factors | J15: PM10, PM2.5 | K15: 7.6 | L15: 5.7
B17: For Waste Gas: | I17: Emission Factors from TCEQ Guidance (lb/MMBtu)
B18: What kind of device is this? Pick from list. | J18: Non-steam assisted, high Btu | M18: Steam assisted, high Btu
B19: NOx | C19: =IF(C18="non-steam assisted flare with high Btu stream flared",K19,IF(C18="non-steam assisted flare with low Btu stream flared",K22,IF(C18="steam assisted flare with high Btu stream flared",N19,IF(C18="steam assisted flare with low Btu stream flared",N22, 0)))) -> 0 | D19: =IF(C19=0, "", "lb/MMBtu") ->  | J19: NOx | K19: 0.138 | M19: NOx | N19: 0.0485
B20: CO | C20: =IF(C18="non-steam assisted flare with high Btu stream flared",K20,IF(C18="non-steam assisted flare with low Btu stream flared",K23,IF(C18="steam assisted flare with high Btu stream flared",N20,IF(C18="steam assisted flare with low Btu stream flared",N23, 0)))) -> 0 | D20: =IF(C20=0, "", "lb/MMBtu") ->  | J20: CO | K20: 0.2755 | M20: CO | N20: 0.3503
J21: Non-steam assisted, low Btu | M21: Steam assisted, low Btu
B22: For Pilot Stream(s): | J22: NOx | K22: 0.0641 | M22: NOx | N22: 0.068
B23: If there is one or more pilot streams, are they made up of pipeline quality natural gas, propane, or field gas? Pick from drop down list to the right and follow instructions below. | J23: CO | K23: 0.5496 | M23: CO | N23: 0.3465
B24: NOx | C24: =IF(OR(C23="pipeline quality natural gas", C23="propane"), K13, IF(C23="field gas", C19, 0)) -> 0 | D24: =IF(OR(C23="pipeline quality natural gas", C23="propane"), "lb/MMscf", IF(C23="field gas", "lb/MMBtu", "")) -> 
B25: CO | C25: =IF(OR(C23="pipeline quality natural gas", C23="propane"), K14, IF(C23="field gas", C20, 0)) -> 0 | D25: =IF(OR(C23="pipeline quality natural gas", C23="propane"), "lb/MMscf", IF(C23="field gas", "lb/MMBtu", "")) ->  | I25: Emission Factors from AP-42 Table 1.4-2 and 1.4-3 (lb/MMscf)
B26: =IF(OR(C23="pipeline quality natural gas", C23="propane", C23="field gas"), "Enter pilot stream information into the column for Stream No. 1 below. If there is more than one pilot stream, please enter it as one combined stream.", "Since there is no pilot, you do not need to enter anything in the column for Stream No. 1 below.") -> Since there is no pilot, you do not need to enter anything in the column for Stream No. 1 below. | J26: SO2 | K26: 0.6
J27: VOC | K27: 5.5
B28: For Added Fuel Stream(s): | J28: benzene | K28: 0.0021
B29: If there is one or more added fuel streams, are they made up of pipeline quality natural gas, propane, or field gas? Pick from drop down list to the right and follow instructions below.
B30: NOx | C30: =IF(OR(C29="pipeline quality natural gas", C29="propane"), K13, IF(C29="field gas", C19, 0)) -> 0 | D30: =IF(OR(C29="pipeline quality natural gas", C29="propane"), "lb/MMscf", IF(C29="field gas", "lb/MMBtu", "")) ->  | I30: Constants
B31: CO | C31: =IF(OR(C29="pipeline quality natural gas", C29="propane"), K14, IF(C29="field gas", C20, 0)) -> 0 | D31: =IF(OR(C29="pipeline quality natural gas", C29="propane"), "lb/MMscf", IF(C29="field gas", "lb/MMBtu", "")) ->  | I31: Btu/MMBtu | K31: 1000000
B32: =IF(OR(C29="pipeline quality natural gas", C29="propane", C29="field gas"), "Enter added fuel stream information into the column for Stream No. 2 below. If there is more than one added fuel stream, please enter it as one combined stream.", "Since there is no added fuel stream, you do not need to enter anything in the column for Stream No. 2 below.") -> Since there is no added fuel stream, you do not need to enter anything in the column for Stream No. 2 below. | I32: scf/MMscf | K32: 1000000
I33: lb/ton | K33: 2000
B34: Destruction Efficiency | I34: H2S molecular weight | K34: 34.08
B35: VOC percent destruction efficiency (%) | I35: SO2 molecular weight | K35: 64.06
B36: propane percent destruction efficiency (%) *OPTIONAL* | I36: seconds/hour | K36: 3600
B37: H2S percent destruction efficiency (%) | I37: inches/ft | K37: 12
B39: Stream Information
B40: Each numbered column represents a stream. The first two columns are always for pilot and added fuel streams. The next ten columns, Columns 3-12, are for any streams sent to the control device, such as "tank 1", "amine regenerator vent", etc. Under the column numbers, these columns should be labeled with the stream name. Information only needs to be entered for the number of streams sent to the flare. If for example, there are only two process/waste streams routed to the flare, only colums 3 and 4 need to be filled out, and potentially 1 and 2 if there are also any pilot or added fuel streams.
B41: Stream Sent to Flare/Vapor Combustor No. | C41: 1 | D41: 2 | E41: 3 | F41: 4 | G41: 5 | H41: 6 | I41: 7 | J41: 8 | K41: 9 | L41: 10 | M41: 11 | N41: 12 | O41: Total
B42: Stream Sent to Flare/Vapor Combustor Name (Enter Names of Each Stream Here) | C42: pilot(s) | D42: added fuel stream(s) | O42: -
B43: Maximum Expected Hourly Volumtric Flow Rate of Stream (scf/hr) | O43: =SUM(C43:N43) -> 0
B44: Amount of Time Stream Routed to Flare/Vapor Combustor (hrs/yr) | O44: -
B45: Maximum Expected Annual Volumtric Flow Rate of Stream (scf/yr) | O45: =SUM(C45:N45) -> 0
B46: Heat Value of Stream - from program results or gas analysis (Btu/scf) | O46: -
B47: propane weight percent of total stream (%) *OPTIONAL* | O47: -
B48: VOC weight percent of total stream (%) *OPTIONAL* | O48: -
B50: It is suggested that you link these cells below to the cells in the other tabs of this spreadsheet which contain the calculated uncontrolled emissions for the stream.
B51: Mass Flow Rates of the Vapors Sent to this Control Device, Hourly Basis (lb/hr)
B52: Stream Sent to Flare/Vapor Combustor No. | C52: =IF(C41="", "", C41) -> 1 | D52: =IF(D41="", "", D41) -> 2 | E52: 3 | F52: 4 | G52: 5 | H52: 6 | I52: 7 | J52: 8 | K52: 9 | L52: 10 | M52: 11 | N52: =IF(N41="", "", N41) -> 12 | O52: Total
B53: Stream Sent to Flare/Vapor Combustor Name | C53: =IF(C42="", "", C42) -> pilot(s) | D53: =IF(D42="", "", D42) -> added fuel stream(s) | L53: =IF(L42="", "", L42) ->  | O53: -
B54: H2S | C54: - | D54: - | O54: =SUM(C54:N54) -> 0
B55: Crude or Condensate VOC | C55: - | D55: - | O55: =SUM(C55:N55) -> 0
B56: Natural Gas VOC | C56: - | D56: - | O56: 0
B57: Total VOC | C57: - | D57: - | O57: 0
B58: benzene | C58: - | D58: - | O58: 0
B59: Mass Flow Rates of the Vapors Sent to this Control Device, Annual Basis (tpy)
B60: H2S | C60: - | D60: =D58 -> - | O60: =SUM(C60:N60) -> 0
B61: Crude or Condensate VOC | C61: - | D61: - | O61: =SUM(C61:N61) -> 0
B62: Natural Gas VOC | C62: - | D62: - | O62: 0
B63: Total VOC | C63: - | D63: - | O63: 0
B64: benzene | C64: - | D64: - | O64: 0
B66: Controlled Emissions
B67: Hourly (lb/hr)
B68: Stream Sent to Flare/Vapor Combustor No. | C68: =IF(C41="", "", C41) -> 1 | D68: =IF(D41="", "", D41) -> 2 | E68: 3 | F68: 4 | G68: 5 | H68: 6 | I68: 7 | J68: 8 | K68: 9 | L68: 10 | M68: 11 | N68: 12 | O68: Total
B69: Stream Sent to Flare/Vapor Combustor Name | C69: =IF(C42="", "", C42) -> pilot(s) | D69: =IF(D42="", "", D42) -> added fuel stream(s) | O69: -
B70: NOx | C70: =IF(D24="lb/MMscf", C43*C24/K32, IF(D24="lb/MMBtu", C46*C43*C24/K31, 0)) -> 0 | D70: =IF(D30="lb/MMscf", D43*C30/K32, IF(D30="lb/MMBtu", D46*D43*C30/K31, 0)) -> 0 | E70: =E46*E43*$C$19/$K$31 -> 0 | F70: =F46*F43*$C$19/$K$31 -> 0 | G70: 0 | H70: 0 | I70: 0 | J70: 0 | K70: 0 | L70: 0 | M70: 0 | N70: 0 | O70: =SUM(C70:N70) -> 0
B71: CO | C71: =IF(D25="lb/MMscf", C43*C25/K32, IF(D25="lb/MMBtu", C46*C43*C25/K31, 0)) -> 0 | D71: =IF(D31="lb/MMscf", D43*C31/K32, IF(D31="lb/MMBtu", D46*D43*C31/K31, 0)) -> 0 | E71: =E46*E43*$C$20/$K$31 -> 0 | F71: =F46*F43*$C$20/$K$31 -> 0 | G71: 0 | H71: 0 | I71: 0 | J71: 0 | K71: 0 | L71: 0 | M71: 0 | N71: 0 | O71: =SUM(C71:N71) -> 0
B72: PM2.5 | C72: =C43*$L$15/$K$32 -> 0 | D72: =D43*$L$15/$K$32 -> 0 | E72: =E43*$L$15/$K$32 -> 0 | F72: =F43*$L$15/$K$32 -> 0 | G72: 0 | H72: 0 | I72: 0 | J72: 0 | K72: 0 | L72: 0 | M72: 0 | N72: 0 | O72: 0
B73: PM10 | C73: =C43*$K$15/$K$32 -> 0 | D73: =D43*$K$15/$K$32 -> 0 | E73: =E43*$K$15/$K$32 -> 0 | F73: =F43*$K$15/$K$32 -> 0 | G73: 0 | H73: 0 | I73: 0 | J73: 0 | K73: 0 | L73: 0 | M73: 0 | N73: 0 | O73: 0
B74: H2S | C74: =C75/$K$35*$K$34 -> 0 | D74: =D75/$K$35*$K$34 -> 0 | E74: =E54*(100-$C$37)/100 -> 0 | F74: =F54*(100-$C$37)/100 -> 0 | G74: 0 | H74: 0 | I74: 0 | J74: 0 | K74: 0 | L74: 0 | M74: 0 | N74: 0 | O74: 0
B75: SO2 | C75: =C43*$K$26/$K$32 -> 0 | D75: =D43*$K$26/$K$32 -> 0 | E75: =E54/$K$34*$K$35 -> 0 | F75: =F54/$K$34*$K$35 -> 0 | G75: 0 | H75: 0 | I75: 0 | J75: 0 | K75: 0 | L75: 0 | M75: 0 | N75: =N54/$K$34*$K$35 -> 0 | O75: =SUM(C75:N75) -> 0
B76: Crude or Condensate VOC | C76: - | D76: - | E76: =IF(OR($C$36 = "", E47 = "", E48 = ""), E55*(( 100-$C$35)/100), ((E47/E48)*(E55)*((100-$C$36)/100)) + ((1-(E47/E48))*(E55)*(( 100-$C$35)/100))) -> 0 | F76: =IF(OR($C$36 = "", F47 = "", F48 = ""), F55*(( 100-$C$35)/100), ((F47/F48)*(F55)*((100-$C$36)/100)) + ((1-(F47/F48))*(F55)*(( 100-$C$35)/100))) -> 0 | G76: 0 | H76: 0 | I76: 0 | J76: 0 | K76: 0 | L76: 0 | M76: 0 | N76: =IF(OR($C$36 = "", N47 = "", N48 = ""), N55*(( 100-$C$35)/100), ((N47/N48)*(N55)*((100-$C$36)/100)) + ((1-(N47/N48))*(N55)*(( 100-$C$35)/100))) -> 0 | O76: =SUM(C76:N76) -> 0
B77: Natural Gas VOC | C77: =C43*$K$27/$K$32 -> 0 | D77: =D43*$K$27/$K$32 -> 0 | E77: =IF(OR($C$36 = "", E47 = "", E48 = ""), E56*(( 100-$C$35)/100), ((E47/E48)*(E56)*((100-$C$36)/100)) + ((1-(E47/E48))*(E56)*(( 100-$C$35)/100))) -> 0 | F77: =IF(OR($C$36 = "", F47 = "", F48 = ""), F56*(( 100-$C$35)/100), ((F47/F48)*(F56)*((100-$C$36)/100)) + ((1-(F47/F48))*(F56)*(( 100-$C$35)/100))) -> 0 | G77: 0 | H77: 0 | I77: 0 | J77: =IF(OR($C$36 = "", J47 = "", J48 = ""), J56*(( 100-$C$35)/100), ((J47/J48)*(J56)*((100-$C$36)/100)) + ((1-(J47/J48))*(J56)*(( 100-$C$35)/100))) -> 0 | K77: 0 | L77: 0 | M77: 0 | N77: =IF(OR($C$36 = "", N47 = "", N48 = ""), N56*(( 100-$C$35)/100), ((N47/N48)*(N56)*((100-$C$36)/100)) + ((1-(N47/N48))*(N56)*(( 100-$C$35)/100))) -> 0 | O77: =SUM(C77:N77) -> 0
B78: Total VOC | C78: =C43*$K$27/$K$32 -> 0 | D78: =D43*$K$27/$K$32 -> 0 | E78: =IF(OR($C$36 = "", E47 = "", E48 = ""), E57*(( 100-$C$35)/100), ((E47/E48)*(E57)*((100-$C$36)/100)) + ((1-(E47/E48))*(E57)*(( 100-$C$35)/100))) -> 0 | F78: =IF(OR($C$36 = "", F47 = "", F48 = ""), F57*(( 100-$C$35)/100), ((F47/F48)*(F57)*((100-$C$36)/100)) + ((1-(F47/F48))*(F57)*(( 100-$C$35)/100))) -> 0 | G78: 0 | H78: 0 | I78: 0 | J78: =IF(OR($C$36 = "", J47 = "", J48 = ""), J57*(( 100-$C$35)/100), ((J47/J48)*(J57)*((100-$C$36)/100)) + ((1-(J47/J48))*(J57)*(( 100-$C$35)/100))) -> 0 | K78: 0 | L78: 0 | M78: 0 | N78: =IF(OR($C$36 = "", N47 = "", N48 = ""), N57*(( 100-$C$35)/100), ((N47/N48)*(N57)*((100-$C$36)/100)) + ((1-(N47/N48))*(N57)*(( 100-$C$35)/100))) -> 0 | O78: =SUM(C78:N78) -> 0
B79: benzene | C79: =C43*$K$28/$K$32 -> 0 | D79: =D43*$K$28/$K$32 -> 0 | E79: =E58*(100-$C$35)/100 -> 0 | F79: =F58*(100-$C$35)/100 -> 0 | G79: 0 | H79: 0 | I79: 0 | J79: 0 | K79: =K58*(100-$C$35)/100 -> 0 | L79: 0 | M79: 0 | N79: =N58*(100-$C$35)/100 -> 0 | O79: =SUM(C79:N79) -> 0
B80: Annual (tpy)
B81: Stream Sent to Flare/Vapor Combustor No. | C81: =IF(C41="", "", C41) -> 1 | D81: =IF(D41="", "", D41) -> 2 | E81: 3 | F81: 4 | G81: 5 | H81: 6 | I81: 7 | J81: 8 | K81: 9 | L81: 10 | M81: 11 | N81: 12 | O81: Total
B82: Stream Sent to Flare/Vapor Combustor Name | C82: =IF(C42="", "", C42) -> pilot(s) | D82: =IF(D42="", "", D42) -> added fuel stream(s) | O82: -
B83: NOx | C83: =IF(D24="lb/MMscf", C45*C24/K32/K33, IF(D24="lb/MMBtu", C46*C45*C24/K31/K33, 0)) -> 0 | D83: =IF(D30="lb/MMscf", D45*C30/K32/K33, IF(D30="lb/MMBtu", D46*D45*C30/K31/K33, 0)) -> 0 | E83: =E46*E45*$C$19/$K$31/$K$33 -> 0 | F83: =F46*F45*$C$19/$K$31/$K$33 -> 0 | G83: 0 | H83: 0 | I83: 0 | J83: 0 | K83: 0 | L83: 0 | M83: 0 | N83: 0 | O83: =SUM(C83:N83) -> 0
B84: CO | C84: =IF(D25="lb/MMscf", C45*C25/K32/K33, IF(D25="lb/MMBtu", C46*C45*C25/K31/K33, 0)) -> 0 | D84: =IF(D31="lb/MMscf", D45*C31/K32/K33, IF(D31="lb/MMBtu", D46*D45*C31/K31/K33, 0)) -> 0 | E84: =E46*E45*$C$20/$K$31/$K$33 -> 0 | F84: =F46*F45*$C$20/$K$31/$K$33 -> 0 | G84: 0 | H84: 0 | I84: 0 | J84: 0 | K84: 0 | L84: 0 | M84: 0 | N84: 0 | O84: 0
B85: PM2.5 | C85: =C45*$L$15/$K$32/$K$33 -> 0 | D85: =D45*$L$15/$K$32/$K$33 -> 0 | E85: =E45*$L$15/$K$32/$K$33 -> 0 | F85: =F45*$L$15/$K$32/$K$33 -> 0 | G85: 0 | H85: 0 | I85: 0 | J85: 0 | K85: 0 | L85: 0 | M85: 0 | N85: 0 | O85: 0
B86: PM10 | C86: =C45*$K$15/$K$32/$K$33 -> 0 | D86: =D45*$K$15/$K$32/$K$33 -> 0 | E86: =E45*$K$15/$K$32/$K$33 -> 0 | F86: =F45*$K$15/$K$32/$K$33 -> 0 | G86: 0 | H86: 0 | I86: 0 | J86: 0 | K86: 0 | L86: 0 | M86: 0 | N86: =N45*$K$15/$K$32/$K$33 -> 0 | O86: 0
B87: H2S | C87: =C88*$K$33/$K$35*$K$34/$K$33 -> 0 | D87: =D88*$K$33/$K$35*$K$34/$K$33 -> 0 | E87: =E60*(100-$C$37)/100 -> 0 | F87: =F60*(100-$C$37)/100 -> 0 | G87: 0 | H87: 0 | I87: 0 | J87: 0 | K87: 0 | L87: 0 | M87: 0 | N87: 0 | O87: 0
B88: SO2 | C88: =C45*$K$26/$K$32/$K$33 -> 0 | D88: =D45*$K$26/$K$32/$K$33 -> 0 | E88: =E60*$K$33/$K$34*$K$35/$K$33 -> 0 | F88: =F60*$K$33/$K$34*$K$35/$K$33 -> 0 | G88: 0 | H88: 0 | I88: 0 | J88: 0 | K88: 0 | L88: 0 | M88: 0 | N88: 0 | O88: 0
B89: Crude or Condensate VOC | C89: - | D89: - | E89: =IF(OR($C$36 = "", E47 = "", E48 = ""), E61*(( 100-$C$35)/100), ((E47/E48)*(E61)*((100-$C$36)/100)) + ((1-(E47/E48))*(E61)*(( 100-$C$35)/100))) -> 0 | F89: =IF(OR($C$36 = "", F47 = "", F48 = ""), F61*(( 100-$C$35)/100), ((F47/F48)*(F61)*((100-$C$36)/100)) + ((1-(F47/F48))*(F61)*(( 100-$C$35)/100))) -> 0 | G89: 0 | H89: 0 | I89: 0 | J89: 0 | K89: 0 | L89: 0 | M89: 0 | N89: =IF(OR($C$36 = "", N47 = "", N48 = ""), N61*(( 100-$C$35)/100), ((N47/N48)*(N61)*((100-$C$36)/100)) + ((1-(N47/N48))*(N61)*(( 100-$C$35)/100))) -> 0 | O89: 0
B90: Natural Gas VOC | C90: =C45*$K$27/$K$32/$K$33 -> 0 | D90: =D45*$K$27/$K$32/$K$33 -> 0 | E90: =IF(OR($C$36 = "", E47 = "", E48 = ""), E62*(( 100-$C$35)/100), ((E47/E48)*(E62)*((100-$C$36)/100)) + ((1-(E47/E48))*(E62)*(( 100-$C$35)/100))) -> 0 | F90: =IF(OR($C$36 = "", F47 = "", F48 = ""), F62*(( 100-$C$35)/100), ((F47/F48)*(F62)*((100-$C$36)/100)) + ((1-(F47/F48))*(F62)*(( 100-$C$35)/100))) -> 0 | G90: 0 | H90: 0 | I90: 0 | J90: 0 | K90: 0 | L90: 0 | M90: 0 | N90: 0 | O90: 0
B91: Total VOC | C91: =C45*$K$27/$K$32/$K$33 -> 0 | D91: =D45*$K$27/$K$32/$K$33 -> 0 | E91: =IF(OR($C$36 = "", E47 = "", E48 = ""), E63*(( 100-$C$35)/100), ((E47/E48)*(E63)*((100-$C$36)/100)) + ((1-(E47/E48))*(E63)*(( 100-$C$35)/100))) -> 0 | F91: =IF(OR($C$36 = "", F47 = "", F48 = ""), F63*(( 100-$C$35)/100), ((F47/F48)*(F63)*((100-$C$36)/100)) + ((1-(F47/F48))*(F63)*(( 100-$C$35)/100))) -> 0 | G91: 0 | H91: 0 | I91: 0 | J91: 0 | K91: 0 | L91: 0 | M91: 0 | N91: 0 | O91: 0
B92: benzene | C92: =C45*$K$28/$K$32/$K$33 -> 0 | D92: =D45*$K$28/$K$32/$K$33 -> 0 | E92: =E64*(100-$C$35)/100 -> 0 | F92: =F64*(100-$C$35)/100 -> 0 | G92: 0 | H92: 0 | I92: 0 | J92: 0 | K92: 0 | L92: 0 | M92: 0 | N92: =N64*(100-$C$35)/100 -> 0 | O92: 0
B95: Flare/Vapor Combustor Total Emissions
C96: Hourly Emissions (lb/hr) | D96: Annual Emissions (tpy)
B97: Total Crude Oil or Condensate VOC | C97: =O76 -> 0 | D97: =O89 -> 0
B98: Total Natural Gas VOC | C98: =O77 -> 0 | D98: =O90 -> 0
B99: Total VOC | C99: =O78 -> 0 | D99: =O91 -> 0
B100: NOx | C100: =O70 -> 0 | D100: =O83 -> 0
B101: CO | C101: 0 | D101: 0
B102: PM2.5 | C102: 0 | D102: 0
B103: PM10 | C103: 0 | D103: 0
B104: H2S | C104: 0 | D104: 0
B105: SO2 | C105: 0 | D105: 0
B106: benzene | C106: =O79 -> 0 | D106: =O92 -> 0
B108: Emission Type: (pick from list)
B109: Steady State (continuous)
B111: PBR/Standard Permit Compliance
B113: Minimum Heat Value Requirement
B114: Total Stream Heat Value (weighted with hourly volumetric flow rates, Btu/scf) | C114: =IF(O43=0, 0, ((C43/$O$43)*C46+(D43/$O$43)*D46+(E43/$O$43)*E46+(F43/$O$43)*F46+(G43/$O$43)*G46+(H43/$O$43)*H46+(I43/$O$43)*I46+(J43/$O$43)*J46+(K43/$O$43)*K46+(L43/$O$43)*L46+(M43/$O$43)*M46+(N43/$O$43)*N46)) -> 0
B115: Total Stream Heat Value (weighted with annual volumetric flow rates, Btu/scf) | C115: =IF(O43=0, 0, ((C45/$O$45)*C46+(D45/$O$45)*D46+(E45/$O$45)*E46+(F45/$O$45)*F46+(G45/$O$45)*G46+(H45/$O$45)*H46+(I45/$O$45)*I46+(J45/$O$45)*J46+(K45/$O$45)*K46+(L45/$O$45)*L46+(M45/$O$45)*M46+(N45/$O$45)*N46)) -> 0
B117: Maximum Flare/Burner Tip Velocity Requirement
B118: How many flare/burner tips does the unit have?
B119: What is the diameter of the flare/burner tip(s) (in)?
B120: Total Flare/Burner Tip Surface Area (ft²)? | C120: =C118*3.14*(C119/K37)^2/4 -> 0
B121: What is the flare/burner tip surface area that the hourly worst case (highest flow) stream passes through (ft²)?
B122: Stream Velocity Through Burner Tip (based on hourly worst case, ft/sec) | C122: =IF(C121=0, 0, O43/C121/K36) -> 0
B124: Enter any notes here as needed. You must address the following:
C125: (1) How is this control efficiency justified? Please be specific.
C126: (2) Explain what happens when this unit is down. Include how long the unit could be down for.

Sheet Thermal Oxidizers (hidden)
B1: ='Facility Information'!C27 -> Company Name
B2: ='Facility Information'!C28 -> Site Name
B4: Thermal Oxidizer
B5: A) Enter information into the yellow boxes.
B6: B) See notes/instructions incuded below.
B7: C) Use the box provided below for entering any notes necessary (such as the source/justification for any calculation inputs).
B8: D) Make sure to select the correct Emission Type from the pull down menu below.
B10: General Information | I10: Emission Factors
B11: Unit Name:
B12: Unit EPN: | I12: Emission Factors from AP-42 Table 1.4-1, 1.4-2, and 1.4-3 (lb/MMscf)
B13: What kind of device is this? Enter a short description of the device type. | J13: NOx | K13: 100
J14: CO | K14: 84
B15: NOx and CO Emission Factors | J15: PM10, PM2.5 | K15: 7.6 | L15: 5.7
J16: SO2 | K16: 0.6
B17: For Waste Gas: | J17: VOC | K17: 5.5
B18: NOx | C18: =K13 -> 100 | D18: =IF(C18=0, "", "lb/MMscf'") -> lb/MMscf' | J18: benzene | K18: 0.0021
B19: CO | C19: =K14 -> 84 | D19: =IF(C19=0, "", "lb/MMscf'") -> lb/MMscf'
I20: Constants
B21: For Pilot Stream(s): | I21: Btu/MMBtu | J21: 1000000
B22: If there is one or more pilot streams, are they made up of pipeline quality natural gas, propane, or field gas? Pick from drop down list to the right and follow instructions below. | I22: scf/MMscf | J22: 1000000
B23: NOx | C23: =IF(OR(C22="pipeline quality natural gas", C22="propane", C22="field gas"), K13, 0) -> 0 | D23: =IF(C23=0, "", "lb/MMscf'") ->  | I23: lb/ton | J23: 2000
B24: CO | C24: =IF(OR(C22="pipeline quality natural gas", C22="propane", C22="field gas"), K14, 0) -> 0 | D24: =IF(C24=0, "", "lb/MMscf'") ->  | I24: H2S molecular weight | J24: 34.08
B25: =IF(OR(C22="pipeline quality natural gas", C22="propane", C22="field gas"), "Enter pilot stream information into the column for Stream No. 1 below. If there is more than one pilot stream, please enter it as one combined stream.", "Since there is no pilot, you do not need to enter anything in the column for Stream No. 1 below.") -> Since there is no pilot, you do not need to enter anything in the column for Stream No. 1 below. | I25: SO2 molecular weight | J25: 64.06
B27: For Added Fuel Stream(s):
B28: If there is one or more added fuel streams, are they made up of pipeline quality natural gas, propane, or field gas? Pick from drop down list to the right and follow instructions below.
B29: NOx | C29: =IF(OR(C28="pipeline quality natural gas", C28="propane", C28="field gas"), K13, 0) -> 0 | D29: =IF(C29=0, "", "lb/MMscf'") -> 
B30: CO | C30: =IF(OR(C28="pipeline quality natural gas", C28="propane", C28="field gas"), K14, 0) -> 0 | D30: =IF(C30=0, "", "lb/MMscf'") -> 
B31: =IF(OR(C28="pipeline quality natural gas", C28="propane", C28="field gas"), "Enter added fuel stream information into the column for Stream No. 2 below. If there is more than one added fuel stream, please enter it as one combined stream.", "Since there is no added fuel stream, you do not need to enter anything in the column for Stream No. 2 below.") -> Since there is no added fuel stream, you do not need to enter anything in the column for Stream No. 2 below.
B33: Destruction Efficiency
B34: VOC percent destruction efficiency (%)
B35: H2S percent destruction efficiency (%)
B37: Stream Information
B38: Each numbered column represents a stream. The first two columns are always for pilot and added fuel streams. The next ten columns, Columns 3-12, are for any streams sent to the control device, such as "tank 1", "amine regenerator vent", etc. Under the column numbers, these columns should be labeled with the stream name. Information only needs to be entered for the number of streams sent to the flare. If for example, there are only two process/waste streams routed to the flare, only colums 3 and 4 need to be filled out, and potentially 1 and 2 if there are also any pilot or added fuel streams.
B39: Stream Sent to Thermal Oxidizer No. | C39: 1 | D39: 2 | E39: 3 | F39: 4 | G39: 5 | H39: 6 | I39: 7 | J39: 8 | K39: 9 | L39: 10 | M39: 11 | N39: 12 | O39: Total
B40: Stream Sent to Thermal Oxidizer Name (Enter Names of Each Stream Here) | C40: pilot(s) | D40: added fuel stream(s) | O40: Total
B41: Maximum Expected Hourly Volumtric Flow Rate of Stream (scf/hr) | O41: =SUM(C41:N41) -> 0
B42: Amount of Time Stream Routed to Flare/Vapor Combustor (hrs/yr) | O42: -
B43: Maximum Expected Annual Volumtric Flow Rate of Stream (scf/yr) | O43: =SUM(C43:N43) -> 0
B44: Heat Value of Stream - from program results or gas analysis (Btu/scf) | O44: =((C41/$O$41)*C44+(D41/$O$41)*D44+(E41/$O$41)*E44+(F41/$O$41)*F44+(G41/$O$41)*G44+(H41/$O$41)*H44+(I41/$O$41)*I44+(J41/$O$41)*J44+(K41/$O$41)*K44+(L41/$O$41)*L44+(M41/$O$41)*M44+(N41/$O$41)*N44) -> 
B46: It is suggested that you link these cells below to the cells in the other tabs of this spreadsheet which contain the calculated uncontrolled emissions for the stream.
B47: Mass Flow Rates of the Vapors Sent to this Control Device, Hourly Basis (lb/hr)
B48: Stream Sent to Thermal Oxidizer No. | C48: =IF(C39="", "", C39) -> 1 | D48: =IF(D39="", "", D39) -> 2 | E48: 3 | F48: 4 | G48: 5 | H48: 6 | I48: 7 | J48: 8 | K48: 9 | L48: 10 | M48: 11 | N48: =IF(N39="", "", N39) -> 12 | O48: Total
B49: Stream Sent to Thermal Oxidizer Name | C49: =IF(C40="", "", C40) -> pilot(s) | D49: added fuel stream(s) | L49: =IF(L40="", "", L40) ->  | O49: -
B50: H2S | C50: - | D50: - | O50: =SUM(E50:N50) -> 0
B51: Crude or Condensate VOC | C51: - | D51: - | O51: =SUM(E51:N51) -> 0
B52: Natural Gas VOC | C52: - | D52: - | O52: 0
B53: Total VOC | C53: - | D53: - | O53: 0
B54: benzene | C54: - | D54: - | O54: 0
B55: Mass Flow Rates of the Vapors Sent to this Control Device, Annual Basis (tpy)
B56: H2S | C56: - | D56: - | O56: =SUM(E56:N56) -> 0
B57: Crude or Condensate VOC | C57: - | D57: - | O57: =SUM(E57:N57) -> 0
B58: Natural Gas VOC | C58: - | D58: - | O58: 0
B59: Total VOC | C59: - | D59: - | O59: =SUM(E59:N59) -> 0
B60: benzene | C60: - | D60: - | O60: 0
B62: Controlled Emissions
B63: Hourly (lb/hr)
B64: Stream Sent to Thermal Oxidizer No. | C64: =IF(C39="", "", C39) -> 1 | D64: =IF(D39="", "", D39) -> 2 | E64: 3 | F64: 4 | G64: 5 | H64: 6 | I64: 7 | J64: 8 | K64: 9 | L64: 10 | M64: 11 | N64: 12 | O64: Total
B65: Stream Sent to Thermal Oxidizer Name | C65: =IF(C40="", "", C40) -> pilot(s) | D65: =IF(D40="", "", D40) -> added fuel stream(s) | O65: -
B66: NOx | C66: =C41*C23/$J$22 -> 0 | D66: =D41*C29/$J$22 -> 0 | E66: =E41*$C$18/$J$22 -> 0 | F66: 0 | G66: 0 | H66: 0 | I66: 0 | J66: 0 | K66: 0 | L66: 0 | M66: 0 | N66: 0 | O66: =SUM(C66:N66) -> 0
B67: CO | C67: =C41*C24/$J$22 -> 0 | D67: =D41*C30/$J$22 -> 0 | E67: =E41*$C$19/$J$22 -> 0 | F67: 0 | G67: 0 | H67: 0 | I67: 0 | J67: 0 | K67: 0 | L67: 0 | M67: 0 | N67: 0 | O67: 0
B68: PM2.5 | C68: =C41*$K$15/$J$22 -> 0 | D68: 0 | E68: 0 | F68: 0 | G68: 0 | H68: 0 | I68: 0 | J68: 0 | K68: 0 | L68: 0 | M68: 0 | N68: 0 | O68: 0
B69: PM10 | C69: =C41*$L$15/$J$22 -> 0 | D69: 0 | E69: 0 | F69: 0 | G69: 0 | H69: 0 | I69: 0 | J69: 0 | K69: 0 | L69: 0 | M69: 0 | N69: 0 | O69: 0
B70: H2S | C70: =C71/$J$25*$J$24 -> 0 | D70: =D71/$J$25*$J$24 -> 0 | E70: =E50*(100-$C$35)/100 -> 0 | F70: =F50*(100-$C$35)/100 -> 0 | G70: 0 | H70: 0 | I70: 0 | J70: 0 | K70: 0 | L70: 0 | M70: 0 | N70: =N50*(100-$C$35)/100 -> 0 | O70: 0
B71: SO2 | C71: =C41*$K$16/$J$22 -> 0 | D71: 0 | E71: 0 | F71: 0 | G71: 0 | H71: 0 | I71: 0 | J71: 0 | K71: 0 | L71: 0 | M71: 0 | N71: 0 | O71: 0
B72: Crude or Condensate VOC | C72: - | D72: - | E72: =E51*(100-$C$34)/100 -> 0 | F72: =F51*(100-$C$34)/100 -> 0 | G72: 0 | H72: 0 | I72: 0 | J72: 0 | K72: 0 | L72: 0 | M72: 0 | N72: =N51*(100-$C$34)/100 -> 0 | O72: 0
B73: Natural Gas VOC | C73: =C41*$K$17/$J$22 -> 0 | D73: =D41*$K$17/$J$22 -> 0 | E73: =E52*(100-$C$34)/100 -> 0 | F73: =F52*(100-$C$34)/100 -> 0 | G73: 0 | H73: 0 | I73: =I52*(100-$C$34)/100 -> 0 | J73: 0 | K73: 0 | L73: 0 | M73: 0 | N73: =N52*(100-$C$34)/100 -> 0 | O73: 0
B74: Total VOC | C74: =C41*$K$17/$J$22 -> 0 | D74: =D41*$K$17/$J$22 -> 0 | E74: =E53*(100-$C$34)/100 -> 0 | F74: =F53*(100-$C$34)/100 -> 0 | G74: 0 | H74: 0 | I74: 0 | J74: 0 | K74: 0 | L74: 0 | M74: 0 | N74: 0 | O74: 0
B75: benzene | C75: =C41*$K$18/$J$22 -> 0 | D75: =D41*$K$18/$J$22 -> 0 | E75: =E54*(100-$C$34)/100 -> 0 | F75: =F54*(100-$C$34)/100 -> 0 | G75: 0 | H75: 0 | I75: 0 | J75: 0 | K75: 0 | L75: 0 | M75: 0 | N75: 0 | O75: 0
B76: Annual (tpy)
B77: Stream Sent to Thermal Oxidizer No. | C77: =IF(C39="", "", C39) -> 1 | D77: =IF(D39="", "", D39) -> 2 | E77: 3 | F77: 4 | G77: 5 | H77: 6 | I77: 7 | J77: 8 | K77: 9 | L77: 10 | M77: 11 | N77: 12 | O77: Total
B78: Stream Sent to Thermal Oxidizer Name | C78: =IF(C40="", "", C40) -> pilot(s) | D78: =IF(D40="", "", D40) -> added fuel stream(s) | M78: =IF(M40="", "", M40) ->  | O78: -
B79: NOx | C79: =C43*C23/$J$22/$J$23 -> 0 | D79: =D43*C29/$J$22/$J$23 -> 0 | E79: =E43*$C$18/$J$22/$J$23 -> 0 | F79: =F43*$C$18/$J$22/$J$23 -> 0 | G79: 0 | H79: 0 | I79: 0 | J79: 0 | K79: 0 | L79: 0 | M79: 0 | N79: =N43*$C$18/$J$22/$J$23 -> 0 | O79: =SUM(C79:N79) -> 0
B80: CO | C80: =C43*C24/$J$22/$J$23 -> 0 | D80: =D43*C30/$J$22/$J$23 -> 0 | E80: =E43*$C$19/$J$22/$J$23 -> 0 | F80: =F43*$C$19/$J$22/$J$23 -> 0 | G80: 0 | H80: 0 | I80: 0 | J80: 0 | K80: 0 | L80: 0 | M80: 0 | N80: =N43*$C$19/$J$22/$J$23 -> 0 | O80: =SUM(C80:N80) -> 0
B81: PM2.5 | C81: =C43*$K$15/$J$22/$J$23 -> 0 | D81: =D43*$K$15/$J$22/$J$23 -> 0 | E81: 0 | F81: 0 | G81: 0 | H81: 0 | I81: 0 | J81: 0 | K81: 0 | L81: 0 | M81: 0 | N81: =N43*$K$15/$J$22/$J$23 -> 0 | O81: =SUM(C81:N81) -> 0
B82: PM10 | C82: =C43*$L$15/$J$22/$J$23 -> 0 | D82: =D43*$L$15/$J$22/$J$23 -> 0 | E82: 0 | F82: 0 | G82: 0 | H82: 0 | I82: 0 | J82: 0 | K82: 0 | L82: 0 | M82: 0 | N82: 0 | O82: 0
B83: H2S | C83: =C84*$J$23/$J$25*$J$24/$J$23 -> 0 | D83: =D84*$J$23/$J$25*$J$24/$J$23 -> 0 | E83: =E56*(100-$C$35)/100 -> 0 | F83: =F56*(100-$C$35)/100 -> 0 | G83: 0 | H83: 0 | I83: 0 | J83: 0 | K83: 0 | L83: 0 | M83: 0 | N83: 0 | O83: 0
B84: SO2 | C84: =C43*$K$16/$J$22/$J$23 -> 0 | D84: =D43*$K$16/$J$22/$J$23 -> 0 | E84: =E56*$J$23/$J$24*$J$25/$J$23 -> 0 | F84: =F56*$J$23/$J$24*$J$25/$J$23 -> 0 | G84: 0 | H84: 0 | I84: 0 | J84: 0 | K84: 0 | L84: 0 | M84: 0 | N84: =N56*$J$23/$J$24*$J$25/$J$23 -> 0 | O84: =SUM(C84:N84) -> 0
B85: Crude or Condensate VOC | C85: - | D85: - | E85: =E57*(100-$C$34)/100 -> 0 | F85: =F57*(100-$C$34)/100 -> 0 | G85: 0 | H85: 0 | I85: 0 | J85: 0 | K85: 0 | L85: 0 | M85: =M57*(100-$C$34)/100 -> 0 | N85: =N57*(100-$C$34)/100 -> 0 | O85: =SUM(C85:N85) -> 0
B86: Natural Gas VOC | C86: =C43*$K$17/$J$22/$J$23 -> 0 | D86: =D43*$K$17/$J$22/$J$23 -> 0 | E86: =E58*(100-$C$34)/100 -> 0 | F86: =F58*(100-$C$34)/100 -> 0 | G86: 0 | H86: 0 | I86: 0 | J86: 0 | K86: 0 | L86: 0 | M86: 0 | N86: =N58*(100-$C$34)/100 -> 0 | O86: =SUM(C86:N86) -> 0
B87: Total VOC | C87: =C43*$K$17/$J$22/$J$23 -> 0 | D87: =D43*$K$17/$J$22/$J$23 -> 0 | E87: =E59*(100-$C$34)/100 -> 0 | F87: 0 | G87: 0 | H87: 0 | I87: 0 | J87: 0 | K87: 0 | L87: 0 | M87: 0 | N87: 0 | O87: 0
B88: benzene | C88: =C43*$K$18/$J$22/$J$23 -> 0 | D88: =D43*$K$18/$J$22/$J$23 -> 0 | E88: =E60*(100-$C$34)/100 -> 0 | F88: 0 | G88: 0 | H88: 0 | I88: 0 | J88: 0 | K88: 0 | L88: 0 | M88: 0 | N88: 0 | O88: 0
B90: Thermal Oxidizer Total Emissions
C91: Hourly Emissions (lb/hr) | D91: Annual Emissions (tpy)
B92: Total Crude Oil or Condensate VOC | C92: =O72 -> 0 | D92: =O85 -> 0
B93: Total Natural Gas VOC | C93: =O73 -> 0 | D93: =O86 -> 0
B94: Total VOC | C94: =O74 -> 0 | D94: =O87 -> 0
B95: NOx | C95: =O66 -> 0 | D95: =O79 -> 0
B96: CO | C96: 0 | D96: 0
B97: PM2.5 | C97: 0 | D97: 0
B98: PM10 | C98: 0 | D98: =O82 -> 0
B99: H2S | C99: =O70 -> 0 | D99: 0
B100: SO2 | C100: 0 | D100: 0
B101: benzene | C101: =O75 -> 0 | D101: =O88 -> 0
B103: Emission Type: (pick from list)
B104: Steady State (continuous)
B106: Enter any notes here as needed. You must address the following:
C107: (1) How is this control efficiency justified? Please be specific.
C108: (2) Explain what happens when this unit is down. Include how long the unit could be down for.

Sheet MSS (hidden)
B1: ='Facility Information'!C27 -> Company Name
B2: ='Facility Information'!C28 -> Site Name
B3: Planned MSS Emissions
B4: A) Enter information into the yellow boxes.
B5: B) VOC and H2S control efficiencies may be entered (if applicable).
B6: C) The vapor VOC, benzene, and H2S weight percents may be entered. The weight percents from the Analyses tab are displayed below.
B7: D) Use the box provided below for entering any notes necessary (such as the source/justification for any calculation inputs).
B8: E) Make sure to answer the control device question.
B9: F) Make sure to select the correct VOC Type and Emission Type from the pull down menus below.
B11: EPN
B12: Identifier
B14: Describe this MSS event in detail, include specifically what is being done and how it is being done.
B16: Venting Emission Calculation
B17: Warning: This calculation should provide a conservatively high (potentially overestimated) result for emissions from venting when only gas is present in a unit. If liquids are present in the unit, this calculation could potentially significantly underestimate emissions because this calculation does not factor in emissions resulting from the evaporation of liquids present in the unit. If liquids are present or if you wish to use another calculation methodology, do not use this calculation tab. Instead, use the calculation tab for "Other" and make sure to provide a separate detailed calculation for these emissions and also include any necessary supplemental information and notes (such as the source/justification for any calculation inputs).
B18: If emissions from this source are uncontrolled:
C19: The formula is set up to do one calculation, which assumes that the entire volume of gas inside the unit is vented from the unit. The calculation of the mass of vented gas is done based on the volume of the unit vented, which is assumed to be saturated with vapor, and the temperature and pressure inside the unit before the venting occurs.
B20: If emissions from this source are controlled:
C21: The formula is set up to do two calculations. To preface the explanation of the two calculations, it is understood that for a release from a pressurized vessel, initial venting due to depressurization could occur rapidly until the vapor inside the vessel is equal to the atmospheric pressure, then further venting of the vapor still left in the vessel at atmospheric conditions could occur at a slower rate. This calculation assumes that any releases at atmospheric pressure cannot be controlled.
C22: In order to move the vapor present in the vessel at atmospheric conditions to a control device, a flare for example, some sort of extra operation is needed such as using air or nitrogen to move the vapor out, and if all of that vapor is routed to the control device, it may be diluted to the point where it would not have a sufficient heating value to combust, and if a supplemental fuel stream is added, there would be additional emissions associated with this.
C23: If you do have a way to move the vapor present in the vessel at atmospheric conditions to a control device, do not use this calculation tab. Instead, use the calculation tab for "Other" and make sure to provide a separate detailed calculation for these emissions and also include any necessary supplemental information and notes (such as the source/justification for any calculation inputs). Also, please describe this MSS event in detail, include specifically what is being done, how it is being done, and how all of the vapor is controlled.
C24: The first calculation of the mass of vented gas, which assumes that the entire volume of gas inside the unit is vented from the unit, is done based on the volume of the unit vented, which is assumed to be saturated with vapor, and the temperature and pressure inside the unit before the venting occurs.
C25: The second calculation is done the same as the first one except using the atmospheric pressure (instead of the pressure inside the unit before the venting occurs) and represents all of the mass vented from the vessel that is present at atmospheric conditions (after the vessel depressurization).
C26: The final result is the first calculation plus the second calculation, with the control efficiency only applied to the first calculation (which uses the pressure inside the unit before venting and represents the entire volume of gas inside the unit being vented).
I27: Ideal Gas Constant, [(ft3*psia)/(R*lb-mol)]
B28: Actual Volume of the Vented Unit (acf - actual cubic feet) | I28: 10.73159
B29: Pressure of Gas Inside the Unit Before Venting (psig)
B30: Atmospheric Pressure (psia)
B31: Pressure of Gas Inside the Unit Before Venting (psia) | E31: =E30+E29 -> 0
B32: Temperature of Gas Inside the Unit Before Venting (°F)
B33: Temperature of Gas Inside the Unit Before Venting (°R) | E33: =IF(E32="", "", 459.67+E32) -> 
B34: Duration of Each Event (hours/event) | I34: Gas Molecular Weight and Weight Percents From Analyses Tab:
B35: Frequency of Events (events/year)
B36: Venting Gas Molecular Weight (lb/lb-mol) | I36: Molecular Weight | J36: =IF('Site Wide Gas & Liquid Analyses'!$D$17 = "weight percents", 'Site Wide Gas & Liquid Analyses'!C75, IF('Site Wide Gas & Liquid Analyses'!$D$17 = "mole percents", 'Site Wide Gas & Liquid Analyses'!I75, "Error")) -> Error
B37: VOC wt % | I37: VOC wt % | J37: =IF('Site Wide Gas & Liquid Analyses'!$D$17 = "weight percents", 'Site Wide Gas & Liquid Analyses'!C50, IF('Site Wide Gas & Liquid Analyses'!$D$17 = "mole percents", 'Site Wide Gas & Liquid Analyses'!I50, "Error")) -> Error
B38: benzene wt% | I38: Benzene wt % | J38: =IF('Site Wide Gas & Liquid Analyses'!$D$17 = "weight percents", 'Site Wide Gas & Liquid Analyses'!C67, IF('Site Wide Gas & Liquid Analyses'!$D$17 = "mole percents", 'Site Wide Gas & Liquid Analyses'!I67, "Error")) -> Error
B39: H2S wt% | I39: H2S wt % | J39: =IF('Site Wide Gas & Liquid Analyses'!$D$17 = "weight percents", 'Site Wide Gas & Liquid Analyses'!C58, IF('Site Wide Gas & Liquid Analyses'!$D$17 = "mole percents", 'Site Wide Gas & Liquid Analyses'!I58, "Error")) -> Error
B40: Are planned MSS vapors (A) uncontrolled; (B) controlled by a flare, vapor combustor, thermal oxidizer, or vapor recovery unit (VRU); or (C) controlled by another type of control device? | E40: (B) cont. by flare/ VC/TO/VRU
B41: VOC Control Efficiency (%)
B42: H2S Control Efficiency (%)
B44: Vapors Captured by Control Device
B45: You need to input these values into the appropriate control device emission calculation tab.
E46: Hourly Emissions (lb/hr) | F46: Annual Emissions (tpy)
B47: VOC Results: | E47: =IF(E40="(A) uncontrolled", 0, IF(E40="(B) cont. by flare/ VC/TO/VRU", IF(AND(E37="", NOT(E32=""), NOT(E34="")), (((E28*E31)/(I28*E33))/E34)*E36*(100/100), IF(AND(NOT(E37=""), NOT(E32=""), NOT(E34="")), (((E28*E31)/(I28*E33))/E34)*E36*(E37/100), 0)), IF(E40="(C) cont. by other control device", 0, ""))) -> 0 | F47: =IF(E40="(A) uncontrolled", 0, IF(E40="(B) cont. by flare/ VC/TO/VRU", IF(AND(E37="", NOT(E32="")), (((E28*E31)/(I28*E33))*E35/2000)*E36*(100/100), IF(AND(NOT(E37=""), NOT(E32="")), (((E28*E31)/(I28*E33))*E35/2000)*E36*(E37/100), 0)), IF(E40="(C) cont. by other control device", 0, ""))) -> 0
B48: Benzene Results: | E48: =IF(E40="(A) uncontrolled", 0, IF(E40="(B) cont. by flare/ VC/TO/VRU", IF(AND(E38="", NOT(E32=""), NOT(E34="")), (((E28*E31)/(I28*E33))/E34)*E36*(3/100), IF(AND(NOT(E38=""), NOT(E32=""), NOT(E34="")), (((E28*E31)/(I28*E33))/E34)*E36*(E38/100), 0)), IF(E40="(C) cont. by other control device", 0, ""))) -> 0 | F48: =IF(E40="(A) uncontrolled", 0, IF(E40="(B) cont. by flare/ VC/TO/VRU", IF(AND(E38="", NOT(E32="")), (((E28*E31)/(I28*E33))*E35/2000)*E36*(3/100), IF(AND(NOT(E38=""), NOT(E32="")), (((E28*E31)/(I28*E33))*E35/2000)*E36*(E38/100), 0)), IF(E40="(C) cont. by other control device", 0, ""))) -> 0
B49: H2S Results: | E49: =IF(E40="(A) uncontrolled", 0, IF(E40="(B) cont. by flare/ VC/TO/VRU", IF(AND(E39="", NOT(E32=""), NOT(E34="")), (((E28*E31)/(I28*E33))/E34)*E36*(0.001/100), IF(AND(NOT(E39=""), NOT(E32=""), NOT(E34="")), (((E28*E31)/(I28*E33))/E34)*E36*(E39/100), 0)), IF(E40="(C) cont. by other control device", 0, ""))) -> 0 | F49: =IF(E40="(A) uncontrolled", 0, IF(E40="(B) cont. by flare/ VC/TO/VRU", IF(AND(E39="", NOT(E32="")), (((E28*E31)/(I28*E33))*E35/2000)*E36*(0.001/100), IF(AND(NOT(E39=""), NOT(E32="")), (((E28*E31)/(I28*E33))*E35/2000)*E36*(E39/100), 0)), IF(E40="(C) cont. by other control device", 0, ""))) -> 0
B51: Planned MSS Emissions
E52: Hourly Emissions (lb/hr) | F52: Annual Emissions (tpy)
B53: VOC Results: | E53: =IF(E40="(A) uncontrolled", IF(AND(E37="", NOT(E32=""), NOT(E34="")), (((E28*E31)/(I28*E33))/E34)*E36*(100/100), IF(AND(NOT(E37=""), NOT(E32=""), NOT(E34="")), (((E28*E31)/(I28*E33))/E34)*E36*(E37/100), 0)), IF(E40="(B) cont. by flare/ VC/TO/VRU", IF(AND(E37="", NOT(E32=""), NOT(E34="")), (((E28*E30)/(I28*E33))/E34)*E36*(100/100), IF(AND(NOT(E37=""), NOT(E32=""), NOT(E34="")), (((E28*E30)/(I28*E33))/E34)*E36*(E37/100), 0)), IF(E40="(C) cont. by other control device", IF(AND(E37="", NOT(E32=""), NOT(E34="")), ((((E28*E31)/(I28*E33))/E34)*E36*(100/100))*(1-(E41/100))+((((E28*E30)/(I28*E33))/E34)*E36*(100/100)), IF(AND(NOT(E37=""), NOT(E32=""), NOT(E34="")), ((((E28*E31)/(I28*E33))/E34)*E36*(E37/100))*(1-(E41/100))+((((E28*E30)/(I28*E33))/E34)*E36*(E37/100)), 0)), ""))) -> 0 | F53: =IF(E40="(A) uncontrolled", IF(AND(E37="", NOT(E32="")), (((E28*E31)/(I28*E33))*E35/2000)*E36*(100/100), IF(AND(NOT(E37=""), NOT(E32="")), (((E28*E31)/(I28*E33))*E35/2000)*E36*(E37/100), 0)), IF(E40="(B) cont. by flare/ VC/TO/VRU", IF(AND(E37="", NOT(E32="")), (((E28*E30)/(I28*E33))*E35/2000)*E36*(100/100), IF(AND(NOT(E37=""), NOT(E32="")), (((E28*E30)/(I28*E33))*E35/2000)*E36*(E37/100), 0)), IF(E40="(C) cont. by other control device", IF(AND(E37="", NOT(E32="")), ((((E28*E31)/(I28*E33))*E35/2000)*E36*(100/100))*(1-(E41/100))+((((E28*E30)/(I28*E33))*E35/2000)*E36*(100/100)), IF(AND(NOT(E37=""), NOT(E32="")), ((((E28*E31)/(I28*E33))*E35/2000)*E36*(E37/100))*(1-(E41/100))+((((E28*E30)/(I28*E33))*E35/2000)*E36*(E37/100)), 0)), ""))) -> 0
B54: Benzene Results: | E54: =IF(E40="(A) uncontrolled", IF(AND(E38="", NOT(E32=""), NOT(E34="")), (((E28*E31)/(I28*E33))/E34)*E36*(3/100), IF(AND(NOT(E38=""), NOT(E32=""), NOT(E34="")), (((E28*E31)/(I28*E33))/E34)*E36*(E38/100), 0)), IF(E40="(B) cont. by flare/ VC/TO/VRU", IF(AND(E38="", NOT(E32=""), NOT(E34="")), (((E28*E30)/(I28*E33))/E34)*E36*(3/100), IF(AND(NOT(E38=""), NOT(E32=""), NOT(E34="")), (((E28*E30)/(I28*E33))/E34)*E36*(E38/100), 0)), IF(E40="(C) cont. by other control device", IF(AND(E38="", NOT(E32=""), NOT(E34="")), ((((E28*E31)/(I28*E33))/E34)*E36*(3/100))*(1-(E41/100))+((((E28*E30)/(I28*E33))/E34)*E36*(3/100)), IF(AND(NOT(E38=""), NOT(E32=""), NOT(E34="")), ((((E28*E31)/(I28*E33))/E34)*E36*(E38/100))*(1-(E41/100))+((((E28*E30)/(I28*E33))/E34)*E36*(E38/100)), 0)), ""))) -> 0 | F54: =IF(E40="(A) uncontrolled", IF(AND(E38="", NOT(E32="")), (((E28*E31)/(I28*E33))*E35/2000)*E36*(3/100), IF(AND(NOT(E38=""), NOT(E32="")), (((E28*E31)/(I28*E33))*E35/2000)*E36*(E38/100), 0)), IF(E40="(B) cont. by flare/ VC/TO/VRU", IF(AND(E38="", NOT(E32="")), (((E28*E30)/(I28*E33))*E35/2000)*E36*(3/100), IF(AND(NOT(E38=""), NOT(E32="")), (((E28*E30)/(I28*E33))*E35/2000)*E36*(E38/100), 0)), IF(E40="(C) cont. by other control device", IF(AND(E38="", NOT(E32="")), ((((E28*E31)/(I28*E33))*E35/2000)*E36*(3/100))*(1-(E41/100))+((((E28*E30)/(I28*E33))*E35/2000)*E36*(3/100)), IF(AND(NOT(E38=""), NOT(E32="")), ((((E28*E31)/(I28*E33))*E35/2000)*E36*(E38/100))*(1-(E41/100))+((((E28*E30)/(I28*E33))*E35/2000)*E36*(E38/100)), 0)), ""))) -> 0
B55: H2S Results: | E55: =IF(E40="(A) uncontrolled", IF(AND(E39="", NOT(E32=""), NOT(E34="")), (((E28*E31)/(I28*E33))/E34)*E36*(0.001/100), IF(AND(NOT(E39=""), NOT(E32=""), NOT(E34="")), (((E28*E31)/(I28*E33))/E34)*E36*(E39/100), 0)), IF(E40="(B) cont. by flare/ VC/TO/VRU", IF(AND(E39="", NOT(E32=""), NOT(E34="")), (((E28*E30)/(I28*E33))/E34)*E36*(0.001/100), IF(AND(NOT(E39=""), NOT(E32=""), NOT(E34="")), (((E28*E30)/(I28*E33))/E34)*E36*(E39/100), 0)), IF(E40="(C) cont. by other control device", IF(AND(E39="", NOT(E32=""), NOT(E34="")), ((((E28*E31)/(I28*E33))/E34)*E36*(0.001/100))*(1-(E41/100))+((((E28*E30)/(I28*E33))/E34)*E36*(0.001/100)), IF(AND(NOT(E39=""), NOT(E32=""), NOT(E34="")), ((((E28*E31)/(I28*E33))/E34)*E36*(E39/100))*(1-(E41/100))+((((E28*E30)/(I28*E33))/E34)*E36*(E39/100)), 0)), ""))) -> 0 | F55: =IF(E40="(A) uncontrolled", IF(AND(E39="", NOT(E32="")), (((E28*E31)/(I28*E33))*E35/2000)*E36*(0.001/100), IF(AND(NOT(E39=""), NOT(E32="")), (((E28*E31)/(I28*E33))*E35/2000)*E36*(E39/100), 0)), IF(E40="(B) cont. by flare/ VC/TO/VRU", IF(AND(E39="", NOT(E32="")), (((E28*E30)/(I28*E33))*E35/2000)*E36*(0.001/100), IF(AND(NOT(E39=""), NOT(E32="")), (((E28*E30)/(I28*E33))*E35/2000)*E36*(E39/100), 0)), IF(E40="(C) cont. by other control device", IF(AND(E39="", NOT(E32="")), ((((E28*E31)/(I28*E33))*E35/2000)*E36*(0.001/100))*(1-(E41/100))+((((E28*E30)/(I28*E33))*E35/2000)*E36*(0.001/100)), IF(AND(NOT(E39=""), NOT(E32="")), ((((E28*E31)/(I28*E33))*E35/2000)*E36*(E39/100))*(1-(E41/100))+((((E28*E30)/(I28*E33))*E35/2000)*E36*(E39/100)), 0)), ""))) -> 0
B58: VOC Type: (pick from list)
B59: Natural Gas VOC
B61: Emission Type: (pick from list)
B62: Low Pressure Periodic
B64: Enter any notes here:

Sheet Emissions Summary-New Requ
C1: ='Facility Information'!C27 -> Company Name
C2: ='Facility Information'!C28 -> Site Name
C4: Emissions Summary
C6: The table below is a summary of all emission points for this registration. It is separated into Project Emissions and Other Registration Emissions.
C8: The table has separate totals for Project Total Emission Rates and Registration Total Emission Rates.
C10: On the table, for each emission source, there is a space for three emission rates on a pound per hour (lb//hr) basis and one emission rate on a ton per year (tpy) basis. Periodic emissions are authorized to exceed the steady state limits of the rule (150, 300, and 600 hours per year for PBR Level 1, PBR Level 2, and the Standard Permit, respectively), in which case the periodic emission limits must be met. Note that periodically emitting activities, such as loading and MSS activities, are not limited to occurring less than these time limits. It is only for that amount of time that the emissions can exceed the normal steady state limits.
C12: Any formaldehyde emissions must be included as part of VOC emissions.
C14: Before pressing the Update button, make sure you have selected the correct VOC Type and Emission Type from the pull down menus in each emission calculation tab.
C16: Emissions Summary
C17: Project Emissions (This needs to include all emission points being added for the first time to the registration or emission points with emissions that are changing from previously registered emissions. It does NOT include emission points for which the emissions have not changed and have previously been registered (unless the emission point emissions are chosen to be re-calculated as part of this project); those emissions will be entered below in the Other Registration Emissions section of this table.)
C18: Emission Point No. (1) | D18: Source Name (2) | G18: Emission Rates
F19: Air Contaminant Name (3) | G19: steady state lbs/hr | H19: < 30 psig periodic lbs/hr | I19: ≥ 30 psig periodic lbs/hr | J19: TPY (4)
F20: Total VOC
F21: Total Crude Oil or Condensate VOC
F22: Total Natural Gas VOC
F23: Benzene
F24: Formaldehyde
F25: H2S
F26: SO2
F27: NOX
F28: CO
F29: PM10
F30: PM2.5
C31: Insertion point row (used by macro)
C32: Project Total Emission Rates (Note that these totals are simply the sum of the emission rates from each emission point. The periodic emission limits in the rule need to be compared to the sum of steady state and periodic emissions, that is the worst case combination of continuously and periodically emitting sources that could occur in any one hour.) These totals include all emission points above. If the worst case periodic scenario does not include all emission points, then below in the summary table override the calculation and explain which emission points represent the worst case periodic emission scenario. | G32: Emission Rates
F33: Air Contaminant Name (3) | G33: steady state lbs/hr | H33: < 30 psig periodic lbs/hr | I33: ≥ 30 psig periodic lbs/hr | J33: TPY (4)
F34: Total VOC | G34: =(DSUM($F$19:$J$31, "steady state lbs/hr",$F$19:$F$20)) -> 0 | H34: =(DSUM($F$19:$J$31, "< 30 psig periodic lbs/hr",$F$19:$F$20)) -> 0 | I34: =(DSUM($F$19:$J$31, "≥ 30 psig periodic lbs/hr",$F$19:$F$20)) -> 0 | J34: =(DSUM($F$19:$J$31, "TPY (4)",$F$19:$F$20)) -> 0
F35: Total Crude Oil or Condensate VOC | G35: =(DSUM($F$19:$J$31, "steady state lbs/hr",$F$19:$F$21))-G34 -> 0 | H35: =(DSUM($F$19:$J$31, "< 30 psig periodic lbs/hr",$F$19:$F$21))-H34 -> 0 | I35: =(DSUM($F$19:$J$31, "≥ 30 psig periodic lbs/hr",$F$19:$F$21))-I34 -> 0 | J35: =(DSUM($F$19:$J$31, "TPY (4)",$F$19:$F$21))-J34 -> 0
F36: Total Natural Gas VOC | G36: =(DSUM($F$19:$J$31, "steady state lbs/hr",$F$19:$F$22))-G34-G35 -> 0 | H36: =(DSUM($F$19:$J$31, "< 30 psig periodic lbs/hr",$F$19:$F$22))-H34-H35 -> 0 | I36: =(DSUM($F$19:$J$31, "≥ 30 psig periodic lbs/hr",$F$19:$F$22))-I34-I35 -> 0 | J36: =(DSUM($F$19:$J$31, "TPY (4)",$F$19:$F$22))-J34-J35 -> 0
F37: Benzene | G37: =(DSUM($F$19:$J$31, "steady state lbs/hr",$F$19:$F$23))-G34-G35-G36 -> 0 | H37: =(DSUM($F$19:$J$31, "< 30 psig periodic lbs/hr",$F$19:$F$23))-H34-H35-H36 -> 0 | I37: =(DSUM($F$19:$J$31, "≥ 30 psig periodic lbs/hr",$F$19:$F$23))-I34-I35-I36 -> 0 | J37: =(DSUM($F$19:$J$31, "TPY (4)",$F$19:$F$23))-J34-J35-J36 -> 0
F38: Formaldehyde | G38: =(DSUM($F$19:$J$31, "steady state lbs/hr",$F$19:$F$24))-G34-G35-G36-G37 -> 0 | H38: =(DSUM($F$19:$J$31, "< 30 psig periodic lbs/hr",$F$19:$F$24))-H34-H35-H36-H37 -> 0 | I38: =(DSUM($F$19:$J$31, "≥ 30 psig periodic lbs/hr",$F$19:$F$24))-I34-I35-I36-I37 -> 0 | J38: =(DSUM($F$19:$J$31, "TPY (4)",$F$19:$F$24))-J34-J35-J36-J37 -> 0
F39: H2S | G39: =(DSUM($F$19:$J$31, "steady state lbs/hr",$F$19:$F$25))-G34-G35-G36-G37-G38 -> 0 | H39: =(DSUM($F$19:$J$31, "< 30 psig periodic lbs/hr",$F$19:$F$25))-H34-H35-H36-H37-H38 -> 0 | I39: =(DSUM($F$19:$J$31, "≥ 30 psig periodic lbs/hr",$F$19:$F$25))-I34-I35-I36-I37-I38 -> 0 | J39: =(DSUM($F$19:$J$31, "TPY (4)",$F$19:$F$25))-J34-J35-J36-J37-J38 -> 0
F40: SO2 | G40: =(DSUM($F$19:$J$31, "steady state lbs/hr",$F$19:$F$26))-G34-G35-G36-G37-G38-G39 -> 0 | H40: =(DSUM($F$19:$J$31, "< 30 psig periodic lbs/hr",$F$19:$F$26))-H34-H35-H36-H37-H38-H39 -> 0 | I40: =(DSUM($F$19:$J$31, "≥ 30 psig periodic lbs/hr",$F$19:$F$26))-I34-I35-I36-I37-I38-I39 -> 0 | J40: =(DSUM($F$19:$J$31, "TPY (4)",$F$19:$F$26))-J34-J35-J36-J37-J38-J39 -> 0
F41: NOX | G41: =(DSUM($F$19:$J$31, "steady state lbs/hr",$F$19:$F$27))-G34-G35-G36-G37-G38-G39-G40 -> 0 | H41: =(DSUM($F$19:$J$31, "< 30 psig periodic lbs/hr",$F$19:$F$27))-H34-H35-H36-H37-H38-H39-H40 -> 0 | I41: =(DSUM($F$19:$J$31, "≥ 30 psig periodic lbs/hr",$F$19:$F$27))-I34-I35-I36-I37-I38-I39-I40 -> 0 | J41: =(DSUM($F$19:$J$31, "TPY (4)",$F$19:$F$27))-J34-J35-J36-J37-J38-J39-J40 -> 0
F42: CO | G42: =(DSUM($F$19:$J$31, "steady state lbs/hr",$F$19:$F$28))-G34-G35-G36-G37-G38-G39-G40-G41 -> 0 | H42: =(DSUM($F$19:$J$31, "< 30 psig periodic lbs/hr",$F$19:$F$28))-H34-H35-H36-H37-H38-H39-H40-H41 -> 0 | I42: =(DSUM($F$19:$J$31, "≥ 30 psig periodic lbs/hr",$F$19:$F$28))-I34-I35-I36-I37-I38-I39-I40-I41 -> 0 | J42: =(DSUM($F$19:$J$31, "TPY (4)",$F$19:$F$28))-J34-J35-J36-J37-J38-J39-J40-J41 -> 0
F43: PM10 | G43: =(DSUM($F$19:$J$31, "steady state lbs/hr",$F$19:$F$29))-G34-G35-G36-G37-G38-G39-G40-G41-G42 -> 0 | H43: =(DSUM($F$19:$J$31, "< 30 psig periodic lbs/hr",$F$19:$F$29))-H34-H35-H36-H37-H38-H39-H40-H41-H42 -> 0 | I43: =(DSUM($F$19:$J$31, "≥ 30 psig periodic lbs/hr",$F$19:$F$29))-I34-I35-I36-I37-I38-I39-I40-I41-I42 -> 0 | J43: =(DSUM($F$19:$J$31, "TPY (4)",$F$19:$F$29))-J34-J35-J36-J37-J38-J39-J40-J41-J42 -> 0
F44: PM2.5 | G44: =(DSUM($F$19:$J$31, "steady state lbs/hr",$F$19:$F$30))-G34-G35-G36-G37-G38-G39-G40-G41-G42-G43 -> 0 | H44: =(DSUM($F$19:$J$31, "< 30 psig periodic lbs/hr",$F$19:$F$30))-H34-H35-H36-H37-H38-H39-H40-H41-H42-H43 -> 0 | I44: =(DSUM($F$19:$J$31, "≥ 30 psig periodic lbs/hr",$F$19:$F$30))-I34-I35-I36-I37-I38-I39-I40-I41-I42-I43 -> 0 | J44: =(DSUM($F$19:$J$31, "TPY (4)",$F$19:$F$30))-J34-J35-J36-J37-J38-J39-J40-J41-J42-J43 -> 0
C45: Project Total Emission Rates (Note that these periodic totals are NOT simply the sum of the periodic emission rates from each emission point. The periodic emission limits in the rule need to be compared to the sum of steady state and periodic emissions, that is the worst case combination of continuously and periodically emitting sources that could occur in any one hour. The periodic emission rates shown here are the sum of all steady state and periodic emissions in the project. If the worst case combination of continuously and periodically emitting sources is less than this, then please input the values in this table to the right. Please explain below which emission points are included in this worst case combination.) | G45: Emission Rates
F46: Air Contaminant Name (3) | G46: steady state lbs/hr | H46: < 30 psig periodic lbs/hr | I46: ≥ 30 psig periodic lbs/hr | J46: TPY (4)
F47: Total VOC | G47: =G34 -> 0 | H47: =G34+H34 -> 0 | I47: =G34+H34+I34 -> 0 | J47: =J34 -> 0
F48: Total Crude Oil or Condensate VOC | G48: =G35 -> 0 | H48: =G35+H35 -> 0 | I48: =G35+H35+I35 -> 0 | J48: =J35 -> 0
F49: Total Natural Gas VOC | G49: =G36 -> 0 | H49: =G36+H36 -> 0 | I49: =G36+H36+I36 -> 0 | J49: 0
F50: Benzene | G50: =G37 -> 0 | H50: =G37+H37 -> 0 | I50: 0 | J50: 0
F51: Formaldehyde | G51: 0 | H51: 0 | I51: 0 | J51: =J38 -> 0
F52: H2S | G52: 0 | H52: 0 | I52: 0 | J52: 0
F53: SO2 | G53: 0 | H53: =G40+H40 -> 0 | I53: 0 | J53: 0
F54: NOX | G54: =G41 -> 0 | H54: 0 | I54: 0 | J54: 0
F55: CO | G55: =G42 -> 0 | H55: 0 | I55: 0 | J55: =J42 -> 0
F56: PM10 | G56: 0 | H56: =G43+H43 -> 0 | I56: 0 | J56: 0
F57: PM2.5 | G57: =G44 -> 0 | H57: =G44+H44 -> 0 | I57: =G44+H44+I44 -> 0 | J57: =J44 -> 0
C58: If the automated formulas for the project emission totals (which assume that it is possible for all steady state and periodic emissions in the project to occur in the same hour) have been overwritten, explain any changes made and list the project emission points that occur in the realistic worst case hour. (Leave this blank or put NA if none of the formulas have been overwritten.)
C59: Other Registration Emissions (This needs to include any other emission points not included in the Project Emissions Summary that are in the registration. This should be all the operationally dependent units that are within 1/4 mile of each other and are also owned/operated by the same company and located on contiguous or adjacent property. It is possible that nothing needs to be entered here.)
C60: There are no other registration emission points.
C61: Emission Point No. (1) | D61: Source Name (2) | G61: Emission Rates
F62: Air Contaminant Name (3) | G62: steady state lbs/hr | H62: < 30 psig periodic lbs/hr | I62: ≥ 30 psig periodic lbs/hr | J62: TPY (4)
F63: Total VOC
F64: Total Crude Oil or Condensate VOC
F65: Total Natural Gas VOC
F66: Benzene
F67: Formaldehyde
F68: H2S
F69: SO2
F70: NOX
F71: CO
F72: PM10
F73: PM2.5
C74: Insertion point row (used by macro)
C75: Registration Total Emission Rates (This includes all Project and Registration Emissions.) (Note that these totals are simply the sum of the emission rates from each emission point. The periodic emission limits in the rule need to be compared to the sum of steady state and periodic emissions, that is the worst case combination of continuously and periodically emitting sources that could occur in any one hour.) These totals include all emission points above. If the worst case periodic scenario does not include all emission points, then below in the summary table override the calculation and explain which emission points represent the worst case periodic emission scenario. | G75: Emission Rates
F76: Air Contaminant Name (3) | G76: steady state lbs/hr | H76: < 30 psig periodic lbs/hr | I76: ≥ 30 psig periodic lbs/hr | J76: TPY (4)
F77: Total VOC | G77: =(DSUM($F$62:$J$74, "steady state lbs/hr",$F$62:$F$63))+G34 -> 0 | H77: =(DSUM($F$62:$J$74, "< 30 psig periodic lbs/hr",$F$62:$F$63))+H34 -> 0 | I77: =(DSUM($F$62:$J$74, "≥ 30 psig periodic lbs/hr",$F$62:$F$63))+I34 -> 0 | J77: =(DSUM($F$62:$J$74, "TPY (4)",$F$62:$F$63))+J34 -> 0
F78: Total Crude Oil or Condensate VOC | G78: =(DSUM($F$62:$J$74, "steady state lbs/hr",$F$62:$F$64))-(G77-G34)+G35 -> 0 | H78: =(DSUM($F$62:$J$74, "< 30 psig periodic lbs/hr",$F$62:$F$64))-(H77-H34)+H35 -> 0 | I78: =(DSUM($F$62:$J$74, "≥ 30 psig periodic lbs/hr",$F$62:$F$64))-(I77-I34)+I35 -> 0 | J78: =(DSUM($F$62:$J$74, "TPY (4)",$F$62:$F$64))-(J77-J34)+J35 -> 0
F79: Total Natural Gas VOC | G79: =(DSUM($F$62:$J$74, "steady state lbs/hr",$F$62:$F$65))-(G77-G34)-(G78-G35)+G36 -> 0 | H79: =(DSUM($F$62:$J$74, "< 30 psig periodic lbs/hr",$F$62:$F$65))-(H77-H34)-(H78-H35)+H36 -> 0 | I79: =(DSUM($F$62:$J$74, "≥ 30 psig periodic lbs/hr",$F$62:$F$65))-(I77-I34)-(I78-I35)+I36 -> 0 | J79: =(DSUM($F$62:$J$74, "TPY (4)",$F$62:$F$65))-(J77-J34)-(J78-J35)+J36 -> 0
F80: Benzene | G80: =(DSUM($F$62:$J$74, "steady state lbs/hr",$F$62:$F$66))-(G77-G34)-(G78-G35)-(G79-G36)+G37 -> 0 | H80: =(DSUM($F$62:$J$74, "< 30 psig periodic lbs/hr",$F$62:$F$66))-(H77-H34)-(H78-H35)-(H79-H36)+H37 -> 0 | I80: =(DSUM($F$62:$J$74, "≥ 30 psig periodic lbs/hr",$F$62:$F$66))-(I77-I34)-(I78-I35)-(I79-I36)+I37 -> 0 | J80: =(DSUM($F$62:$J$74, "TPY (4)",$F$62:$F$66))-(J77-J34)-(J78-J35)-(J79-J36)+J37 -> 0
F81: Formaldehyde | G81: =(DSUM($F$62:$J$74, "steady state lbs/hr",$F$62:$F$67))-(G77-G34)-(G78-G35)-(G79-G36)-(G80-G37)+G38 -> 0 | H81: =(DSUM($F$62:$J$74, "< 30 psig periodic lbs/hr",$F$62:$F$67))-(H77-H34)-(H78-H35)-(H79-H36)-(H80-H37)+H38 -> 0 | I81: =(DSUM($F$62:$J$74, "≥ 30 psig periodic lbs/hr",$F$62:$F$67))-(I77-I34)-(I78-I35)-(I79-I36)-(I80-I37)+I38 -> 0 | J81: =(DSUM($F$62:$J$74, "TPY (4)",$F$62:$F$67))-(J77-J34)-(J78-J35)-(J79-J36)-(J80-J37)+J38 -> 0
F82: H2S | G82: =(DSUM($F$62:$J$74, "steady state lbs/hr",$F$62:$F$68))-(G77-G34)-(G78-G35)-(G79-G36)-(G80-G37)-(G81-G38)+G39 -> 0 | H82: =(DSUM($F$62:$J$74, "< 30 psig periodic lbs/hr",$F$62:$F$68))-(H77-H34)-(H78-H35)-(H79-H36)-(H80-H37)-(H81-H38)+H39 -> 0 | I82: =(DSUM($F$62:$J$74, "≥ 30 psig periodic lbs/hr",$F$62:$F$68))-(I77-I34)-(I78-I35)-(I79-I36)-(I80-I37)-(I81-I38)+I39 -> 0 | J82: =(DSUM($F$62:$J$74, "TPY (4)",$F$62:$F$68))-(J77-J34)-(J78-J35)-(J79-J36)-(J80-J37)-(J81-J38)+J39 -> 0
F83: SO2 | G83: =(DSUM($F$62:$J$74, "steady state lbs/hr",$F$62:$F$69))-(G77-G34)-(G78-G35)-(G79-G36)-(G80-G37)-(G81-G38)-(G82-G39)+G40 -> 0 | H83: =(DSUM($F$62:$J$74, "< 30 psig periodic lbs/hr",$F$62:$F$69))-(H77-H34)-(H78-H35)-(H79-H36)-(H80-H37)-(H81-H38)-(H82-H39)+H40 -> 0 | I83: =(DSUM($F$62:$J$74, "≥ 30 psig periodic lbs/hr",$F$62:$F$69))-(I77-I34)-(I78-I35)-(I79-I36)-(I80-I37)-(I81-I38)-(I82-I39)+I40 -> 0 | J83: =(DSUM($F$62:$J$74, "TPY (4)",$F$62:$F$69))-(J77-J34)-(J78-J35)-(J79-J36)-(J80-J37)-(J81-J38)-(J82-J39)+J40 -> 0
F84: NOX | G84: =(DSUM($F$62:$J$74, "steady state lbs/hr",$F$62:$F$70))-(G77-G34)-(G78-G35)-(G79-G36)-(G80-G37)-(G81-G38)-(G82-G39)-(G83-G40)+G41 -> 0 | H84: =(DSUM($F$62:$J$74, "< 30 psig periodic lbs/hr",$F$62:$F$70))-(H77-H34)-(H78-H35)-(H79-H36)-(H80-H37)-(H81-H38)-(H82-H39)-(H83-H40)+H41 -> 0 | I84: =(DSUM($F$62:$J$74, "≥ 30 psig periodic lbs/hr",$F$62:$F$70))-(I77-I34)-(I78-I35)-(I79-I36)-(I80-I37)-(I81-I38)-(I82-I39)-(I83-I40)+I41 -> 0 | J84: =(DSUM($F$62:$J$74, "TPY (4)",$F$62:$F$70))-(J77-J34)-(J78-J35)-(J79-J36)-(J80-J37)-(J81-J38)-(J82-J39)-(J83-J40)+J41 -> 0
F85: CO | G85: =(DSUM($F$62:$J$74, "steady state lbs/hr",$F$62:$F$71))-(G77-G34)-(G78-G35)-(G79-G36)-(G80-G37)-(G81-G38)-(G82-G39)-(G83-G40)-(G84-G41)+G42 -> 0 | H85: =(DSUM($F$62:$J$74, "< 30 psig periodic lbs/hr",$F$62:$F$71))-(H77-H34)-(H78-H35)-(H79-H36)-(H80-H37)-(H81-H38)-(H82-H39)-(H83-H40)-(H84-H41)+H42 -> 0 | I85: =(DSUM($F$62:$J$74, "≥ 30 psig periodic lbs/hr",$F$62:$F$71))-(I77-I34)-(I78-I35)-(I79-I36)-(I80-I37)-(I81-I38)-(I82-I39)-(I83-I40)-(I84-I41)+I42 -> 0 | J85: =(DSUM($F$62:$J$74, "TPY (4)",$F$62:$F$71))-(J77-J34)-(J78-J35)-(J79-J36)-(J80-J37)-(J81-J38)-(J82-J39)-(J83-J40)-(J84-J41)+J42 -> 0
F86: PM10 | G86: =(DSUM($F$62:$J$74, "steady state lbs/hr",$F$62:$F$72))-(G77-G34)-(G78-G35)-(G79-G36)-(G80-G37)-(G81-G38)-(G82-G39)-(G83-G40)-(G84-G41)-(G85-G42)+G43 -> 0 | H86: =(DSUM($F$62:$J$74, "< 30 psig periodic lbs/hr",$F$62:$F$72))-(H77-H34)-(H78-H35)-(H79-H36)-(H80-H37)-(H81-H38)-(H82-H39)-(H83-H40)-(H84-H41)-(H85-H42)+H43 -> 0 | I86: =(DSUM($F$62:$J$74, "≥ 30 psig periodic lbs/hr",$F$62:$F$72))-(I77-I34)-(I78-I35)-(I79-I36)-(I80-I37)-(I81-I38)-(I82-I39)-(I83-I40)-(I84-I41)-(I85-I42)+I43 -> 0 | J86: =(DSUM($F$62:$J$74, "TPY (4)",$F$62:$F$72))-(J77-J34)-(J78-J35)-(J79-J36)-(J80-J37)-(J81-J38)-(J82-J39)-(J83-J40)-(J84-J41)-(J85-J42)+J43 -> 0
F87: PM2.5 | G87: =(DSUM($F$62:$J$74, "steady state lbs/hr",$F$62:$F$73))-(G77-G34)-(G78-G35)-(G79-G36)-(G80-G37)-(G81-G38)-(G82-G39)-(G83-G40)-(G84-G41)-(G85-G42)-(G86-G43)+G44 -> 0 | H87: =(DSUM($F$62:$J$74, "< 30 psig periodic lbs/hr",$F$62:$F$73))-(H77-H34)-(H78-H35)-(H79-H36)-(H80-H37)-(H81-H38)-(H82-H39)-(H83-H40)-(H84-H41)-(H85-H42)-(H86-H43)+H44 -> 0 | I87: =(DSUM($F$62:$J$74, "≥ 30 psig periodic lbs/hr",$F$62:$F$73))-(I77-I34)-(I78-I35)-(I79-I36)-(I80-I37)-(I81-I38)-(I82-I39)-(I83-I40)-(I84-I41)-(I85-I42)-(I86-I43)+I44 -> 0 | J87: =(DSUM($F$62:$J$74, "TPY (4)",$F$62:$F$73))-(J77-J34)-(J78-J35)-(J79-J36)-(J80-J37)-(J81-J38)-(J82-J39)-(J83-J40)-(J84-J41)-(J85-J42)-(J86-J43)+J44 -> 0
C88: Registration Total Emission Rates (Note that these periodic totals are NOT simply the sum of the periodic emission rates from each emission point. The periodic emission limits in the rule need to be compared to the sum of steady state and periodic emissions, that is the worst case combination of continuously and periodically emitting sources that could occur in any one hour. The periodic emission rates shown here are the sum of all steady state and periodic emissions in the registration. If the worst case combination of continuously and periodically emitting sources is less than this, then please input the values in this table to the right. Please explain below which emission points are included in this worst case combination.) | G88: Emission Rates
F89: Air Contaminant Name (3) | G89: steady state lbs/hr | H89: < 30 psig periodic lbs/hr | I89: ≥ 30 psig periodic lbs/hr | J89: TPY (4)
F90: Total VOC | G90: =G77 -> 0 | H90: =G77+H77 -> 0 | I90: =G77+H77+I77 -> 0 | J90: =J77 -> 0
F91: Total Crude Oil or Condensate VOC | G91: =G78 -> 0 | H91: =G78+H78 -> 0 | I91: =G78+H78+I78 -> 0 | J91: =J78 -> 0
F92: Total Natural Gas VOC | G92: =G79 -> 0 | H92: =G79+H79 -> 0 | I92: =G79+H79+I79 -> 0 | J92: 0
F93: Benzene | G93: 0 | H93: 0 | I93: =G80+H80+I80 -> 0 | J93: 0
F94: Formaldehyde | G94: 0 | H94: 0 | I94: 0 | J94: 0
F95: H2S | G95: 0 | H95: 0 | I95: =G82+H82+I82 -> 0 | J95: 0
F96: SO2 | G96: 0 | H96: =G83+H83 -> 0 | I96: 0 | J96: 0
F97: NOX | G97: =G84 -> 0 | H97: 0 | I97: 0 | J97: 0
F98: CO | G98: 0 | H98: =G85+H85 -> 0 | I98: 0 | J98: =J85 -> 0
F99: PM10 | G99: 0 | H99: =G86+H86 -> 0 | I99: 0 | J99: 0
F100: PM2.5 | G100: =G87 -> 0 | H100: =G87+H87 -> 0 | I100: 0 | J100: =J87 -> 0
C101: If the automated formulas for the registration emission totals (which assume that it is possible for all steady state and periodic emissions in the registration to occur in the same hour) have been overwritten, explain any changes made and list the registration emission points that occur in the realistic worst case hour. (Leave this blank or put NA if none of the formulas have been overwritten.)
C102: Based on the Registration Total Emission Rates, this authorization falls under: | I102: =IF('Level of Authorization-New Requ'!F70=1, "PBR Level 1", IF(AND('Level of Authorization-New Requ'!F70=2), "PBR Level 2", IF(AND('Level of Authorization-New Requ'!F70=3), "Standard Permit", IF(AND('Level of Authorization-New Requ'!F70=4), "NSR Case-by-case Permit", IF(AND('Level of Authorization-New Requ'!F70=0), "NA, no limit", "Error"))))) -> PBR Level 1
C104: Enter any notes here:
C106: (1) | D106: Emission point identification - either specific equipment designation or emission point number from plot plan.
C107: (2) | D107: Specific point source name. For fugitive sources, use area name or fugitive source name.
C108: (3) | D108: VOC | E108: volatile organic compounds as defined in Title 30 Texas Administrative Code § 101.1
D109: H2S | E109: hydrogen sulfide
D110: SO2 | E110: sulfur dioxide
D111: NOX | E111: total oxides of nitrogen
D112: CO | E112: carbon monoxide
D113: PM10 | E113: total particulate matter equal to or less than 10 microns in diameter, including PM2.5
D114: PM2.5 | E114: particulate matter equal to or less than 2.5 microns in diameter
C115: (4) | D115: Compliance with annual emission limits (tons per year) is based on a 12 month rolling period.
C116: (5) | D116: If emissions from a source are:
E117: (A) uncontrolled, then the uncontrolled emissions are reported in this table as being emitted from the source.
E118: (B) controlled by a flare, vapor combustor, thermal oxidizer, or vapor recovery unit (VRU), then the controlled emissions are reported on this table as being emitted from the control device.
E119: (C) controlled by another type of control device, then the controlled emissions are reported on this table for the source (even though emissions are actually being emitted at the control device).
C120: (6) | D120: For controlled tank, glycol/amine flash tank and regenerator, and MSS emissions, it is assumed that all vapors make it to the control device (100% collection efficiency). For controlled loading emissions, a 100% collection efficiency is not assumed.
C121: (7) | D121: A VRU itself is not actually considered an emission point; however, this table associates unrecovered (uncontrolled) emissions from sources controlled by a VRU at the VRU.

Sheet Other (hidden)
B1: ='Facility Information'!C27 -> Company Name
B2: ='Facility Information'!C28 -> Site Name
B3: Other Emissions
B4: A) Enter information into the yellow boxes.
B5: B) Please provide a separate detailed calculation for these emissions; also include any necessary supplemental information and notes (such as the source/justification for any calculation inputs).
B6: C) Since these emissions fall into the category of "Other", which does not have a pre-made emission estimation sheet with pre-approved methods, the time to review this project cannot be guaranteed to be as quick as if only pre-made sheets had been used.
B7: D) VOC and H2S control efficiencies may be entered (if applicable).
B8: E) Make sure to answer the control device question.
B9: E) Make sure to select the correct VOC Type and Emission Type from the pull down menus below.
B11: EPN:
B12: Name:
B14: Are these vapors (A) uncontrolled; (B) controlled by a flare, vapor combustor, thermal oxidizer, or vapor recovery unit (VRU); or (C) controlled by another type of control device?
B16: Uncontrolled Emissions
C17: Hourly Emissions (lb/hr) | D17: Annual Emissions (tpy) | E17: Control Efficiency
B18: Total VOC
B19: NOx
B20: CO
B21: PM2.5
B22: PM10
B23: H2S
B24: SO2
B25: benzene
B26: formaldehyde
B28: Total Emissions (control efficiencies factored in if applicable)
C29: Hourly Emissions (lb/hr) | D29: Annual Emissions (tpy)
B30: Total VOC | C30: =C18*((100-E18)/100) -> 0 | D30: =D18*((100-E18)/100) -> 0
B31: NOx | C31: =C19*((100-E19)/100) -> 0 | D31: =D19*((100-E19)/100) -> 0
B32: CO | C32: 0 | D32: 0
B33: PM2.5 | C33: 0 | D33: 0
B34: PM10 | C34: 0 | D34: 0
B35: H2S | C35: 0 | D35: 0
B36: SO2 | C36: 0 | D36: 0
B37: benzene | C37: 0 | D37: 0
B38: formaldehyde | C38: 0 | D38: =D26*((100-E26)/100) -> 0
B40: VOC Type: (pick from list)
B41: Crude Oil or Condensate VOC
B43: Emission Type: (pick from list)
B44: Steady State (continuous)

Sheet Emissions Summary-Old Requ (hidden)
C1: ='Facility Information'!C27 -> Company Name
C2: ='Facility Information'!C28 -> Site Name
C3: Emissions Summary
C5: The table below is a summary of all emission points for this registration. It is separated into Project Emissions and Other Registration Emissions.
C7: The table has separate totals for Project Total Emission Rates and Registration Total Emission Rates.
C9: Any formaldehyde emissions must be included as part of VOC emissions.
C11: Emissions Summary
C12: Project Emissions (This needs to include all emission points being added for the first time to the registration or emission points with emissions that are changing from previously registered emissions. It does NOT include emission points for which the emissions have not changed and have previously been registered (unless the emission point emissions are chosen to be re-calculated as part of this project); those emissions will be entered below in the Other Registration Emissions section of this table.)
C13: Emission Point No. (1) | D13: Source Name (2) | G13: Emission Rates
F14: Air Contaminant Name (3) | G14: lbs/hr | H14: TPY (4)
F15: Total VOC
F16: Benzene
F17: Formaldehyde
F18: H2S
F19: SO2
F20: NOX
F21: CO
F22: PM10
F23: PM2.5
C24: Insertion point row (used by macro)
C25: Project Total Emission Rates (Note that these totals are simply the sum of the emission rates from each emission point. For the hourly rates, if the worst case combination of continuously and periodically emitting sources is less than this, then please input the values in this table to the right. Please explain below which emission points are included in this worst case combination.) | G25: Emission Rates
F26: Air Contaminant Name (3) | G26: lbs/hr | H26: TPY (4)
F27: Total VOC | G27: =(DSUM($F$14:$H$24, "lbs/hr",$F$14:$F$15)) -> 0 | H27: =(DSUM($F$14:$H$24, "TPY (4)",$F$14:$F$15)) -> 0
F28: Benzene | G28: =(DSUM($F$14:$H$24, "lbs/hr",$F$14:$F$16))-G27 -> 0 | H28: =(DSUM($F$14:$H$24, "TPY (4)",$F$14:$F$16))-H27 -> 0
F29: Formaldehyde | G29: =(DSUM($F$14:$H$24, "lbs/hr",$F$14:$F$17))-G27-G28 -> 0 | H29: =(DSUM($F$14:$H$24, "TPY (4)",$F$14:$F$17))-H27-H28 -> 0
F30: H2S | G30: =(DSUM($F$14:$H$24, "lbs/hr",$F$14:$F$18))-G27-G28-G29 -> 0 | H30: =(DSUM($F$14:$H$24, "TPY (4)",$F$14:$F$18))-H27-H28-H29 -> 0
F31: SO2 | G31: =(DSUM($F$14:$H$24, "lbs/hr",$F$14:$F$19))-G27-G28-G29-G30 -> 0 | H31: =(DSUM($F$14:$H$24, "TPY (4)",$F$14:$F$19))-H27-H28-H29-H30 -> 0
F32: NOX | G32: =(DSUM($F$14:$H$24, "lbs/hr",$F$14:$F$20))-G27-G28-G29-G30-G31 -> 0 | H32: =(DSUM($F$14:$H$24, "TPY (4)",$F$14:$F$20))-H27-H28-H29-H30-H31 -> 0
F33: CO | G33: =(DSUM($F$14:$H$24, "lbs/hr",$F$14:$F$21))-G27-G28-G29-G30-G31-G32 -> 0 | H33: =(DSUM($F$14:$H$24, "TPY (4)",$F$14:$F$21))-H27-H28-H29-H30-H31-H32 -> 0
F34: PM10 | G34: =(DSUM($F$14:$H$24, "lbs/hr",$F$14:$F$22))-G27-G28-G29-G30-G31-G32-G33 -> 0 | H34: =(DSUM($F$14:$H$24, "TPY (4)",$F$14:$F$22))-H27-H28-H29-H30-H31-H32-H33 -> 0
F35: PM2.5 | G35: =(DSUM($F$14:$H$24, "lbs/hr",$F$14:$F$23))-G27-G28-G29-G30-G31-G32-G33-G34 -> 0 | H35: =(DSUM($F$14:$H$24, "TPY (4)",$F$14:$F$23))-H27-H28-H29-H30-H31-H32-H33-H34 -> 0
C36: If the automated formulas for the project emission totals (which assume that it is possible for all steady state and periodic emissions in the project to occur in the same hour) have been overwritten, explain any changes made and list the project emission points that occur in the realistic worst case hour. (Leave this blank or put NA if none of the formulas have been overwritten.)
C37: Other Registration Emissions (This needs to include any other emission points not included in the Project Emissions Summary that are in the registration. This should be all the operationally dependent units that are within 1/4 mile of each other and are also owned/operated by the same company and located on contiguous or adjacent property. It is possible that nothing needs to be entered here.)
C38: There are no other registration emission points.
C39: Emission Point No. (1) | D39: Source Name (2) | G39: Emission Rates
F40: Air Contaminant Name (3) | G40: lbs/hr | H40: TPY (4)
F41: Total VOC
F42: Benzene
F43: Formaldehyde
F44: H2S
F45: SO2
F46: NOX
F47: CO
F48: PM10
F49: PM2.5
C50: Insertion point row (used by macro)
C51: Registration Total Emission Rates (This includes all Project and Registration Emissions.) (Note that these totals are simply the sum of the emission rates from each emission point. For the hourly rates, if the worst case combination of continuously and periodically emitting sources is less than this, then please input the values in this table to the right. Please explain below which emission points are included in this worst case combination.) | G51: Emission Rates
F52: Air Contaminant Name (3) | G52: lbs/hr | H52: TPY (4)
F53: Total VOC | G53: =(DSUM($F$40:$H$50, "lbs/hr",$F$40:$F$41))+G27 -> 0 | H53: =(DSUM($F$40:$H$50, "TPY (4)",$F$40:$F$41))+H27 -> 0
F54: Benzene | G54: =(DSUM($F$40:$H$50, "lbs/hr",$F$40:$F$42))-(G53-G27)+G28 -> 0 | H54: =(DSUM($F$40:$H$50, "TPY (4)",$F$40:$F$42))-(H53-H27)+H28 -> 0
F55: Formaldehyde | G55: =(DSUM($F$40:$H$50, "lbs/hr",$F$40:$F$43))-(G53-G27)-(G54-G28)+G29 -> 0 | H55: =(DSUM($F$40:$H$50, "TPY (4)",$F$40:$F$43))-(H53-H27)-(H54-H28)+H29 -> 0
F56: H2S | G56: =(DSUM($F$40:$H$50, "lbs/hr",$F$40:$F$44))-(G53-G27)-(G54-G28)-(G55-G29)+G30 -> 0 | H56: =(DSUM($F$40:$H$50, "TPY (4)",$F$40:$F$44))-(H53-H27)-(H54-H28)-(H55-H29)+H30 -> 0
F57: SO2 | G57: =(DSUM($F$40:$H$50, "lbs/hr",$F$40:$F$45))-(G53-G27)-(G54-G28)-(G55-G29)-(G56-G30)+G31 -> 0 | H57: =(DSUM($F$40:$H$50, "TPY (4)",$F$40:$F$45))-(H53-H27)-(H54-H28)-(H55-H29)-(H56-H30)+H31 -> 0
F58: NOX | G58: =(DSUM($F$40:$H$50, "lbs/hr",$F$40:$F$46))-(G53-G27)-(G54-G28)-(G55-G29)-(G56-G30)-(G57-G31)+G32 -> 0 | H58: =(DSUM($F$40:$H$50, "TPY (4)",$F$40:$F$46))-(H53-H27)-(H54-H28)-(H55-H29)-(H56-H30)-(H57-H31)+H32 -> 0
F59: CO | G59: =(DSUM($F$40:$H$50, "lbs/hr",$F$40:$F$47))-(G53-G27)-(G54-G28)-(G55-G29)-(G56-G30)-(G57-G31)-(G58-G32)+G33 -> 0 | H59: =(DSUM($F$40:$H$50, "TPY (4)",$F$40:$F$47))-(H53-H27)-(H54-H28)-(H55-H29)-(H56-H30)-(H57-H31)-(H58-H32)+H33 -> 0
F60: PM10 | G60: =(DSUM($F$40:$H$50, "lbs/hr",$F$40:$F$48))-(G53-G27)-(G54-G28)-(G55-G29)-(G56-G30)-(G57-G31)-(G58-G32)-(G59-G33)+G34 -> 0 | H60: =(DSUM($F$40:$H$50, "TPY (4)",$F$40:$F$48))-(H53-H27)-(H54-H28)-(H55-H29)-(H56-H30)-(H57-H31)-(H58-H32)-(H59-H33)+H34 -> 0
F61: PM2.5 | G61: =(DSUM($F$40:$H$50, "lbs/hr",$F$40:$F$49))-(G53-G27)-(G54-G28)-(G55-G29)-(G56-G30)-(G57-G31)-(G58-G32)-(G59-G33)-(G60-G34)+G35 -> 0 | H61: =(DSUM($F$40:$H$50, "TPY (4)",$F$40:$F$49))-(H53-H27)-(H54-H28)-(H55-H29)-(H56-H30)-(H57-H31)-(H58-H32)-(H59-H33)-(H60-H34)+H35 -> 0
C62: If the automated formulas for the registration emission totals (which assume that it is possible for all steady state and periodic emissions in the registration to occur in the same hour) have been overwritten, explain any changes made and list the registration emission points that occur in the realistic worst case hour. (Leave this blank or put NA if none of the formulas have been overwritten.)
C64: Enter any notes here:
C66: (1) | D66: Emission point identification - either specific equipment designation or emission point number from plot plan.
C67: (2) | D67: Specific point source name. For fugitive sources, use area name or fugitive source name.
C68: (3) | D68: VOC | E68: volatile organic compounds as defined in Title 30 Texas Administrative Code § 101.1
D69: H2S | E69: hydrogen sulfide
D70: SO2 | E70: sulfur dioxide
D71: NOX | E71: total oxides of nitrogen
D72: CO | E72: carbon monoxide
D73: PM10 | E73: total particulate matter equal to or less than 10 microns in diameter, including PM2.5
D74: PM2.5 | E74: particulate matter equal to or less than 2.5 microns in diameter
C75: (4) | D75: Compliance with annual emission limits (tons per year) is based on a 12 month rolling period.
C76: (5) | D76: If emissions from a source are:
E77: (A) uncontrolled, then the uncontrolled emissions are reported in this table as being emitted from the source.
E78: (B) controlled by a flare, vapor combustor, thermal oxidizer, or vapor recovery unit (VRU), then the controlled emissions are reported on this table as being emitted from the control device.
E79: (C) controlled by another type of control device, then the controlled emissions are reported on this table for the source (even though emissions are actually being emitted at the control device).
C80: (6) | D80: For controlled tank, glycol/amine flash tank and regenerator, and MSS emissions, it is assumed that all vapors make it to the control device (100% collection efficiency). For controlled loading emissions, a 100% collection efficiency is not assumed.
C81: (7) | D81: A VRU itself is not actually considered an emission point; however, this table associates unrecovered (uncontrolled) emissions from sources controlled by a VRU at the VRU.
C82: (8) | D82: Benzene emissions are not required for sites not being registered under the new Barnett Shale area requirements; therefore, the benzene emissions reflected on this table will not be treated as emission limits (while it is not required, it is encouraged that benzene emissions are are estimated).

Sheet Level of Authorization-New Requ
B1: ='Facility Information'!C27 -> Company Name
B2: ='Facility Information'!C28 -> Site Name
B4: Authorization Level Determination
B6: The level of authorization is determined by comparing the Registration Total Emission Rates (as shown on the previous tab) to the emission limits of the different authorization levels.
B8: This table is an expanded explanation of how the authorization level shown on the Emissions Summary tab was determined. The table shows which authorization level each compound's emissions fall into, and then at the bottom of the chart it shows which authorization level the entire authorization falls under.
B10: The possible authorization levels are:
C11: PBR Level 1
C12: PBR Level 2
C13: Standard Permit
C14: NSR Case-by-case Permit
C16: Based on the Registration Total Emission Rates (on the previous tab), what Level of Authorization Does Each Emission Rate Fall Into?
C17: Emission Rates
B18: Air Contaminant Name | C18: steady state lbs/hr | D18: < 30 psig periodic lbs/hr | E18: ≥ 30 psig periodic lbs/hr | F18: TPY
B19: Total VOC | C19: NA, no limit | D19: NA, no limit | E19: NA, no limit | F19: =IF('Emissions Summary-New Requ'!J11485<15, "PBR Level 1",IF(AND(15<='Emissions Summary-New Requ'!J11485<15,'Emissions Summary-New Requ'!J11485<15< 25), "PBR Level 2", IF(AND(25<='Emissions Summary-New Requ'!J11485<15,'Emissions Summary-New Requ'!J11485<15< 250), "Standard Permit", IF(AND(250<='Emissions Summary-New Requ'!J11485<15), "NSR Case-by-case Permit", "Error")))) -> PBR Level 1
B20: Total Crude Oil or Condensate VOC | C20: =IF('Emissions Summary-New Requ'!G11486<100, "PBR Level 1", IF(AND(100<='Emissions Summary-New Requ'!G11486,'Emissions Summary-New Requ'!G11486< 145), "Standard Permit", IF(AND(145<='Emissions Summary-New Requ'!G11486), "NSR Case-by-case Permit", "Error"))) -> PBR Level 1 | D20: =IF('Emissions Summary-New Requ'!H11486<145, "PBR Level 1", IF(AND(145<='Emissions Summary-New Requ'!H11486), "NSR Case-by-case Permit", "Error")) -> PBR Level 1 | E20: =IF('Emissions Summary-New Requ'!I11486<318, "PBR Level 1", IF(AND(318<='Emissions Summary-New Requ'!I11486), "NSR Case-by-case Permit", "Error")) -> PBR Level 1 | F20: =IF('Emissions Summary-New Requ'!J11486<25, "PBR Level 1", IF(AND(25<='Emissions Summary-New Requ'!J11486), "Standard Permit", "Error")) -> PBR Level 1
B21: Total Natural Gas VOC | C21: =IF('Emissions Summary-New Requ'!G11487<204, "PBR Level 1",IF(AND(204<='Emissions Summary-New Requ'!G11487,'Emissions Summary-New Requ'!G11487< 356), "PBR Level 2", IF(AND(356<='Emissions Summary-New Requ'!G11487,'Emissions Summary-New Requ'!G11487< 750), "Standard Permit", IF(AND(750<='Emissions Summary-New Requ'!G11487), "NSR Case-by-case Permit", "Error")))) -> PBR Level 1 | D21: =IF('Emissions Summary-New Requ'!H11487<750, "PBR Level 1", IF(AND(750<='Emissions Summary-New Requ'!H11487), "NSR Case-by-case Permit", "Error")) -> PBR Level 1 | E21: =IF('Emissions Summary-New Requ'!I11487<1635, "PBR Level 1", IF(AND(1635<='Emissions Summary-New Requ'!I11487), "NSR Case-by-case Permit", "Error")) -> PBR Level 1 | F21: =IF('Emissions Summary-New Requ'!J11487<25, "PBR Level 1", IF(AND(25<='Emissions Summary-New Requ'!J11487), "Standard Permit", "Error")) -> PBR Level 1
B22: Benzene | C22: =IF('Emissions Summary-New Requ'!G11488<1.95, "PBR Level 1",IF(AND(1.95<='Emissions Summary-New Requ'!G11488,'Emissions Summary-New Requ'!G11488< 3.35), "PBR Level 2", IF(AND(3.35<='Emissions Summary-New Requ'!G11488,'Emissions Summary-New Requ'!G11488< 7), "Standard Permit", IF(AND(7<='Emissions Summary-New Requ'!G11488), "NSR Case-by-case Permit", "Error")))) -> PBR Level 1 | D22: =IF('Emissions Summary-New Requ'!H11488<7, "PBR Level 1", IF(AND(7<='Emissions Summary-New Requ'!H11488), "NSR Case-by-case Permit", "Error")) -> PBR Level 1 | E22: =IF('Emissions Summary-New Requ'!I11488<15.4, "PBR Level 1", IF(AND(15.4<='Emissions Summary-New Requ'!I11488), "NSR Case-by-case Permit", "Error")) -> PBR Level 1 | F22: =IF('Emissions Summary-New Requ'!J11488<2.8, "PBR Level 1",IF(AND(2.8<='Emissions Summary-New Requ'!J11488,'Emissions Summary-New Requ'!J11488< 4.8), "PBR Level 2", IF(AND(4.8<='Emissions Summary-New Requ'!J11488,'Emissions Summary-New Requ'!J11488< 10.2), "Standard Permit", IF(AND(10.2<='Emissions Summary-New Requ'!J11488), "NSR Case-by-case Permit", "Error")))) -> PBR Level 1
B23: Formaldehyde | C23: NA, no limit | D23: NA, no limit | E23: NA, no limit | F23: =IF('Emissions Summary-New Requ'!J11489<25, "PBR Level 1",IF(AND(25<='Emissions Summary-New Requ'!J11489), "Standard Permit", "Error")) -> PBR Level 1
B24: H2S | C24: =IF('Emissions Summary-New Requ'!G11490<4.7, "PBR Level 1",IF(AND(4.7<='Emissions Summary-New Requ'!G11490,'Emissions Summary-New Requ'!G11490< 6), "PBR Level 2", IF(AND(6<='Emissions Summary-New Requ'!G11490,'Emissions Summary-New Requ'!G11490< 10.8), "Standard Permit", IF(AND(10.8<='Emissions Summary-New Requ'!G11490), "NSR Case-by-case Permit", "Error")))) -> PBR Level 1 | D24: =IF('Emissions Summary-New Requ'!H11490<5.1, "PBR Level 1",IF(AND(5.1<='Emissions Summary-New Requ'!H11490,'Emissions Summary-New Requ'!H11490< 6), "PBR Level 2", IF(AND(6<='Emissions Summary-New Requ'!H11490,'Emissions Summary-New Requ'!H11490< 10.8), "Standard Permit", IF(AND(10.8<=#REF!), "NSR Case-by-case Permit", "Error")))) -> PBR Level 1 | E24: =IF('Emissions Summary-New Requ'!I11490<9.8, "PBR Level 1", IF(AND(9.8<='Emissions Summary-New Requ'!I11490), "NSR Case-by-case Permit", "Error")) -> PBR Level 1 | F24: =IF('Emissions Summary-New Requ'!J11490<20.6, "PBR Level 1",IF(AND(20.6<='Emissions Summary-New Requ'!J11490,'Emissions Summary-New Requ'!J11490< 25), "PBR Level 2", IF(AND(25<='Emissions Summary-New Requ'!J11490,'Emissions Summary-New Requ'!J11490< 47), "Standard Permit", IF(AND(47<='Emissions Summary-New Requ'!J11490), "NSR Case-by-case Permit", "Error")))) -> PBR Level 1
B25: SO2 | C25: =IF('Emissions Summary-New Requ'!G11491<47, "PBR Level 1",IF(AND(47<='Emissions Summary-New Requ'!G11491,'Emissions Summary-New Requ'!G11491< 63), "PBR Level 2", IF(AND(63<='Emissions Summary-New Requ'!G11491,'Emissions Summary-New Requ'!G11491< 93.2), "Standard Permit", IF(AND(3<='Emissions Summary-New Requ'!G11491), "NSR Case-by-case Permit", "Error")))) -> PBR Level 1 | D25: =IF('Emissions Summary-New Requ'!H11491<93.2, "PBR Level 1", IF(AND(93.2<='Emissions Summary-New Requ'!H11491), "NSR Case-by-case Permit", "Error")) -> PBR Level 1 | E25: =IF('Emissions Summary-New Requ'!I11491<93.2, "PBR Level 1", IF(AND(93.2<='Emissions Summary-New Requ'!I11491), "NSR Case-by-case Permit", "Error")) -> PBR Level 1 | F25: =IF('Emissions Summary-New Requ'!J11491<25, "PBR Level 1", IF(AND(25<='Emissions Summary-New Requ'!J11491,'Emissions Summary-New Requ'!J11491< 250), "Standard Permit", IF(AND(250<='Emissions Summary-New Requ'!J11491), "NSR Case-by-case Permit", "Error"))) -> PBR Level 1
B26: NOX | C26: =IF('Emissions Summary-New Requ'!G11492<43.2, "PBR Level 1",IF(AND(43.2<='Emissions Summary-New Requ'!G11492,'Emissions Summary-New Requ'!G11492< 54.4), "PBR Level 2", IF(AND(54.4<='Emissions Summary-New Requ'!G11492,'Emissions Summary-New Requ'!G11492< 121), "Standard Permit", IF(AND(121<='Emissions Summary-New Requ'!G11492), "NSR Case-by-case Permit", "Error")))) -> PBR Level 1 | D26: =IF('Emissions Summary-New Requ'!H11492<43.2, "PBR Level 1",IF(AND(43.2<='Emissions Summary-New Requ'!H11492,'Emissions Summary-New Requ'!H11492< 54.4), "PBR Level 2", IF(AND(54.4<='Emissions Summary-New Requ'!H11492,'Emissions Summary-New Requ'!H11492< 121), "Standard Permit", IF(AND(121<='Emissions Summary-New Requ'!H11492), "NSR Case-by-case Permit", "Error")))) -> PBR Level 1 | E26: =IF('Emissions Summary-New Requ'!I11492<43.2, "PBR Level 1",IF(AND(43.2<='Emissions Summary-New Requ'!I11492,'Emissions Summary-New Requ'!I11492< 54.4), "PBR Level 2", IF(AND(54.4<='Emissions Summary-New Requ'!I11492,'Emissions Summary-New Requ'!I11492< 121), "Standard Permit", IF(AND(121<='Emissions Summary-New Requ'!I11492), "NSR Case-by-case Permit", "Error")))) -> PBR Level 1 | F26: =IF('Emissions Summary-New Requ'!J11492<100, "PBR Level 1",IF(AND(100<='Emissions Summary-New Requ'!J11492,'Emissions Summary-New Requ'!J11492< 250), "PBR Level 2", IF(AND(250<='Emissions Summary-New Requ'!J11492), "NSR Case-by-case Permit", "Error"))) -> PBR Level 1
B27: CO | C27: =IF('Emissions Summary-New Requ'!G11493<45, "PBR Level 1",IF(AND(45<='Emissions Summary-New Requ'!G11493,'Emissions Summary-New Requ'!G11493< 57), "PBR Level 2", IF(AND(57<='Emissions Summary-New Requ'!G11493,'Emissions Summary-New Requ'!G11493< 104), "Standard Permit", IF(AND(104<='Emissions Summary-New Requ'!G11493), "NSR Case-by-case Permit", "Error")))) -> PBR Level 1 | D27: =IF('Emissions Summary-New Requ'!H11493<45, "PBR Level 1",IF(AND(45<='Emissions Summary-New Requ'!H11493,'Emissions Summary-New Requ'!H11493< 57), "PBR Level 2", IF(AND(57<='Emissions Summary-New Requ'!H11493,'Emissions Summary-New Requ'!H11493< 104), "Standard Permit", IF(AND(104<='Emissions Summary-New Requ'!H11493), "NSR Case-by-case Permit", "Error")))) -> PBR Level 1 | E27: =IF('Emissions Summary-New Requ'!I11493<45, "PBR Level 1",IF(AND(45<='Emissions Summary-New Requ'!I11493,'Emissions Summary-New Requ'!I11493< 57), "PBR Level 2", IF(AND(57<='Emissions Summary-New Requ'!I11493,'Emissions Summary-New Requ'!I11493< 104), "Standard Permit", IF(AND(104<='Emissions Summary-New Requ'!I11493), "NSR Case-by-case Permit", "Error")))) -> PBR Level 1 | F27: =IF('Emissions Summary-New Requ'!J11493<100, "PBR Level 1",IF(AND(100<='Emissions Summary-New Requ'!J11493,'Emissions Summary-New Requ'!J11493< 250), "PBR Level 2", IF(AND(250<='Emissions Summary-New Requ'!J11493), "NSR Case-by-case Permit", "Error"))) -> PBR Level 1
B28: PM10 | C28: =IF('Emissions Summary-New Requ'!G11494<10, "PBR Level 1",IF(AND(10<='Emissions Summary-New Requ'!G11494,'Emissions Summary-New Requ'!G11494< 12.7), "PBR Level 2", IF(AND(12.7<='Emissions Summary-New Requ'!G11494,'Emissions Summary-New Requ'!G11494< 28), "Standard Permit", IF(AND(28<='Emissions Summary-New Requ'!G11494), "NSR Case-by-case Permit", "Error")))) -> PBR Level 1 | D28: =IF('Emissions Summary-New Requ'!H11494<10, "PBR Level 1",IF(AND(10<='Emissions Summary-New Requ'!H11494,'Emissions Summary-New Requ'!H11494< 12.7), "PBR Level 2", IF(AND(12.7<='Emissions Summary-New Requ'!H11494,'Emissions Summary-New Requ'!H11494< 28), "Standard Permit", IF(AND(28<='Emissions Summary-New Requ'!H11494), "NSR Case-by-case Permit", "Error")))) -> PBR Level 1 | E28: =IF('Emissions Summary-New Requ'!I11494<10, "PBR Level 1",IF(AND(10<='Emissions Summary-New Requ'!I11494,'Emissions Summary-New Requ'!I11494< 12.7), "PBR Level 2", IF(AND(12.7<='Emissions Summary-New Requ'!I11494,'Emissions Summary-New Requ'!I11494< 28), "Standard Permit", IF(AND(28<='Emissions Summary-New Requ'!I11494), "NSR Case-by-case Permit", "Error")))) -> PBR Level 1 | F28: =IF('Emissions Summary-New Requ'!J11494<5, "PBR Level 1",IF(AND(5<='Emissions Summary-New Requ'!J11494,'Emissions Summary-New Requ'!J11494< 10), "PBR Level 2", IF(AND(10<='Emissions Summary-New Requ'!J11494,'Emissions Summary-New Requ'!J11494< 15), "Standard Permit", IF(AND(15<='Emissions Summary-New Requ'!J11494), "NSR Case-by-case Permit", "Error")))) -> PBR Level 1
B29: PM2.5 | C29: =IF('Emissions Summary-New Requ'!G11495<10, "PBR Level 1",IF(AND(10<='Emissions Summary-New Requ'!G11495,'Emissions Summary-New Requ'!G11495< 12.7), "PBR Level 2", IF(AND(12.7<='Emissions Summary-New Requ'!G11495,'Emissions Summary-New Requ'!G11495< 28), "Standard Permit", IF(AND(28<='Emissions Summary-New Requ'!G11495), "NSR Case-by-case Permit", "Error")))) -> PBR Level 1 | D29: =IF('Emissions Summary-New Requ'!H11495<10, "PBR Level 1",IF(AND(10<='Emissions Summary-New Requ'!H11495,'Emissions Summary-New Requ'!H11495< 12.7), "PBR Level 2", IF(AND(12.7<='Emissions Summary-New Requ'!H11495,'Emissions Summary-New Requ'!H11495< 28), "Standard Permit", IF(AND(28<='Emissions Summary-New Requ'!H11495), "NSR Case-by-case Permit", "Error")))) -> PBR Level 1 | E29: =IF('Emissions Summary-New Requ'!I11495<10, "PBR Level 1",IF(AND(10<='Emissions Summary-New Requ'!I11495,'Emissions Summary-New Requ'!I11495< 12.7), "PBR Level 2", IF(AND(12.7<='Emissions Summary-New Requ'!I11495,'Emissions Summary-New Requ'!I11495< 28), "Standard Permit", IF(AND(28<='Emissions Summary-New Requ'!I11495), "NSR Case-by-case Permit", "Error")))) -> PBR Level 1 | F29: =IF('Emissions Summary-New Requ'!J11495<5, "PBR Level 1",IF(AND(5<='Emissions Summary-New Requ'!J11495,'Emissions Summary-New Requ'!J11495< 10), "PBR Level 2", IF(AND(10<='Emissions Summary-New Requ'!J11495,'Emissions Summary-New Requ'!J11495< 15), "Standard Permit", IF(AND(15<='Emissions Summary-New Requ'!J11495), "NSR Case-by-case Permit", "Error")))) -> PBR Level 1
C30: What Level of Authorization Applies to this Registration? (If any of the registration emissions are equal to or greater than the limits of a level, then the whole registration falls into that level above.)
C31: =IF(C19="PBR Level 1", 1, IF(AND(C19="PBR Level 2"), 2, IF(AND(C19="Standard Permit"), 3, IF(AND(C19="NSR Case-by-case Permit"), 4, IF(AND(C19="NA, no limit"), 0, "Error"))))) -> 0 | D31: =IF(D19="PBR Level 1", 1, IF(AND(D19="PBR Level 2"), 2, IF(AND(D19="Standard Permit"), 3, IF(AND(D19="NSR Case-by-case Permit"), 4, IF(AND(D19="NA, no limit"), 0, "Error"))))) -> 0 | E31: =IF(E19="PBR Level 1", 1, IF(AND(E19="PBR Level 2"), 2, IF(AND(E19="Standard Permit"), 3, IF(AND(E19="NSR Case-by-case Permit"), 4, IF(AND(E19="NA, no limit"), 0, "Error"))))) -> 0 | F31: =IF(F19="PBR Level 1", 1, IF(AND(F19="PBR Level 2"), 2, IF(AND(F19="Standard Permit"), 3, IF(AND(F19="NSR Case-by-case Permit"), 4, IF(AND(F19="NA, no limit"), 0, "Error"))))) -> 1
C32: 1 | D32: 1 | E32: 1 | F32: 1
C33: 1 | D33: 1 | E33: 1 | F33: 1
C34: 1 | D34: =IF(D22="PBR Level 1", 1, IF(AND(D22="PBR Level 2"), 2, IF(AND(D22="Standard Permit"), 3, IF(AND(D22="NSR Case-by-case Permit"), 4, IF(AND(D22="NA, no limit"), 0, "Error"))))) -> 1 | E34: =IF(E22="PBR Level 1", 1, IF(AND(E22="PBR Level 2"), 2, IF(AND(E22="Standard Permit"), 3, IF(AND(E22="NSR Case-by-case Permit"), 4, IF(AND(E22="NA, no limit"), 0, "Error"))))) -> 1 | F34: 1
C35: 0 | D35: 0 | E35: 0 | F35: 1
C36: 1 | D36: 1 | E36: 1 | F36: 1
C37: =IF(C25="PBR Level 1", 1, IF(AND(C25="PBR Level 2"), 2, IF(AND(C25="Standard Permit"), 3, IF(AND(C25="NSR Case-by-case Permit"), 4, IF(AND(C25="NA, no limit"), 0, "Error"))))) -> 1 | D37: 1 | E37: =IF(E25="PBR Level 1", 1, IF(AND(E25="PBR Level 2"), 2, IF(AND(E25="Standard Permit"), 3, IF(AND(E25="NSR Case-by-case Permit"), 4, IF(AND(E25="NA, no limit"), 0, "Error"))))) -> 1 | F37: 1
C38: =IF(C26="PBR Level 1", 1, IF(AND(C26="PBR Level 2"), 2, IF(AND(C26="Standard Permit"), 3, IF(AND(C26="NSR Case-by-case Permit"), 4, IF(AND(C26="NA, no limit"), 0, "Error"))))) -> 1 | D38: 1 | E38: 1 | F38: 1
C39: 1 | D39: 1 | E39: 1 | F39: 1
C40: 1 | D40: 1 | E40: 1 | F40: 1
C41: =IF(C29="PBR Level 1", 1, IF(AND(C29="PBR Level 2"), 2, IF(AND(C29="Standard Permit"), 3, IF(AND(C29="NSR Case-by-case Permit"), 4, IF(AND(C29="NA, no limit"), 0, "Error"))))) -> 1 | D41: 1 | E41: =IF(E29="PBR Level 1", 1, IF(AND(E29="PBR Level 2"), 2, IF(AND(E29="Standard Permit"), 3, IF(AND(E29="NSR Case-by-case Permit"), 4, IF(AND(E29="NA, no limit"), 0, "Error"))))) -> 1 | F41: 1
C42: Maximum Number | F42: =MAX(C31:F41) -> 1
C43: =IF(F42=1, "PBR Level 1", IF(AND(F42=2), "PBR Level 2", IF(AND(F42=3), "Standard Permit", IF(AND(F42=4), "NSR Case-by-case Permit", IF(AND(F42=0), "NA, no limit", "Error"))))) -> PBR Level 1
C44: Based on the Registration Total Emission Rates (on the previous tab), what Level of Authorization Does Each Emission Rate Fall Into?
C45: Emission Rates
B46: Air Contaminant Name | C46: steady state lbs/hr | D46: < 30 psig periodic lbs/hr | E46: ≥ 30 psig periodic lbs/hr | F46: TPY
B47: Total VOC | C47: NA, no limit | D47: NA, no limit | E47: NA, no limit | F47: =IF('Emissions Summary-New Requ'!J90<15, "PBR Level 1",IF(AND(15<='Emissions Summary-New Requ'!J90,'Emissions Summary-New Requ'!J90< 25), "PBR Level 2", IF(AND(25<='Emissions Summary-New Requ'!J90,'Emissions Summary-New Requ'!J90< 250), "Standard Permit", IF(AND(250<='Emissions Summary-New Requ'!J90), "NSR Case-by-case Permit", "Error")))) -> PBR Level 1
B48: Total Crude Oil or Condensate VOC | C48: =IF('Emissions Summary-New Requ'!G91<100, "PBR Level 1", IF(AND(100<='Emissions Summary-New Requ'!G91,'Emissions Summary-New Requ'!G91< 145), "Standard Permit", IF(AND(145<='Emissions Summary-New Requ'!G91), "NSR Case-by-case Permit", "Error"))) -> PBR Level 1 | D48: =IF('Emissions Summary-New Requ'!H91<145, "PBR Level 1", IF(AND(145<='Emissions Summary-New Requ'!H91), "NSR Case-by-case Permit", "Error")) -> PBR Level 1 | E48: =IF('Emissions Summary-New Requ'!I91<318, "PBR Level 1", IF(AND(318<='Emissions Summary-New Requ'!I91), "NSR Case-by-case Permit", "Error")) -> PBR Level 1 | F48: =IF('Emissions Summary-New Requ'!J91<15, "PBR Level 1",IF(AND(15<='Emissions Summary-New Requ'!J91,'Emissions Summary-New Requ'!J91< 25), "PBR Level 2", IF(AND(25<='Emissions Summary-New Requ'!J91,'Emissions Summary-New Requ'!J91< 250), "Standard Permit", IF(AND(250<='Emissions Summary-New Requ'!J91), "NSR Case-by-case Permit", "Error")))) -> PBR Level 1
B49: Total Natural Gas VOC | C49: =IF('Emissions Summary-New Requ'!G92<204, "PBR Level 1",IF(AND(204<='Emissions Summary-New Requ'!G92,'Emissions Summary-New Requ'!G92< 356), "PBR Level 2", IF(AND(356<='Emissions Summary-New Requ'!G92,'Emissions Summary-New Requ'!G92< 750), "Standard Permit", IF(AND(750<='Emissions Summary-New Requ'!G92), "NSR Case-by-case Permit", "Error")))) -> PBR Level 1 | D49: =IF('Emissions Summary-New Requ'!H92<750, "PBR Level 1", IF(AND(750<='Emissions Summary-New Requ'!H92), "NSR Case-by-case Permit", "Error")) -> PBR Level 1 | E49: =IF('Emissions Summary-New Requ'!I92<1500, "PBR Level 1", IF(AND(1500<='Emissions Summary-New Requ'!I92,'Emissions Summary-New Requ'!I92<1635), "Standard Permit",IF(AND(1635<='Emissions Summary-New Requ'!I92), "NSR Case-by-case Permit", "Error"))) -> PBR Level 1 | F49: =IF('Emissions Summary-New Requ'!J92<15, "PBR Level 1",IF(AND(15<='Emissions Summary-New Requ'!J92,'Emissions Summary-New Requ'!J92< 25), "PBR Level 2", IF(AND(25<='Emissions Summary-New Requ'!J92,'Emissions Summary-New Requ'!J92< 250), "Standard Permit", IF(AND(250<='Emissions Summary-New Requ'!J92), "NSR Case-by-case Permit", "Error")))) -> PBR Level 1
B50: Benzene | C50: =IF('Emissions Summary-New Requ'!G93<1.95, "PBR Level 1",IF(AND(1.95<='Emissions Summary-New Requ'!G93,'Emissions Summary-New Requ'!G93< 3.35), "PBR Level 2", IF(AND(3.35<='Emissions Summary-New Requ'!G93,'Emissions Summary-New Requ'!G93< 7), "Standard Permit", IF(AND(7<='Emissions Summary-New Requ'!G93), "NSR Case-by-case Permit", "Error")))) -> PBR Level 1 | D50: =IF('Emissions Summary-New Requ'!H93<7, "PBR Level 1", IF(AND(7<='Emissions Summary-New Requ'!H93), "NSR Case-by-case Permit", "Error")) -> PBR Level 1 | E50: =IF('Emissions Summary-New Requ'!I93<15.4, "PBR Level 1", IF(AND(15.4<='Emissions Summary-New Requ'!I93), "NSR Case-by-case Permit", "Error")) -> PBR Level 1 | F50: =IF('Emissions Summary-New Requ'!J93<2.8, "PBR Level 1",IF(AND(2.8<='Emissions Summary-New Requ'!J93,'Emissions Summary-New Requ'!J93< 4.8), "PBR Level 2", IF(AND(4.8<='Emissions Summary-New Requ'!J93,'Emissions Summary-New Requ'!J93< 10.2), "Standard Permit", IF(AND(10.2<='Emissions Summary-New Requ'!J93), "NSR Case-by-case Permit", "Error")))) -> PBR Level 1
B51: Formaldehyde | C51: NA, no limit | D51: NA, no limit | E51: NA, no limit | F51: =IF('Emissions Summary-New Requ'!J94<25, "PBR Level 1",IF(AND(25<='Emissions Summary-New Requ'!J94), "Standard Permit", "Error")) -> PBR Level 1
B52: H2S | C52: =IF('Emissions Summary-New Requ'!G95<4.7, "PBR Level 1",IF(AND(4.7<='Emissions Summary-New Requ'!G95,'Emissions Summary-New Requ'!G95< 6), "PBR Level 2", IF(AND(6<='Emissions Summary-New Requ'!G95,'Emissions Summary-New Requ'!G95< 10.8), "Standard Permit", IF(AND(10.8<='Emissions Summary-New Requ'!G95), "NSR Case-by-case Permit", "Error")))) -> PBR Level 1 | D52: =IF('Emissions Summary-New Requ'!H95<5.1, "PBR Level 1",IF(AND(5.1<='Emissions Summary-New Requ'!H95,'Emissions Summary-New Requ'!H95< 6), "PBR Level 2", IF(AND(6<='Emissions Summary-New Requ'!H95,'Emissions Summary-New Requ'!H95< 10.8), "Standard Permit", IF(AND(10.8<='Emissions Summary-New Requ'!H95), "NSR Case-by-case Permit", "Error")))) -> PBR Level 1 | E52: =IF('Emissions Summary-New Requ'!I95<9.8, "PBR Level 1", IF(AND(9.8<='Emissions Summary-New Requ'!I95), "NSR Case-by-case Permit", "Error")) -> PBR Level 1 | F52: =IF('Emissions Summary-New Requ'!J95<20.6, "PBR Level 1",IF(AND(20.6<='Emissions Summary-New Requ'!J95,'Emissions Summary-New Requ'!J95< 25), "PBR Level 2", IF(AND(25<='Emissions Summary-New Requ'!J95,'Emissions Summary-New Requ'!J95< 47), "Standard Permit", IF(AND(47<='Emissions Summary-New Requ'!J95), "NSR Case-by-case Permit", "Error")))) -> PBR Level 1
B53: SO2 | C53: =IF('Emissions Summary-New Requ'!G96<47, "PBR Level 1",IF(AND(47<='Emissions Summary-New Requ'!G96,'Emissions Summary-New Requ'!G96< 63), "PBR Level 2", IF(AND(63<='Emissions Summary-New Requ'!G96,'Emissions Summary-New Requ'!G96< 93.2), "Standard Permit", IF(AND(93.2<='Emissions Summary-New Requ'!G96), "NSR Case-by-case Permit", "Error")))) -> PBR Level 1 | D53: =IF('Emissions Summary-New Requ'!H96<93.2, "PBR Level 1", IF(AND(93.2<='Emissions Summary-New Requ'!H96), "NSR Case-by-case Permit", "Error")) -> PBR Level 1 | E53: =IF('Emissions Summary-New Requ'!I96<93.2, "PBR Level 1", IF(AND(93.2<='Emissions Summary-New Requ'!I96), "NSR Case-by-case Permit", "Error")) -> PBR Level 1 | F53: =IF('Emissions Summary-New Requ'!J96<25, "PBR Level 1", IF(AND(25<='Emissions Summary-New Requ'!J96,'Emissions Summary-New Requ'!J96< 250), "Standard Permit", IF(AND(250<='Emissions Summary-New Requ'!J96), "NSR Case-by-case Permit", "Error"))) -> PBR Level 1
B54: NOX | C54: =IF('Emissions Summary-New Requ'!G97<43.2, "PBR Level 1",IF(AND(43.2<='Emissions Summary-New Requ'!G97,'Emissions Summary-New Requ'!G97< 54.4), "PBR Level 2", IF(AND(54.4<='Emissions Summary-New Requ'!G97,'Emissions Summary-New Requ'!G97< 121), "Standard Permit", IF(AND(121<='Emissions Summary-New Requ'!G97), "NSR Case-by-case Permit", "Error")))) -> PBR Level 1 | D54: =IF('Emissions Summary-New Requ'!H97<43.2, "PBR Level 1",IF(AND(43.2<='Emissions Summary-New Requ'!H97,'Emissions Summary-New Requ'!H97< 54.4), "PBR Level 2", IF(AND(54.4<='Emissions Summary-New Requ'!H97,'Emissions Summary-New Requ'!H97< 121), "Standard Permit", IF(AND(121<='Emissions Summary-New Requ'!H97), "NSR Case-by-case Permit", "Error")))) -> PBR Level 1 | E54: =IF('Emissions Summary-New Requ'!I97<43.2, "PBR Level 1",IF(AND(43.2<='Emissions Summary-New Requ'!I97,'Emissions Summary-New Requ'!I97< 54.4), "PBR Level 2", IF(AND(54.4<='Emissions Summary-New Requ'!I97,'Emissions Summary-New Requ'!I97< 121), "Standard Permit", IF(AND(121<='Emissions Summary-New Requ'!I97), "NSR Case-by-case Permit", "Error")))) -> PBR Level 1 | F54: =IF('Emissions Summary-New Requ'!J97<100, "PBR Level 1",IF(AND(100<='Emissions Summary-New Requ'!J97,'Emissions Summary-New Requ'!J97< 250), "PBR Level 2", IF(AND(250<='Emissions Summary-New Requ'!J97), "NSR Case-by-case Permit", "Error"))) -> PBR Level 1
B55: CO | C55: =IF('Emissions Summary-New Requ'!G98<45, "PBR Level 1",IF(AND(45<='Emissions Summary-New Requ'!G98,'Emissions Summary-New Requ'!G98< 57), "PBR Level 2", IF(AND(57<='Emissions Summary-New Requ'!G98,'Emissions Summary-New Requ'!G98< 104), "Standard Permit", IF(AND(104<='Emissions Summary-New Requ'!G98), "NSR Case-by-case Permit", "Error")))) -> PBR Level 1 | D55: =IF('Emissions Summary-New Requ'!H98<45, "PBR Level 1",IF(AND(45<='Emissions Summary-New Requ'!H98,'Emissions Summary-New Requ'!H98< 57), "PBR Level 2", IF(AND(57<='Emissions Summary-New Requ'!H98,'Emissions Summary-New Requ'!H98< 104), "Standard Permit", IF(AND(104<='Emissions Summary-New Requ'!H98), "NSR Case-by-case Permit", "Error")))) -> PBR Level 1 | E55: =IF('Emissions Summary-New Requ'!I98<45, "PBR Level 1",IF(AND(45<='Emissions Summary-New Requ'!I98,'Emissions Summary-New Requ'!I98< 57), "PBR Level 2", IF(AND(57<='Emissions Summary-New Requ'!I98,'Emissions Summary-New Requ'!I98< 104), "Standard Permit", IF(AND(104<='Emissions Summary-New Requ'!I98), "NSR Case-by-case Permit", "Error")))) -> PBR Level 1 | F55: =IF('Emissions Summary-New Requ'!J98<100, "PBR Level 1",IF(AND(100<='Emissions Summary-New Requ'!J98,'Emissions Summary-New Requ'!J98< 250), "PBR Level 2", IF(AND(250<='Emissions Summary-New Requ'!J98), "NSR Case-by-case Permit", "Error"))) -> PBR Level 1
B56: PM10 | C56: =IF('Emissions Summary-New Requ'!G99<10, "PBR Level 1",IF(AND(10<='Emissions Summary-New Requ'!G99,'Emissions Summary-New Requ'!G99< 12.7), "PBR Level 2", IF(AND(12.7<='Emissions Summary-New Requ'!G99,'Emissions Summary-New Requ'!G99< 28), "Standard Permit", IF(AND(28<='Emissions Summary-New Requ'!G99), "NSR Case-by-case Permit", "Error")))) -> PBR Level 1 | D56: =IF('Emissions Summary-New Requ'!H99<10, "PBR Level 1",IF(AND(10<='Emissions Summary-New Requ'!H99,'Emissions Summary-New Requ'!H99< 12.7), "PBR Level 2", IF(AND(12.7<='Emissions Summary-New Requ'!H99,'Emissions Summary-New Requ'!H99< 28), "Standard Permit", IF(AND(28<='Emissions Summary-New Requ'!H99), "NSR Case-by-case Permit", "Error")))) -> PBR Level 1 | E56: =IF('Emissions Summary-New Requ'!I99<10, "PBR Level 1",IF(AND(10<='Emissions Summary-New Requ'!I99,'Emissions Summary-New Requ'!I99< 12.7), "PBR Level 2", IF(AND(12.7<='Emissions Summary-New Requ'!I99,'Emissions Summary-New Requ'!I99< 28), "Standard Permit", IF(AND(28<='Emissions Summary-New Requ'!I99), "NSR Case-by-case Permit", "Error")))) -> PBR Level 1 | F56: =IF('Emissions Summary-New Requ'!J99<5, "PBR Level 1",IF(AND(5<='Emissions Summary-New Requ'!J99,'Emissions Summary-New Requ'!J99< 15), "PBR Level 2", IF(AND(15<='Emissions Summary-New Requ'!J99), "NSR Case-by-case Permit", "Error"))) -> PBR Level 1
B57: PM2.5 | C57: =IF('Emissions Summary-New Requ'!G100<10, "PBR Level 1",IF(AND(10<='Emissions Summary-New Requ'!G100,'Emissions Summary-New Requ'!G100< 12.7), "PBR Level 2", IF(AND(12.7<='Emissions Summary-New Requ'!G100,'Emissions Summary-New Requ'!G100< 28), "Standard Permit", IF(AND(28<='Emissions Summary-New Requ'!G100), "NSR Case-by-case Permit", "Error")))) -> PBR Level 1 | D57: =IF('Emissions Summary-New Requ'!H100<10, "PBR Level 1",IF(AND(10<='Emissions Summary-New Requ'!H100,'Emissions Summary-New Requ'!H100< 12.7), "PBR Level 2", IF(AND(12.7<='Emissions Summary-New Requ'!H100,'Emissions Summary-New Requ'!H100< 28), "Standard Permit", IF(AND(28<='Emissions Summary-New Requ'!H100), "NSR Case-by-case Permit", "Error")))) -> PBR Level 1 | E57: =IF('Emissions Summary-New Requ'!I100<10, "PBR Level 1",IF(AND(10<='Emissions Summary-New Requ'!I100,'Emissions Summary-New Requ'!I100< 12.7), "PBR Level 2", IF(AND(12.7<='Emissions Summary-New Requ'!I100,'Emissions Summary-New Requ'!I100< 28), "Standard Permit", IF(AND(28<='Emissions Summary-New Requ'!I100), "NSR Case-by-case Permit", "Error")))) -> PBR Level 1 | F57: =IF('Emissions Summary-New Requ'!J100<5, "PBR Level 1",IF(AND(5<='Emissions Summary-New Requ'!J100,'Emissions Summary-New Requ'!J100< 10), "PBR Level 2", IF(AND(10<='Emissions Summary-New Requ'!J100,'Emissions Summary-New Requ'!J100< 15), "Standard Permit", IF(AND(15<='Emissions Summary-New Requ'!J100), "NSR Case-by-case Permit", "Error")))) -> PBR Level 1
C58: What Level of Authorization Applies to this Registration? (If any of the registration emissions are equal to or greater than the limits of a level, then the whole registration falls into that level above.)
C59: =IF(C47="PBR Level 1", 1, IF(AND(C47="PBR Level 2"), 2, IF(AND(C47="Standard Permit"), 3, IF(AND(C47="NSR Case-by-case Permit"), 4, IF(AND(C47="NA, no limit"), 0, "Error"))))) -> 0 | D59: =IF(D47="PBR Level 1", 1, IF(AND(D47="PBR Level 2"), 2, IF(AND(D47="Standard Permit"), 3, IF(AND(D47="NSR Case-by-case Permit"), 4, IF(AND(D47="NA, no limit"), 0, "Error"))))) -> 0 | E59: =IF(E47="PBR Level 1", 1, IF(AND(E47="PBR Level 2"), 2, IF(AND(E47="Standard Permit"), 3, IF(AND(E47="NSR Case-by-case Permit"), 4, IF(AND(E47="NA, no limit"), 0, "Error"))))) -> 0 | F59: =IF(F47="PBR Level 1", 1, IF(AND(F47="PBR Level 2"), 2, IF(AND(F47="Standard Permit"), 3, IF(AND(F47="NSR Case-by-case Permit"), 4, IF(AND(F47="NA, no limit"), 0, "Error"))))) -> 1
C60: =IF(C48="PBR Level 1", 1, IF(AND(C48="PBR Level 2"), 2, IF(AND(C48="Standard Permit"), 3, IF(AND(C48="NSR Case-by-case Permit"), 4, IF(AND(C48="NA, no limit"), 0, "Error"))))) -> 1 | D60: =IF(D48="PBR Level 1", 1, IF(AND(D48="PBR Level 2"), 2, IF(AND(D48="Standard Permit"), 3, IF(AND(D48="NSR Case-by-case Permit"), 4, IF(AND(D48="NA, no limit"), 0, "Error"))))) -> 1 | E60: 1 | F60: 1
C61: 1 | D61: 1 | E61: 1 | F61: 1
C62: 1 | D62: =IF(D50="PBR Level 1", 1, IF(AND(D50="PBR Level 2"), 2, IF(AND(D50="Standard Permit"), 3, IF(AND(D50="NSR Case-by-case Permit"), 4, IF(AND(D50="NA, no limit"), 0, "Error"))))) -> 1 | E62: =IF(E50="PBR Level 1", 1, IF(AND(E50="PBR Level 2"), 2, IF(AND(E50="Standard Permit"), 3, IF(AND(E50="NSR Case-by-case Permit"), 4, IF(AND(E50="NA, no limit"), 0, "Error"))))) -> 1 | F62: 1
C63: 0 | D63: 0 | E63: 0 | F63: 1
C64: 1 | D64: 1 | E64: 1 | F64: 1
C65: =IF(C53="PBR Level 1", 1, IF(AND(C53="PBR Level 2"), 2, IF(AND(C53="Standard Permit"), 3, IF(AND(C53="NSR Case-by-case Permit"), 4, IF(AND(C53="NA, no limit"), 0, "Error"))))) -> 1 | D65: 1 | E65: =IF(E53="PBR Level 1", 1, IF(AND(E53="PBR Level 2"), 2, IF(AND(E53="Standard Permit"), 3, IF(AND(E53="NSR Case-by-case Permit"), 4, IF(AND(E53="NA, no limit"), 0, "Error"))))) -> 1 | F65: 1
C66: =IF(C54="PBR Level 1", 1, IF(AND(C54="PBR Level 2"), 2, IF(AND(C54="Standard Permit"), 3, IF(AND(C54="NSR Case-by-case Permit"), 4, IF(AND(C54="NA, no limit"), 0, "Error"))))) -> 1 | D66: 1 | E66: 1 | F66: 1
C67: 1 | D67: 1 | E67: 1 | F67: 1
C68: 1 | D68: 1 | E68: 1 | F68: =IF(F56="PBR Level 1", 1, IF(AND(F56="PBR Level 2"), 2, IF(AND(F56="Standard Permit"), 3, IF(AND(F56="NSR Case-by-case Permit"), 4, IF(AND(F56="NA, no limit"), 0, "Error"))))) -> 1
C69: =IF(C57="PBR Level 1", 1, IF(AND(C57="PBR Level 2"), 2, IF(AND(C57="Standard Permit"), 3, IF(AND(C57="NSR Case-by-case Permit"), 4, IF(AND(C57="NA, no limit"), 0, "Error"))))) -> 1 | D69: 1 | E69: =IF(E57="PBR Level 1", 1, IF(AND(E57="PBR Level 2"), 2, IF(AND(E57="Standard Permit"), 3, IF(AND(E57="NSR Case-by-case Permit"), 4, IF(AND(E57="NA, no limit"), 0, "Error"))))) -> 1 | F69: =IF(F57="PBR Level 1", 1, IF(AND(F57="PBR Level 2"), 2, IF(AND(F57="Standard Permit"), 3, IF(AND(F57="NSR Case-by-case Permit"), 4, IF(AND(F57="NA, no limit"), 0, "Error"))))) -> 1
C70: Maximum Number | F70: =MAX(C59:F69) -> 1
C71: =IF(F70=1, "PBR Level 1", IF(AND(F70=2), "PBR Level 2", IF(AND(F70=3), "Standard Permit", IF(AND(F70=4), "NSR Case-by-case Permit", IF(AND(F70=0), "NA, no limit", "Error"))))) -> PBR Level 1

Sheet Level of Authorization-Old Requ (hidden)
B1: ='Facility Information'!C27 -> Company Name
B2: ='Facility Information'!C28 -> Site Name
B4: Authorization Level Determination
B6: The level of authorization is determined by comparing the Registration Total Emission Rates (as shown on the previous tab) to the emission limits of the different authorization levels.
B8: This table is an explanation of how the authorization level is determined. The table shows which authorization level each compound's emissions fall into, and then at the bottom of the chart it shows which authorization level the entire authorization falls under.
B10: The possible authorization levels are:
C11: PBR
C12: Standard Permit or NSR Case-by-case Permit
C14: Based on the Registration Total Emission Rates (on the previous tab), what Level of Authorization Does Each Emission Rate Fall Into?
C15: Emission Rates
B16: Air Contaminant Name | C16: TPY
B17: Total VOC | C17: =IF('Emissions Summary-Old Requ'!H53<=25, "PBR", IF('Emissions Summary-Old Requ'!H53>25, "Standard Permit or NSR Case-by-case Permit", "Error")) -> PBR
B18: Benzene | C18: =IF('Emissions Summary-Old Requ'!H54<=25, "PBR", IF('Emissions Summary-Old Requ'!H54>25, "Standard Permit or NSR Case-by-case Permit", "Error")) -> PBR
B19: Formaldehyde | C19: =IF('Emissions Summary-Old Requ'!H55<=25, "PBR", IF('Emissions Summary-Old Requ'!H55>25, "Standard Permit or NSR Case-by-case Permit", "Error")) -> PBR
B20: H2S | C20: =IF('Emissions Summary-Old Requ'!H56<=25, "PBR", IF('Emissions Summary-Old Requ'!H56>25, "Standard Permit or NSR Case-by-case Permit", "Error")) -> PBR
B21: SO2 | C21: =IF('Emissions Summary-Old Requ'!H57<=25, "PBR", IF('Emissions Summary-Old Requ'!H57>25, "Standard Permit or NSR Case-by-case Permit", "Error")) -> PBR
B22: NOX | C22: =IF('Emissions Summary-Old Requ'!H58<=250, "PBR", IF('Emissions Summary-Old Requ'!H58>250, "Standard Permit or NSR Case-by-case Permit", "Error")) -> PBR
B23: CO | C23: =IF('Emissions Summary-Old Requ'!H59<=250, "PBR", IF('Emissions Summary-Old Requ'!H59>250, "Standard Permit or NSR Case-by-case Permit", "Error")) -> PBR
B24: PM10 | C24: =IF('Emissions Summary-Old Requ'!H60<=25, "PBR", IF('Emissions Summary-Old Requ'!H60>25, "Standard Permit or NSR Case-by-case Permit", "Error")) -> PBR
B25: PM2.5 | C25: =IF('Emissions Summary-Old Requ'!H61<=25, "PBR", IF('Emissions Summary-Old Requ'!H61>25, "Standard Permit or NSR Case-by-case Permit", "Error")) -> PBR
C26: What Level of Authorization Applies to this Registration? (If any of the registration emissions are equal to or greater than the limits of a level, then the whole registration falls into that level above.)
C27: =IF(C17="PBR", 1, IF(AND(C17="Standard Permit or NSR Case-by-case Permit"), 2, "Error")) -> 1
C28: =IF(C18="PBR", 1, IF(AND(C18="Standard Permit or NSR Case-by-case Permit"), 2, "Error")) -> 1
C29: 1
C30: 1
C31: 1
C32: 1
C33: 1
C34: 1
C35: 1
B36: Maximum Number | C36: =MAX(C27:C35) -> 1
C37: =IF(C36=1, "PBR", IF(AND(C36=2), "Standard Permit or NSR Case-by-case Permit", "Error")) -> PBR

Sheet Is Full Impacts Review Required
C1: ='Facility Information'!C27 -> Company Name
C2: ='Facility Information'!C28 -> Site Name
C4: Is a Full Impacts Review Required?
C6: A full impacts review is potentially required, on a contaminent by contaminent basis, for benzene, H2S, SO2, and NO2. A full impacts review involves showing protection of public health and welfare and compliance with applicable ambient air standards (state and federal) on a short term and long term basis.
C8: A full impacts review is not required for a certain compound under these certain circumstances:
D9: if there is no receptor (to be affected by benzene emissions) or property line (where compliance with NO2, SO2, and H2S ambient air quality standards is required) within a certain distance of a registration (that is if there is no receptor or property line within a certain distance of any emitting source in the registration), or
D10: if the net project emission increases of that compound are very small.
C12: Based on these circumstances, the worksheet below determines whether or not a full impacts review is required for any of the four compounds (benzene, H2S, SO2, and NO2).
C14: If any of (1)-(3) below shows that a full impacts review is not required for a compound, then under (4) it will show that no further impacts review needs to be done and it will explain that "you are done" for that compound. If all of (1)-(3) show that a full impacts review is required, then (4) will explain that one of the three methods for doing a full impacts review (screening modeling, dispersion modeling, or the modeling tables from the rule) must be used.
C16: If the modeling tables from the rule are used, then the spreadsheet tabs labeled for benzene, H2S, SO2, and NO2 should be used. These tabs provide a way to use the modeling tables and perform the necessary calculations to show whether the impacts review is passed.
B18: (1) | C18: Based on receptor and property line distances, is a full impacts review required for any air contaminant? (Is there a receptor or property line within the specified distance of the registration? The distances are 1/4 mile for PBR Level 1, 1/2 mile for PBR Level 2, and 1 mile for Standard Permit.) First the level of authorization must be known.
D23: Based on the Registration Total Emission Rates, this authorization falls under:
E24: =IF('Level of Authorization-New Requ'!F70=1, "PBR Level 1", IF(AND('Level of Authorization-New Requ'!F70=2), "PBR Level 2", IF(AND('Level of Authorization-New Requ'!F70=3), "Standard Permit", IF(AND('Level of Authorization-New Requ'!F70=4), "NSR Case-by-case Permit", IF(AND('Level of Authorization-New Requ'!F70=0), "NA, no limit", "Error"))))) -> PBR Level 1
D26: What is the shortest distance in feet to any receptor from any facility/unit included in this registration? | I26: ft
D27: What is the shortest distance in feet to any property line from any facility/unit included in this registration? | I27: ft
D29: Based on the nearest receptor distance:
D30: =IF(AND(E24="PBR Level 1", H26<1320),"A full impacts review is required for benzene.", IF(AND(E24="PBR Level 1", 1320<=H26), "A full impacts review is NOT required for benzene.", IF(AND(E24="PBR Level 2", H26<2640), "A full impacts review is required for benzene.", IF(AND(E24="PBR Level 2", 2640<=H26), "A full impacts review is NOT required for benzene.", IF(AND(E24="Standard Permit", H26<5280), "A full impacts review is required for benzene.", IF(AND(E24="Standard Permit", 5280<=H26), "A full impacts review is NOT required for benzene.", IF(E24="NSR Case-by-case Permit", "Please submit application for NSR Case-by-case Permit.", "Error"))))))) -> A full impacts review is required for benzene.
D32: Based on the nearest property line distance:
D33: =IF(AND(E24="PBR Level 1", H27<1320),"A full impacts review is required for H2S, SO2, and NO2.", IF(AND(E24="PBR Level 1", 1320<=H27), "A full impacts review is NOT required for H2S, SO2, and NO2.", IF(AND(E24="PBR Level 2", H27<2640), "A full impacts review is required for H2S, SO2, and NO2.", IF(AND(E24="PBR Level 2", 2640<=H27), "A full impacts review is NOT required for H2S, SO2, and NO2.", IF(AND(E24="Standard Permit", H27<5280), "A full impacts review is required for H2S, SO2, and NO2.", IF(AND(E24="Standard Permit", 5280<=H27), "A full impacts review is NOT required for H2S, SO2, and NO2.", IF(E24="NSR Case-by-case Permit", "Please submit application for NSR Case-by-case Permit.", "Error"))))))) -> A full impacts review is required for H2S, SO2, and NO2.
B35: (2) | C35: Based on the net project emission increases, is a full impacts review required for any air contaminent? (Are the net project emission increases less than any of the de-minimis rates?)
D38: Net Project Emission Increases
E39: Emission Rates
D40: Air Contaminant Name | E40: steady state lbs/hr | F40: < 30 psig periodic lbs/hr | G40: ≥ 30 psig periodic lbs/hr | H40: TPY
D41: Benzene | E41: ='Emissions Summary-New Requ'!G50 -> 0 | F41: ='Emissions Summary-New Requ'!H50 -> 0 | G41: ='Emissions Summary-New Requ'!I50 -> 0 | H41: ='Emissions Summary-New Requ'!J50 -> 0
D42: H2S | E42: ='Emissions Summary-New Requ'!G52 -> 0 | F42: ='Emissions Summary-New Requ'!H52 -> 0 | G42: ='Emissions Summary-New Requ'!I52 -> 0 | H42: ='Emissions Summary-New Requ'!J52 -> 0
D43: SO2 | E43: ='Emissions Summary-New Requ'!G53 -> 0 | F43: ='Emissions Summary-New Requ'!H53 -> 0 | G43: ='Emissions Summary-New Requ'!I53 -> 0 | H43: ='Emissions Summary-New Requ'!J53 -> 0
D44: NOX | E44: ='Emissions Summary-New Requ'!G54 -> 0 | F44: ='Emissions Summary-New Requ'!H54 -> 0 | G44: ='Emissions Summary-New Requ'!I54 -> 0 | H44: ='Emissions Summary-New Requ'!J54 -> 0
D45: Please explain the logic behind the values here if any values are different than the Project Total Emission Rates from the Emissions Summary tab.
D47: De-minimis Rates
D48: Air contaminant | E48: lb/hr
D49: Benzene | E49: 0.039
D50: H2S | E50: 0.025
D51: SO2 | E51: 2
D52: NOX | E52: 4
D54: Based on the net project emission increases:
D55: =IF(AND('Emissions Summary-New Requ'!G47=0,'Emissions Summary-New Requ'!H47=0,'Emissions Summary-New Requ'!I47=0,'Emissions Summary-New Requ'!J47=0,'Emissions Summary-New Requ'!G48=0,'Emissions Summary-New Requ'!H48=0,'Emissions Summary-New Requ'!I48=0,'Emissions Summary-New Requ'!J48=0,'Emissions Summary-New Requ'!G49=0,'Emissions Summary-New Requ'!H49=0,'Emissions Summary-New Requ'!I49=0,'Emissions Summary-New Requ'!J49=0,'Emissions Summary-New Requ'!G50=0,'Emissions Summary-New Requ'!H50=0,'Emissions Summary-New Requ'!I50=0,'Emissions Summary-New Requ'!J50=0,'Emissions Summary-New Requ'!G51=0,'Emissions Summary-New Requ'!H51=0,'Emissions Summary-New Requ'!I51=0,'Emissions Summary-New Requ'!J51=0,'Emissions Summary-New Requ'!G52=0,'Emissions Summary-New Requ'!H52=0,'Emissions Summary-New Requ'!I52=0,'Emissions Summary-New Requ'!J52=0,'Emissions Summary-New Requ'!G53=0,'Emissions Summary-New Requ'!H53=0,'Emissions Summary-New Requ'!I53=0,'Emissions Summary-New Requ'!J53=0,'Emissions Summary-New Requ'!G54=0,'Emissions Summary-New Requ'!H54=0,'Emissions Summary-New Requ'!I54=0,'Emissions Summary-New Requ'!J54=0,'Emissions Summary-New Requ'!G55=0,'Emissions Summary-New Requ'!H55=0,'Emissions Summary-New Requ'!I55=0,'Emissions Summary-New Requ'!J55=0,'Emissions Summary-New Requ'!G56=0,'Emissions Summary-New Requ'!H56=0,'Emissions Summary-New Requ'!I56=0,'Emissions Summary-New Requ'!J56=0,'Emissions Summary-New Requ'!G57=0,'Emissions Summary-New Requ'!H57=0,'Emissions Summary-New Requ'!I57=0,'Emissions Summary-New Requ'!J57=0), "A full impacts review is required for benzene.", IF(MAX(E41:G41)<E49, "A full impacts review is NOT required for benzene.", "A full impacts review is required for benzene.")) -> A full impacts review is required for benzene.
D56: =IF(AND('Emissions Summary-New Requ'!G47=0,'Emissions Summary-New Requ'!H47=0,'Emissions Summary-New Requ'!I47=0,'Emissions Summary-New Requ'!J47=0,'Emissions Summary-New Requ'!G48=0,'Emissions Summary-New Requ'!H48=0,'Emissions Summary-New Requ'!I48=0,'Emissions Summary-New Requ'!J48=0,'Emissions Summary-New Requ'!G49=0,'Emissions Summary-New Requ'!H49=0,'Emissions Summary-New Requ'!I49=0,'Emissions Summary-New Requ'!J49=0,'Emissions Summary-New Requ'!G50=0,'Emissions Summary-New Requ'!H50=0,'Emissions Summary-New Requ'!I50=0,'Emissions Summary-New Requ'!J50=0,'Emissions Summary-New Requ'!G51=0,'Emissions Summary-New Requ'!H51=0,'Emissions Summary-New Requ'!I51=0,'Emissions Summary-New Requ'!J51=0,'Emissions Summary-New Requ'!G52=0,'Emissions Summary-New Requ'!H52=0,'Emissions Summary-New Requ'!I52=0,'Emissions Summary-New Requ'!J52=0,'Emissions Summary-New Requ'!G53=0,'Emissions Summary-New Requ'!H53=0,'Emissions Summary-New Requ'!I53=0,'Emissions Summary-New Requ'!J53=0,'Emissions Summary-New Requ'!G54=0,'Emissions Summary-New Requ'!H54=0,'Emissions Summary-New Requ'!I54=0,'Emissions Summary-New Requ'!J54=0,'Emissions Summary-New Requ'!G55=0,'Emissions Summary-New Requ'!H55=0,'Emissions Summary-New Requ'!I55=0,'Emissions Summary-New Requ'!J55=0,'Emissions Summary-New Requ'!G56=0,'Emissions Summary-New Requ'!H56=0,'Emissions Summary-New Requ'!I56=0,'Emissions Summary-New Requ'!J56=0,'Emissions Summary-New Requ'!G57=0,'Emissions Summary-New Requ'!H57=0,'Emissions Summary-New Requ'!I57=0,'Emissions Summary-New Requ'!J57=0), "A full impacts review is required for H2S.", IF(MAX(E42:G42)<E50, "A full impacts review is NOT required for H2S.", "A full impacts review is required for H2S.")) -> A full impacts review is required for H2S.
D57: =IF(AND('Emissions Summary-New Requ'!G47=0,'Emissions Summary-New Requ'!H47=0,'Emissions Summary-New Requ'!I47=0,'Emissions Summary-New Requ'!J47=0,'Emissions Summary-New Requ'!G48=0,'Emissions Summary-New Requ'!H48=0,'Emissions Summary-New Requ'!I48=0,'Emissions Summary-New Requ'!J48=0,'Emissions Summary-New Requ'!G49=0,'Emissions Summary-New Requ'!H49=0,'Emissions Summary-New Requ'!I49=0,'Emissions Summary-New Requ'!J49=0,'Emissions Summary-New Requ'!G50=0,'Emissions Summary-New Requ'!H50=0,'Emissions Summary-New Requ'!I50=0,'Emissions Summary-New Requ'!J50=0,'Emissions Summary-New Requ'!G51=0,'Emissions Summary-New Requ'!H51=0,'Emissions Summary-New Requ'!I51=0,'Emissions Summary-New Requ'!J51=0,'Emissions Summary-New Requ'!G52=0,'Emissions Summary-New Requ'!H52=0,'Emissions Summary-New Requ'!I52=0,'Emissions Summary-New Requ'!J52=0,'Emissions Summary-New Requ'!G53=0,'Emissions Summary-New Requ'!H53=0,'Emissions Summary-New Requ'!I53=0,'Emissions Summary-New Requ'!J53=0,'Emissions Summary-New Requ'!G54=0,'Emissions Summary-New Requ'!H54=0,'Emissions Summary-New Requ'!I54=0,'Emissions Summary-New Requ'!J54=0,'Emissions Summary-New Requ'!G55=0,'Emissions Summary-New Requ'!H55=0,'Emissions Summary-New Requ'!I55=0,'Emissions Summary-New Requ'!J55=0,'Emissions Summary-New Requ'!G56=0,'Emissions Summary-New Requ'!H56=0,'Emissions Summary-New Requ'!I56=0,'Emissions Summary-New Requ'!J56=0,'Emissions Summary-New Requ'!G57=0,'Emissions Summary-New Requ'!H57=0,'Emissions Summary-New Requ'!I57=0,'Emissions Summary-New Requ'!J57=0), "A full impacts review is required for SO2.", IF(MAX(E43:G43)<E51, "A full impacts review is NOT required for SO2.", "A full impacts review is required for SO2.")) -> A full impacts review is required for SO2.
D58: =IF(AND('Emissions Summary-New Requ'!G47=0,'Emissions Summary-New Requ'!H47=0,'Emissions Summary-New Requ'!I47=0,'Emissions Summary-New Requ'!J47=0,'Emissions Summary-New Requ'!G48=0,'Emissions Summary-New Requ'!H48=0,'Emissions Summary-New Requ'!I48=0,'Emissions Summary-New Requ'!J48=0,'Emissions Summary-New Requ'!G49=0,'Emissions Summary-New Requ'!H49=0,'Emissions Summary-New Requ'!I49=0,'Emissions Summary-New Requ'!J49=0,'Emissions Summary-New Requ'!G50=0,'Emissions Summary-New Requ'!H50=0,'Emissions Summary-New Requ'!I50=0,'Emissions Summary-New Requ'!J50=0,'Emissions Summary-New Requ'!G51=0,'Emissions Summary-New Requ'!H51=0,'Emissions Summary-New Requ'!I51=0,'Emissions Summary-New Requ'!J51=0,'Emissions Summary-New Requ'!G52=0,'Emissions Summary-New Requ'!H52=0,'Emissions Summary-New Requ'!I52=0,'Emissions Summary-New Requ'!J52=0,'Emissions Summary-New Requ'!G53=0,'Emissions Summary-New Requ'!H53=0,'Emissions Summary-New Requ'!I53=0,'Emissions Summary-New Requ'!J53=0,'Emissions Summary-New Requ'!G54=0,'Emissions Summary-New Requ'!H54=0,'Emissions Summary-New Requ'!I54=0,'Emissions Summary-New Requ'!J54=0,'Emissions Summary-New Requ'!G55=0,'Emissions Summary-New Requ'!H55=0,'Emissions Summary-New Requ'!I55=0,'Emissions Summary-New Requ'!J55=0,'Emissions Summary-New Requ'!G56=0,'Emissions Summary-New Requ'!H56=0,'Emissions Summary-New Requ'!I56=0,'Emissions Summary-New Requ'!J56=0,'Emissions Summary-New Requ'!G57=0,'Emissions Summary-New Requ'!H57=0,'Emissions Summary-New Requ'!I57=0,'Emissions Summary-New Requ'!J57=0), "A full impacts review is required for NO2.",IF(MAX(E44:G44)<E52, "A full impacts review is NOT required for NO2.", "A full impacts review is required for NO2.")) -> A full impacts review is required for NO2.
B60: (3) | C60: Based on the project maximum predicted concentrations, is a full impacts review required for any air contaminant? (Are the project maximum predicted benzene concentrations ≤ 10% of the applicable effects screening level (ESL) or ≤ 25% of the applicable ESL when combined with project increases over 60-month period after rule effective date? Are project maximum predicted H2S, SO2, and NOX concentrations ≤ the significant impact level, SIL, also known as a de-minimis impact in Chapter 101 of 30 TAC, where the SIL = 4% of the applicable ambient air standard (AAQS)?)
D67: ESLs and AAQS needed for impacts review:
D68: ESLs and AAQSs | F68: (µg/m3)
D69: Benzene Short Term ESL | F69: 170
D70: Benzene Long Term ESL | F70: 4.5
D71: H2S Hourly SAAQS | F71: 108
D72: SO2 Hourly NAAQS | F72: 196
D73: NO2 Hourly NAAQS | F73: 188
D75: What is the project maximum predicted 1-hr concentration of benzene in micrograms per cubic meter? | H75: NA | I75: (µg/m3)
D76: Based on this:
D77: =IF(H75<=0.1*F69, "A full impacts review is NOT required for benzene on an hourly basis.", "A full impacts review is required for benzene on an hourly basis.") -> A full impacts review is required for benzene on an hourly basis.
D79: What is the maximum predicted 1-hr concentration of benzene in micrograms per cubic meter for the project combined with previous project increases over a 60-month period after the effective date of the this rule? | H79: NA | I79: (µg/m3)
D80: Based on this:
D81: =IF(H79<=0.25*F69, "A full impacts review is NOT required for benzene on an hourly basis.", "A full impacts review is required for benzene on an hourly basis.") -> A full impacts review is required for benzene on an hourly basis.
D83: What is the project maximum predicted annual concentration of benzene in micrograms per cubic meter? | H83: NA | I83: (µg/m3)
D84: Based on this:
D85: =IF(H83<=0.1*F70, "A full impacts review is NOT required for benzene on an annual basis.", "A full impacts review is required for benzene on an annual basis.") -> A full impacts review is required for benzene on an annual basis.
D87: What is the maximum predicted annual concentration of benzene in micrograms per cubic meter for the project combined with previous project increases over a 60-month period after the effective date of the this rule? | H87: NA | I87: (µg/m3)
D88: Based on this:
D89: =IF(H87<=0.25*F70, "A full impacts review is NOT required for benzene on an annual basis.", "A full impacts review is required for benzene on an annual basis.") -> A full impacts review is required for benzene on an annual basis.
D91: What is the project maximum predicted 1-hr concentration of H2S in micrograms per cubic meter? | H91: NA | I91: (µg/m3)
D92: Based on this:
D93: =IF(H91<=0.04*F71, "A full impacts review is NOT required for H2S on an hourly basis.", "A full impacts review is required for H2S on an hourly basis.") -> A full impacts review is required for H2S on an hourly basis.
D95: What is the project maximum predicted 1-hr concentration of SO2 in micrograms per cubic meter? | H95: NA | I95: (µg/m3)
D96: Based on this:
D97: =IF(H95<=0.04*F72, "A full impacts review is NOT required for SO2 on an hourly basis.", "A full impacts review is required for SO2 on an hourly basis.") -> A full impacts review is required for SO2 on an hourly basis.
D99: What is the project maximum predicted 1-hr concentration of NO2 in micrograms per cubic meter? | H99: NA | I99: (µg/m3)
D100: Based on this:
D101: =IF(H99<=0.04*F76, "A full impacts review is NOT required for NO2 on an hourly basis.", "A full impacts review is required for NO2 on an hourly basis.") -> A full impacts review is required for NO2 on an hourly basis.
B103: (4) | C103: Based on the above assessment from (1) - (3):
C104: =IF(OR(D55="A full impacts review is NOT required for benzene.", AND(D77="A full impacts review is NOT required for benzene on an hourly basis.", D85="A full impacts review is NOT required for benzene on an annual basis."), AND(D77="A full impacts review is NOT required for benzene on an hourly basis.", D89="A full impacts review is NOT required for benzene on an annual basis."), AND(D81="A full impacts review is NOT required for benzene on an hourly basis.", D85="A full impacts review is NOT required for benzene on an annual basis."), AND(D81="A full impacts review is NOT required for benzene on an hourly basis.", D89="A full impacts review is NOT required for benzene on an annual basis."), D30="A full impacts review is NOT required for benzene."), "A full impacts review is NOT required for benzene.", "A full impacts review is required for benzene. Perform review on benzene impacts tab. Consider the Impacts Scope table on the next tab as additional emission points outside of the registration may need to be considered for the impacts review.") -> A full impacts review is required for benzene. Perform review on benzene impacts tab. Consider the Impacts Scope table on the next tab as additional emission points outside of the registration may need to be considered for the impacts review.
C105: =IF(OR(D56="A full impacts review is NOT required for H2S.", D93="A full impacts review is NOT required for H2S on an hourly basis.", D33="A full impacts review is NOT required for H2S, SO2, and NO2."), "A full impacts review is NOT required for H2S.", "A full impacts review is required for H2S. Perform review on H2S impacts tab. Consider the Impacts Scope table on the next tab as additional emission points outside of the registration may need to be considered for the impacts review.") -> A full impacts review is required for H2S. Perform review on H2S impacts tab. Consider the Impacts Scope table on the next tab as additional emission points outside of the registration may need to be considered for the impacts review.
C106: =IF(OR(D57="A full impacts review is NOT required for SO2.", D97="A full impacts review is NOT required for SO2 on an hourly basis.", D33="A full impacts review is NOT required for H2S, SO2, and NO2."), "A full impacts review is NOT required for SO2.", "A full impacts review is required for SO2. Perform review on SO2 impacts tab. Consider the Impacts Scope table on the next tab as additional emission points outside of the registration may need to be considered for the impacts review.") -> A full impacts review is required for SO2. Perform review on SO2 impacts tab. Consider the Impacts Scope table on the next tab as additional emission points outside of the registration may need to be considered for the impacts review.
C107: =IF(OR(D58="A full impacts review is NOT required for NO2.", D101="A full impacts review is NOT required for NO2 on an hourly basis.", D33="A full impacts review is NOT required for H2S, SO2, and NO2."), "A full impacts review is NOT required for NO2.", "A full impacts review is required for NO2. Perform review on NO2 impacts tab. Consider the Impacts Scope table on the next tab as additional emission points outside of the registration may need to be considered for the impacts review.") -> A full impacts review is required for NO2. Perform review on NO2 impacts tab. Consider the Impacts Scope table on the next tab as additional emission points outside of the registration may need to be considered for the impacts review.
C110: Press this button to make the impacts review tabs visible if needed, that is if you want to use the modeling tables from the rule for any of the four compounds.

Sheet Impacts Scope
C1: ='Facility Information'!C27 -> Company Name
C2: ='Facility Information'!C28 -> Site Name
C4: Emissions Summary Including Any Additional Impacts Scope Emissions
C6: Registration emissions are included in the impacts scope totals.
C8: The only air contaminents that potentially may need to be filled in are benzene H2S, SO2, and NOX, because these are the four air contaminents that a full impacts review could potentially be required for (note that the impacts review is actually done on NO2, not NOX). Within those four contaminents, the only ones that absolutely need to be filled in are the ones which require a full impacts review. The rest can be filled in if chosen to be.
C10: To change the number of rows in the charts below, click on the button to the right of the chart that says "Expand Table" and it will ask how many rows you need. You can press the button more than once to add or delete more rows; the rows will be added or deleted starting at the bottom.
C12: Impacts Scope Emissions (This needs to include any other emission points not included in the Project Emissions Summary or the Registration Emissions Summary that are in the impacts review scope. The impacts review scope includes all units owned/operated by the same company, located on contigous or adjacent property, and designated under same two digit standard industrial classification (SIC) code, within 1/4 mile of any unit in the project for PBR Level 1, within 1/4 mile of any unit in the project for PBR Level 2, and within 1 mile of any unit in the project for the Standard Permit, regardless of the units being operationally dependent and regardless of the unit authorization type(s). It is possible that nothing needs to be entered here.)
C13: Emission Point No. | D13: Source Name | G13: Emission Rates
F14: Air Contaminant Name | G14: steady state lbs/hr | H14: < 30 psig periodic lbs/hr | I14: ≥ 30 psig periodic lbs/hr | J14: TPY
F15: Total VOC
F16: Total Crude Oil or Condensate VOC
F17: Total Natural Gas VOC
F18: Benzene
F19: Formaldehyde
F20: H2S
F21: SO2
F22: NOX
F23: CO
F24: PM10
F25: PM2.5
C26: Insert Point
C27: Impacts Scope Total Emission Rates (This includes all Project, Registration, and Impacts Scope Emissions.) (Note that these totals are simply the sum of the emission rates from each emission point. The periodic emission limits need to be compared to the sum of steady state and periodic emissions, that is the worst case combination of continously and periodically emitting sources that could occur in any one hour.) These totals include all emission points above. If the worst case periodic scenario does not include all emission points, then below in the summary table override the calculation and explain which emission points represent the worst case periodic emission scenario. | G27: Emission Rates
F28: Air Contaminant Name | G28: steady state lbs/hr | H28: < 30 psig periodic lbs/hr | I28: ≥ 30 psig periodic lbs/hr | J28: TPY
F29: Total VOC | G29: =(DSUM($F$14:$J$26, "steady state lbs/hr",$F$14:$F$15)) -> 0 | H29: =(DSUM($F$14:$J$26, "< 30 psig periodic lbs/hr",$F$14:$F$15)) -> 0 | I29: =(DSUM($F$14:$J$26, "≥ 30 psig periodic lbs/hr",$F$14:$F$15)) -> 0 | J29: =(DSUM($F$14:$J$26, "TPY",$F$14:$F$15)) -> 0
F30: Total Crude Oil or Condensate VOC | G30: =(DSUM($F$14:$J$26, "steady state lbs/hr",$F$14:$F$16))-(G29) -> 0 | H30: =(DSUM($F$14:$J$26, "< 30 psig periodic lbs/hr",$F$14:$F$16))-(H29) -> 0 | I30: =(DSUM($F$14:$J$26, "≥ 30 psig periodic lbs/hr",$F$14:$F$16))-(I29) -> 0 | J30: =(DSUM($F$14:$J$26, "TPY",$F$14:$F$16))-(J29) -> 0
F31: Total Natural Gas VOC | G31: =(DSUM($F$14:$J$26, "steady state lbs/hr",$F$14:$F$17))-(G29)-(G30) -> 0 | H31: =(DSUM($F$14:$J$26, "< 30 psig periodic lbs/hr",$F$14:$F$17))-(H29)-(H30) -> 0 | I31: =(DSUM($F$14:$J$26, "≥ 30 psig periodic lbs/hr",$F$14:$F$17))-(I29)-(I30) -> 0 | J31: =(DSUM($F$14:$J$26, "TPY",$F$14:$F$17))-(J29)-(J30) -> 0
F32: Benzene | G32: =(DSUM($F$14:$J$26, "steady state lbs/hr",$F$14:$F$18))-(G29)-(G30)-(G31) -> 0 | H32: =(DSUM($F$14:$J$26, "< 30 psig periodic lbs/hr",$F$14:$F$18))-(H29)-(H30)-(H31) -> 0 | I32: =(DSUM($F$14:$J$26, "≥ 30 psig periodic lbs/hr",$F$14:$F$18))-(I29)-(I30)-(I31) -> 0 | J32: =(DSUM($F$14:$J$26, "TPY",$F$14:$F$18))-(J29)-(J30)-(J31) -> 0
F33: Formaldehyde | G33: =(DSUM($F$14:$J$26, "steady state lbs/hr",$F$14:$F$19))-(G29)-(G30)-(G31)-(G32) -> 0 | H33: =(DSUM($F$14:$J$26, "< 30 psig periodic lbs/hr",$F$14:$F$19))-(H29)-(H30)-(H31)-(H32) -> 0 | I33: =(DSUM($F$14:$J$26, "≥ 30 psig periodic lbs/hr",$F$14:$F$19))-(I29)-(I30)-(I31)-(I32) -> 0 | J33: =(DSUM($F$14:$J$26, "TPY",$F$14:$F$19))-(J29)-(J30)-(J31)-(J32) -> 0
F34: H2S | G34: =(DSUM($F$14:$J$26, "steady state lbs/hr",$F$14:$F$20))-(G29)-(G30)-(G31)-(G32)-(G33) -> 0 | H34: =(DSUM($F$14:$J$26, "< 30 psig periodic lbs/hr",$F$14:$F$20))-(H29)-(H30)-(H31)-(H32)-(H33) -> 0 | I34: =(DSUM($F$14:$J$26, "≥ 30 psig periodic lbs/hr",$F$14:$F$20))-(I29)-(I30)-(I31)-(I32)-(I33) -> 0 | J34: =(DSUM($F$14:$J$26, "TPY",$F$14:$F$20))-(J29)-(J30)-(J31)-(J32)-(J33) -> 0
F35: SO2 | G35: =(DSUM($F$14:$J$26, "steady state lbs/hr",$F$14:$F$21))-(G29)-(G30)-(G31)-(G32)-(G33)-(G34) -> 0 | H35: =(DSUM($F$14:$J$26, "< 30 psig periodic lbs/hr",$F$14:$F$21))-(H29)-(H30)-(H31)-(H32)-(H33)-(H34) -> 0 | I35: =(DSUM($F$14:$J$26, "≥ 30 psig periodic lbs/hr",$F$14:$F$21))-(I29)-(I30)-(I31)-(I32)-(I33)-(I34) -> 0 | J35: =(DSUM($F$14:$J$26, "TPY",$F$14:$F$21))-(J29)-(J30)-(J31)-(J32)-(J33)-(J34) -> 0
F36: NOX | G36: =(DSUM($F$14:$J$26, "steady state lbs/hr",$F$14:$F$22))-(G29)-(G30)-(G31)-(G32)-(G33)-(G34)-(G35) -> 0 | H36: =(DSUM($F$14:$J$26, "< 30 psig periodic lbs/hr",$F$14:$F$22))-(H29)-(H30)-(H31)-(H32)-(H33)-(H34)-(H35) -> 0 | I36: =(DSUM($F$14:$J$26, "≥ 30 psig periodic lbs/hr",$F$14:$F$22))-(I29)-(I30)-(I31)-(I32)-(I33)-(I34)-(I35) -> 0 | J36: =(DSUM($F$14:$J$26, "TPY",$F$14:$F$22))-(J29)-(J30)-(J31)-(J32)-(J33)-(J34)-(J35) -> 0
F37: CO | G37: =(DSUM($F$14:$J$26, "steady state lbs/hr",$F$14:$F$23))-(G29)-(G30)-(G31)-(G32)-(G33)-(G34)-(G35)-(G36) -> 0 | H37: =(DSUM($F$14:$J$26, "< 30 psig periodic lbs/hr",$F$14:$F$23))-(H29)-(H30)-(H31)-(H32)-(H33)-(H34)-(H35)-(H36) -> 0 | I37: =(DSUM($F$14:$J$26, "≥ 30 psig periodic lbs/hr",$F$14:$F$23))-(I29)-(I30)-(I31)-(I32)-(I33)-(I34)-(I35)-(I36) -> 0 | J37: =(DSUM($F$14:$J$26, "TPY",$F$14:$F$23))-(J29)-(J30)-(J31)-(J32)-(J33)-(J34)-(J35)-(J36) -> 0
F38: PM10 | G38: =(DSUM($F$14:$J$26, "steady state lbs/hr",$F$14:$F$24))-(G29)-(G30)-(G31)-(G32)-(G33)-(G34)-(G35)-(G36)-(G37) -> 0 | H38: =(DSUM($F$14:$J$26, "< 30 psig periodic lbs/hr",$F$14:$F$24))-(H29)-(H30)-(H31)-(H32)-(H33)-(H34)-(H35)-(H36)-(H37) -> 0 | I38: =(DSUM($F$14:$J$26, "≥ 30 psig periodic lbs/hr",$F$14:$F$24))-(I29)-(I30)-(I31)-(I32)-(I33)-(I34)-(I35)-(I36)-(I37) -> 0 | J38: =(DSUM($F$14:$J$26, "TPY",$F$14:$F$24))-(J29)-(J30)-(J31)-(J32)-(J33)-(J34)-(J35)-(J36)-(J37) -> 0
F39: PM2.5 | G39: =(DSUM($F$14:$J$26, "steady state lbs/hr",$F$14:$F$25))-(G29)-(G30)-(G31)-(G32)-(G33)-(G34)-(G35)-(G36)-(G37)-(G38) -> 0 | H39: =(DSUM($F$14:$J$26, "< 30 psig periodic lbs/hr",$F$14:$F$25))-(H29)-(H30)-(H31)-(H32)-(H33)-(H34)-(H35)-(H36)-(H37)-(H38) -> 0 | I39: =(DSUM($F$14:$J$26, "≥ 30 psig periodic lbs/hr",$F$14:$F$25))-(I29)-(I30)-(I31)-(I32)-(I33)-(I34)-(I35)-(I36)-(I37)-(I38) -> 0 | J39: =(DSUM($F$14:$J$26, "TPY",$F$14:$F$25))-(J29)-(J30)-(J31)-(J32)-(J33)-(J34)-(J35)-(J36)-(J37)-(J38) -> 0
C40: Impacts Scope Total Emission Rates (Note that these periodic totals are NOT simply the sum of the periodic emission rates from each emission point. The periodic emission limits need to be compared to the sum of steady state and periodic emissions, that is the worst case combination of continously and periodically emitting sources that could occur in any one hour. The periodic emission rates shown here are the sum of all steady state and periodic emissions. If the worst case combination of continously and periodically emitting sources is less than this, then please input the values in this table to the right. Please explain below which emission points are included in this worst case combination.) | G40: Emission Rates
F41: Air Contaminant Name | G41: steady state lbs/hr | H41: < 30 psig periodic lbs/hr | I41: ≥ 30 psig periodic lbs/hr | J41: TPY (4)
F42: Total VOC | G42: =G29+'Emissions Summary-New Requ'!G90 -> 0 | H42: =G29+H29+'Emissions Summary-New Requ'!H90 -> 0 | I42: =G29+H29+I29+'Emissions Summary-New Requ'!I90 -> 0 | J42: =J29+'Emissions Summary-New Requ'!J90 -> 0
F43: Total Crude Oil or Condensate VOC | G43: =G30+'Emissions Summary-New Requ'!G91 -> 0 | H43: =G30+H30+'Emissions Summary-New Requ'!H91 -> 0 | I43: =G30+H30+I30+'Emissions Summary-New Requ'!I91 -> 0 | J43: =J30+'Emissions Summary-New Requ'!J91 -> 0
F44: Total Natural Gas VOC | G44: =G31+'Emissions Summary-New Requ'!G92 -> 0 | H44: =G31+H31+'Emissions Summary-New Requ'!H92 -> 0 | I44: =G31+H31+I31+'Emissions Summary-New Requ'!I92 -> 0 | J44: =J31+'Emissions Summary-New Requ'!J92 -> 0
F45: Benzene | G45: =G32+'Emissions Summary-New Requ'!G93 -> 0 | H45: =G32+H32+'Emissions Summary-New Requ'!H93 -> 0 | I45: =G32+H32+I32+'Emissions Summary-New Requ'!I93 -> 0 | J45: =J32+'Emissions Summary-New Requ'!J93 -> 0
F46: Formaldehyde | G46: =G33+'Emissions Summary-New Requ'!G94 -> 0 | H46: =G33+H33+'Emissions Summary-New Requ'!H94 -> 0 | I46: =G33+H33+I33+'Emissions Summary-New Requ'!I94 -> 0 | J46: =J33+'Emissions Summary-New Requ'!J94 -> 0
F47: H2S | G47: =G34+'Emissions Summary-New Requ'!G95 -> 0 | H47: =G34+H34+'Emissions Summary-New Requ'!H95 -> 0 | I47: =G34+H34+I34+'Emissions Summary-New Requ'!I95 -> 0 | J47: =J34+'Emissions Summary-New Requ'!J95 -> 0
F48: SO2 | G48: =G35+'Emissions Summary-New Requ'!G96 -> 0 | H48: =G35+H35+'Emissions Summary-New Requ'!H96 -> 0 | I48: =G35+H535+I35+'Emissions Summary-New Requ'!I96 -> 0 | J48: =J35+'Emissions Summary-New Requ'!J96 -> 0
F49: NOX | G49: =G36+'Emissions Summary-New Requ'!G97 -> 0 | H49: =G36+H36+'Emissions Summary-New Requ'!H97 -> 0 | I49: =G36+H36+I36+'Emissions Summary-New Requ'!I97 -> 0 | J49: =J36+'Emissions Summary-New Requ'!J97 -> 0
F50: CO | G50: =G37+'Emissions Summary-New Requ'!G98 -> 0 | H50: =G37+H37+'Emissions Summary-New Requ'!H98 -> 0 | I50: =G37+H37+I37+'Emissions Summary-New Requ'!I98 -> 0 | J50: =J37+'Emissions Summary-New Requ'!J98 -> 0
F51: PM10 | G51: =G38+'Emissions Summary-New Requ'!G99 -> 0 | H51: =G38+H38+'Emissions Summary-New Requ'!H99 -> 0 | I51: =G38+H38+I38+'Emissions Summary-New Requ'!I99 -> 0 | J51: =J38+'Emissions Summary-New Requ'!J99 -> 0
F52: PM2.5 | G52: =G39+'Emissions Summary-New Requ'!G100 -> 0 | H52: =G39+H39+'Emissions Summary-New Requ'!H100 -> 0 | I52: =G39+H39+I39+'Emissions Summary-New Requ'!I100 -> 0 | J52: =J39+'Emissions Summary-New Requ'!J100 -> 0
C53: If the automated formulas for the impacts scope emission totals (which assume that it is possible for all steady state and periodic emissions in the impacts scope to occur in the same hour) have been overwritten, explain any changes made and list the impacts scope emission points that occur in the realistic worst case hour. (Leave this blank or put NA if none of the formulas have been overwritten.)

Sheet Benzene Full Impacts (hidden)
C1: ='Facility Information'!C27 -> Company Name
C2: ='Facility Information'!C28 -> Site Name
B4: Full Impacts Review
C6: A full impacts review must be done for all of the following as applicable:
D7: Benzene Hourly Steady State
D8: Benzene Hourly Low Pressure Periodic
D9: Benzene Hourly High Pressure Periodic
D10: Benzene Annual
C12: The maximum acceptable emission rate can be found on an hourly steady state basis, hourly periodic (low pressure) basis, hourly periodic (high pressure) basis, and annual basis, which can be expressed as Emax,hourly,steadystate, Emax,hourly,periodic(low pressure), Emax,hourly,periodic(high pressure), and Emax,annual, respectively.
C14: The equations for Emax,hourly and Emax,annual are:
C22: The emissions must include all emissions in the impacts scope, which are contained in the Impacts Scope Emissions Totals box on the Impacts Scope Tab.
C25: Impacts review is passed when the total estimated emission rate is less than the calculated maximum acceptable emission rate Eestimated,total ≤ Emax,total.
C27: The shortest distance from any emitting source to the nearest receptor can be used for each emitting source or the actual distance from the source to the nearest receptor.
C29: The appropriate G factor can be found on the impact chart tabs based on the distance from the emission point to the nearest receptor, the height of the emission release point, and the type of emission point.
C31: To change the number of rows in the charts below, click on the button to the right of the chart that says "Set Row Count" and it will ask how many rows you need. You can press the button more than once to add or delete more rows; the rows will be added or deleted starting at the bottom.
C33: Benzene Short Term ESL (µg/m3): | D33: 170
C34: Benzene Long Term ESL (µg/m3): | D34: 4.5
B36: Benzene Hourly Steady State - Impact Review
B37: EPN | C37: Source Name | D37: Which impacts table corresponds to this EPN? | E37: Steady state hourly estimated emissions for each EPN (lbs/hr) | F37: WREPNx | G37: ESLbenzene, short term (µg/m3) | H37: Distance from emission point to nearest receptor (ft) | I37: Height of emission release point (ft) | J37: GEPNx | K37: Emax,EPNx, hourly,steadystate (lb/hr)
F38: =IF(E38="","", E38/$E$49) ->  | G38: =$D$33 -> 170 | K38: =IF(J38="","", F38*G38/J38) -> 
G39: 170
G40: 170
G41: 170
G42: 170
G43: 170
G44: 170
G45: 170
G46: 170
G47: 170
E48: Eestimated,total,hourly,steadystate (lb/hr) | F48: Total | H48: =IF(OR(E49=0,K49=0), "Pass or Fail?", IF(E49<=K49, "Passed","Failed b/c total estimated emissions must be less than maximum acceptable emissions.")) -> Pass or Fail? | K48: Emax,total, hourly,steadystate (lb/hr)
E49: =SUM(E38:E47) -> 0 | F49: =SUM(F38:F47) -> 0 | K49: =SUM(K38:K47) -> 0
B51: Benzene Hourly Low Pressure Periodic - Impact Review
B52: EPN | C52: Source Name | D52: Which impacts table corresponds to this EPN? | E52: Periodic (low P) hourly estimated emissions for each EPN (lbs/hr) | F52: WREPNx | G52: ESLbenzene, short term (µg/m3) | H52: Distance from emission point to nearest receptor (ft) | I52: Height of emission release point (ft) | J52: GEPNx | K52: Emax,EPNx, hourly,periodic(low pressure) (lb/hr)
F53: =IF(E53="","", E53/$E$64) ->  | G53: =$D$33 -> 170 | K53: =IF(J53="","", F53*G53/J53) -> 
G54: =$D$33 -> 170 | K54: =IF(J54="","", F54*G54/J54) -> 
G55: 170
G56: 170
G57: 170
G58: 170
G59: 170
G60: 170 | K60: =IF(J60="","", F60*G60/J60) -> 
G61: 170 | K61: =IF(J61="","", F61*G61/J61) -> 
G62: 170 | K62: =IF(J62="","", F62*G62/J62) -> 
E63: Eestimated,total,hourly,periodic (low pressure) (lb/hr) | F63: Total | H63: =IF(OR(E64=0,K64=0), "Pass or Fail?", IF(E64<=K64, "Passed","Failed b/c total estimated emissions must be less than maximum acceptable emissions.")) -> Pass or Fail? | K63: Emax,total, hourly,periodic(low pressure) (lb/hr)
E64: =SUM(E53:E62) -> 0 | F64: =SUM(F53:F62) -> 0 | K64: =SUM(K53:K62) -> 0
B66: Benzene Hourly High Pressure Periodic - Impact Review
B67: EPN | C67: Source Name | D67: Which impacts table corresponds to this EPN? | E67: Periodic (high P) hourly estimated emissions for each EPN (lbs/hr) | F67: WREPNx | G67: ESLbenzene, short term (µg/m3) | H67: Distance from emission point to nearest receptor (ft) | I67: Height of emission release point (ft) | J67: GEPNx | K67: Emax,EPNx, hourly,periodic(high pressure) (lb/hr)
F68: =IF(E68="","", E68/$E$79) ->  | G68: =$D$33 -> 170 | K68: =IF(J68="","", F68*G68/J68) -> 
G69: 170
G70: 170
G71: 170
G72: 170
G73: 170
G74: 170
G75: 170
G76: 170
G77: 170
E78: Eestimated,total,hourly,periodic (high pressure) (lb/hr) | F78: Total | H78: =IF(OR(E79=0,K79=0), "Pass or Fail?", IF(E79<=K79, "Passed","Failed b/c total estimated emissions must be less than maximum acceptable emissions.")) -> Pass or Fail? | K78: Emax,total, hourly,periodic(high pressure) (lb/hr)
E79: =SUM(E68:E77) -> 0 | F79: =SUM(F68:F77) -> 0 | K79: =SUM(K68:K77) -> 0
B81: Benzene Annual - Impact Review
B82: EPN | C82: Source Name | D82: What amount of time is this source is emitting? (hrs/yr) | E82: Which impacts table corresponds to this EPN? | F82: Annual estimated emissions for each EPN (tons/yr) | G82: WREPNx | H82: ESLbenzene, long term (µg/m3) | I82: Distance from emission point to nearest receptor (ft) | J82: Height of emission release point (ft) | K82: GEPNx | L82: Emax,EPNx, annual (tons/yr)
G83: =IF(F83="","", F83/$F$94) ->  | H83: =$D$34 -> 4.5 | L83: =IF(K83="","", (D83/2000)*G83*H83/(0.08*K83)) -> 
G84: =IF(F84="","", F84/$F$94) ->  | H84: =$D$34 -> 4.5 | L84: =IF(K84="","", (D84/2000)*G84*H84/(0.08*K84)) -> 
H85: 4.5
H86: 4.5
H87: 4.5
H88: 4.5
H89: 4.5
H90: 4.5
H91: 4.5
G92: =IF(F92="","", F92/$F$94) ->  | H92: =$D$34 -> 4.5 | L92: =IF(K92="","", (D92/2000)*G92*H92/(0.08*K92)) -> 
F93: Eestimated,total,annual (tons/yr) | G93: Total | I93: =IF(OR(F94=0,L94=0), "Pass or Fail?", IF(F94<=L94, "Passed","Failed b/c total estimated emissions must be less than maximum acceptable emissions.")) -> Pass or Fail? | L93: Emax,total, annual (tons/yr)
F94: =SUM(F83:F92) -> 0 | G94: =SUM(G83:G92) -> 0 | L94: =SUM(L83:L92) -> 0

Sheet H2S Full Impacts (hidden)
C1: ='Facility Information'!C27 -> Company Name
C2: ='Facility Information'!C28 -> Site Name
B4: Full Impacts Review
C6: A full impacts review must be done for all of the following as applicable:
D7: H2S Hourly Steady State
D8: H2S Hourly Low Pressure Periodic
D9: H2S Hourly High Pressure Periodic
C12: The maximum acceptable emission rate can be found on an hourly steady state basis, hourly periodic (low pressure) basis, hourly periodic (high pressure) basis, and annual basis, which can be expressed as Emax,hourly,steadystate, Emax,hourly,periodic(low pressure), Emax,hourly,periodic(high pressure), and Emax,annual, respectively.
C14: The equations for Emax,hourly and Emax,annual are:
C22: The emissions must include all emissions in the impacts scope, which are contained in the Impacts Scope Emissions Totals box on the Impacts Scope Tab.
C25: Impacts review is passed when the total estimated emission rate is less than the calculated maximum acceptable emission rate Eestimated,total ≤ Emax,total.
C27: The shortest distance from any emitting source to the nearest property line can be used for each emitting source or the actual distance from the source to the nearest property line.
C29: The appropriate G factor can be found on the impact chart tabs based on the distance from the emission point to the nearest property line, the height of the emission release point, and the type of emission point.
C31: To change the number of rows in the charts below, click on the button to the right of the chart that says "Set Row Count" and it will ask how many rows you need. You can press the button more than once to add or delete more rows; the rows will be added or deleted starting at the bottom.
C33: H2S Hourly SAAQS (µg/m3): | D33: 108
B35: H2S Hourly Steady State - Impact Review
B36: EPN | C36: Source Name | D36: Which impacts table corresponds to this EPN? | E36: Steady state hourly estimated emissions for each EPN (lbs/hr) | F36: WREPNx | G36: AAQSH2S, hourly (µg/m3) | H36: Distance from emission point to nearest property line (ft) | I36: Height of emission release point (ft) | J36: GEPNx | K36: Emax,EPNx, hourly,steadystate (lb/hr)
F37: =IF(E37="","", E37/$E$48) ->  | G37: =$D$33 -> 108 | K37: =IF(J37="","", F37*G37/J37) -> 
G38: =$D$33 -> 108
G39: 108
G40: 108
G41: 108
G42: 108
G43: 108
G44: 108
G45: 108
G46: 108 | K46: =IF(J46="","", F46*G46/J46) -> 
E47: Eestimated,total,hourly,steadystate (lb/hr) | F47: Total | H47: =IF(OR(E48=0,K48=0), "Pass or Fail?", IF(E48<=K48, "Passed","Failed b/c total estimated emissions must be less than maximum acceptable emissions.")) -> Pass or Fail? | K47: Emax,total, hourly,steadystate (lb/hr)
E48: =SUM(E37:E46) -> 0 | F48: =SUM(F37:F46) -> 0 | K48: =SUM(K37:K46) -> 0
B50: H2S Hourly Low Pressure Periodic - Impact Review
B51: EPN | C51: Source Name | D51: Which impacts table corresponds to this EPN? | E51: Periodic (low P) hourly estimated emissions for each EPN (lbs/hr) | F51: WREPNx | G51: AAQSH2S, hourly (µg/m3) | H51: Distance from emission point to nearest property line (ft) | I51: Height of emission release point (ft) | J51: GEPNx | K51: Emax,EPNx, hourly,periodic(low pressure) (lb/hr)
F52: =IF(E52="","", E52/$E$63) ->  | G52: =$D$33 -> 108 | K52: =IF(J52="","", F52*G52/J52) -> 
F53: =IF(E53="","", E53/$E$48) ->  | G53: 108
G54: 108
G55: 108
G56: 108
G57: 108
G58: 108
G59: 108
G60: 108
G61: 108
E62: Eestimated,total,hourly,periodic (low pressure) (lb/hr) | F62: Total | H62: =IF(OR(E63=0,K63=0), "Pass or Fail?", IF(E63<=K63, "Passed","Failed b/c total estimated emissions must be less than maximum acceptable emissions.")) -> Pass or Fail? | K62: Emax,total, hourly,periodic(low pressure) (lb/hr)
E63: =SUM(E52:E61) -> 0 | F63: =SUM(F52:F61) -> 0 | K63: =SUM(K52:K61) -> 0
B65: H2S Hourly High Pressure Periodic - Impact Review
B66: EPN | C66: Source Name | D66: Which impacts table corresponds to this EPN? | E66: Periodic (high P) hourly estimated emissions for each EPN (lbs/hr) | F66: WREPNx | G66: AAQSH2S, hourly (µg/m3) | H66: Distance from emission point to nearest property line (ft) | I66: Height of emission release point (ft) | J66: GEPNx | K66: Emax,EPNx, hourly,periodic(high pressure) (lb/hr)
F67: =IF(E67="","", E67/$E$78) ->  | G67: =$D$33 -> 108 | K67: =IF(J67="","", F67*G67/J67) -> 
G68: =$D$33 -> 108 | K68: =IF(J68="","", F68*G68/J68) -> 
G69: 108
G70: 108
G71: 108
G72: 108
G73: 108
G74: 108
G75: 108
G76: 108
E77: Eestimated,total,hourly,periodic (high pressure) (lb/hr) | F77: Total | H77: =IF(OR(E78=0,K78=0), "Pass or Fail?", IF(E78<=K78, "Passed","Failed b/c total estimated emissions must be less than maximum acceptable emissions.")) -> Pass or Fail? | K77: Emax,total, hourly,periodic(high pressure) (lb/hr)
E78: =SUM(E67:E76) -> 0 | F78: =SUM(F67:F76) -> 0 | K78: =SUM(K67:K76) -> 0

Sheet SO2 Full Impacts (hidden)
C1: ='Facility Information'!C27 -> Company Name
C2: ='Facility Information'!C28 -> Site Name
B4: Full Impacts Review
C6: A full impacts review must be done for all of the following as applicable:
D7: SO2 Hourly Steady State
D8: SO2 Hourly Low Pressure Periodic
D9: SO2 Hourly High Pressure Periodic
C12: The maximum acceptable emission rate can be found on an hourly steady state basis, hourly periodic (low pressure) basis, hourly periodic (high pressure) basis, and annual basis, which can be expressed as Emax,hourly,steadystate, Emax,hourly,periodic(low pressure), Emax,hourly,periodic(high pressure), and Emax,annual, respectively.
C14: The equations for Emax,hourly and Emax,annual are:
C22: The emissions must include all emissions in the impacts scope, which are contained in the Impacts Scope Emissions Totals box on the Impacts Scope Tab.
C25: Impacts review is passed when the total estimated emission rate is less than the calculated maximum acceptable emission rate Eestimated,total ≤ Emax,total.
C27: The shortest distance from any emitting source to the nearest property line can be used for each emitting source or the actual distance from the source to the nearest property line.
C29: The appropriate G factor can be found on the impact chart tabs based on the distance from the emission point to the nearest property line, the height of the emission release point, and the type of emission point.
C31: To change the number of rows in the charts below, click on the button to the right of the chart that says "Set Row Count" and it will ask how many rows you need. You can press the button more than once to add or delete more rows; the rows will be added or deleted starting at the bottom.
C33: SO2 Hourly NAAQS (µg/m3): | D33: 196
B35: SO2 Hourly Steady State - Impact Review
B36: EPN | C36: Source Name | D36: Which impacts table corresponds to this EPN? | E36: Steady state hourly estimated emissions for each EPN (lbs/hr) | F36: WREPNx | G36: AAQSSO2, hourly (µg/m3) | H36: Distance from emission point to nearest property line (ft) | I36: Height of emission release point (ft) | J36: GEPNx | K36: Emax,EPNx, hourly,steadystate (lb/hr)
F37: =IF(E37="","", E37/$E$48) ->  | G37: =$D$33 -> 196 | K37: =IF(J37="","", F37*G37/J37) -> 
F38: =IF(E38="","", E38/$E$48) ->  | G38: =$D$33 -> 196 | K38: =IF(J38="","", F38*G38/J38) -> 
G39: 196
F40: =IF(E40="","", E40/$E$48) ->  | G40: 196 | K40: =IF(J40="","", F40*G40/J40) -> 
G41: 196
G42: 196
G43: 196
G44: 196
G45: 196
G46: 196
E47: Eestimated,total,hourly,steadystate (lb/hr) | F47: Total | H47: =IF(OR(E48=0,K48=0), "Pass or Fail?", IF(E48<=K48, "Passed","Failed b/c total estimated emissions must be less than maximum acceptable emissions.")) -> Pass or Fail? | K47: Emax,total, hourly,steadystate (lb/hr)
E48: =SUM(E37:E46) -> 0 | F48: =SUM(F37:F46) -> 0 | K48: =SUM(K37:K46) -> 0
B50: SO2 Hourly Low Pressure Periodic - Impact Review
B51: EPN | C51: Source Name | D51: Which impacts table corresponds to this EPN? | E51: Periodic (low P) hourly estimated emissions for each EPN (lbs/hr) | F51: WREPNx | G51: AAQSSO2, hourly (µg/m3) | H51: Distance from emission point to nearest property line (ft) | I51: Height of emission release point (ft) | J51: GEPNx | K51: Emax,EPNx, hourly,periodic(low pressure) (lb/hr)
F52: =IF(E52="","", E52/$E$63) ->  | G52: =$D$33 -> 196 | K52: =IF(J52="","", F52*G52/J52) -> 
F53: =IF(E53="","", E53/$E$48) ->  | G53: =$D$33 -> 196 | K53: =IF(J53="","", F53*G53/J53) -> 
G54: 196
G55: 196
F56: =IF(E56="","", E56/$E$48) ->  | G56: 196 | K56: =IF(J56="","", F56*G56/J56) -> 
F57: =IF(E57="","", E57/$E$48) ->  | G57: 196 | K57: =IF(J57="","", F57*G57/J57) -> 
F58: =IF(E58="","", E58/$E$48) ->  | G58: 196 | K58: =IF(J58="","", F58*G58/J58) -> 
F59: =IF(E59="","", E59/$E$48) ->  | G59: 196 | K59: =IF(J59="","", F59*G59/J59) -> 
F60: =IF(E60="","", E60/$E$48) ->  | G60: 196 | K60: =IF(J60="","", F60*G60/J60) -> 
G61: =$D$33 -> 196
E62: Eestimated,total,hourly,periodic (low pressure) (lb/hr) | F62: Total | H62: =IF(OR(E63=0,K63=0), "Pass or Fail?", IF(E63<=K63, "Passed","Failed b/c total estimated emissions must be less than maximum acceptable emissions.")) -> Pass or Fail? | K62: Emax,total, hourly,periodic(low pressure) (lb/hr)
E63: =SUM(E52:E61) -> 0 | F63: =SUM(F52:F61) -> 0 | K63: =SUM(K52:K61) -> 0
B65: SO2 Hourly High Pressure Periodic - Impact Review
B66: EPN | C66: Source Name | D66: Which impacts table corresponds to this EPN? | E66: Periodic (high P) hourly estimated emissions for each EPN (lbs/hr) | F66: WREPNx | G66: AAQSSO2, hourly (µg/m3) | H66: Distance from emission point to nearest property line (ft) | I66: Height of emission release point (ft) | J66: GEPNx | K66: Emax,EPNx, hourly,periodic(high pressure) (lb/hr)
F67: =IF(E67="","", E67/$E$78) ->  | G67: =$D$33 -> 196 | K67: =IF(J67="","", F67*G67/J67) -> 
G68: =$D$33 -> 196 | K68: =IF(J68="","", F68*G68/J68) -> 
G69: 196
G70: 196
G71: 196 | K71: =IF(J71="","", F71*G71/J71) -> 
G72: 196 | K72: =IF(J72="","", F72*G72/J72) -> 
G73: 196 | K73: =IF(J73="","", F73*G73/J73) -> 
G74: 196 | K74: =IF(J74="","", F74*G74/J74) -> 
G75: 196 | K75: =IF(J75="","", F75*G75/J75) -> 
G76: =$D$33 -> 196
E77: Eestimated,total,hourly,periodic (high pressure) (lb/hr) | F77: Total | H77: =IF(OR(E78=0,K78=0), "Pass or Fail?", IF(E78<=K78, "Passed","Failed b/c total estimated emissions must be less than maximum acceptable emissions.")) -> Pass or Fail? | K77: Emax,total, hourly,periodic(high pressure) (lb/hr)
E78: =SUM(E67:E76) -> 0 | F78: =SUM(F67:F76) -> 0 | K78: =SUM(K67:K76) -> 0

Sheet NO2 Full Impacts (hidden)
C1: ='Facility Information'!C27 -> Company Name
C2: ='Facility Information'!C28 -> Site Name
B4: Full Impacts Review
C6: A full impacts review must be done for all of the following as applicable:
D7: NO2 Hourly Steady State
D8: NO2 Hourly Low Pressure Periodic
D9: NO2 Hourly High Pressure Periodic
C12: The maximum acceptable emission rate can be found on an hourly steady state basis, hourly periodic (low pressure) basis, hourly periodic (high pressure) basis, and annual basis, which can be expressed as Emax,hourly,steadystate, Emax,hourly,periodic(low pressure), Emax,hourly,periodic(high pressure), and Emax,annual, respectively.
C14: The equations for Emax,hourly and Emax,annual are:
C22: The emissions must include all emissions in the impacts scope, which are contained in the Impacts Scope Emissions Totals box on the Impacts Scope Tab.
C25: Impacts review is passed when the total estimated emission rate is less than the calculated maximum acceptable emission rate Eestimated,total ≤ Emax,total.
C27: The shortest distance from any emitting source to the nearest property line can be used for each emitting source or the actual distance from the source to the nearest property line.
C29: The appropriate G factor can be found on the impact chart tabs based on the distance from the emission point to the nearest property line, the height of the emission release point, and the type of emission point.
C31: The following factors may be used to convert NOX emissions to NO2 (factors less than these may not be used): - 0.20 for 4-stroke rich and lean-burn engines - 0.50 for 2-stroke lean-burn engines
C33: To change the number of rows in the charts below, click on the button to the right of the chart that says "Set Row Count" and it will ask how many rows you need. You can press the button more than once to add or delete more rows; the rows will be added or deleted starting at the bottom.
C35: NO2 Hourly NAAQS (µg/m3): | D35: 188
B37: NO2 Hourly Steady State - Impact Review
B38: EPN | C38: Source Name | D38: Which impacts table corresponds to this EPN? | E38: Steady state hourly estimated NO2 emissions for each EPN (lbs/hr) | F38: WREPNx | G38: AAQSNO2, hourly (µg/m3) | H38: Distance from emission point to nearest property line (ft) | I38: Height of emission release point (ft) | J38: GEPNx | K38: Emax,EPNx, hourly,steadystate (lb/hr)
F39: =IF(E39="","", E39/$E$50) ->  | G39: =$D$35 -> 188 | K39: =IF(J39="","", F39*G39/J39) -> 
F40: =IF(E40="","", E40/$E$50) ->  | G40: =$D$35 -> 188 | K40: =IF(J40="","", F40*G40/J40) -> 
G41: 188
F42: =IF(E42="","", E42/$E$50) ->  | G42: 188 | K42: =IF(J42="","", F42*G42/J42) -> 
G43: 188 | K43: =IF(J43="","", F43*G43/J43) -> 
G44: 188
G45: 188
G46: 188
G47: 188
G48: 188
E49: Eestimated,total,hourly,steadystate (lb/hr) | F49: Total | H49: =IF(OR(E50=0,K50=0), "Pass or Fail?", IF(E50<=K50, "Passed","Failed b/c total estimated emissions must be less than maximum acceptable emissions.")) -> Pass or Fail? | K49: Emax,total, hourly,steadystate (lb/hr)
E50: =SUM(E39:E48) -> 0 | F50: =SUM(F39:F48) -> 0 | K50: =SUM(K39:K48) -> 0
B52: NO2 Hourly Low Pressure Periodic - Impact Review
B53: EPN | C53: Source Name | D53: Which impacts table corresponds to this EPN? | E53: Periodic (low P) hourly estimated NO2 emissions for each EPN (lbs/hr) | F53: WREPNx | G53: AAQSNO2, hourly (µg/m3) | H53: Distance from emission point to nearest property line (ft) | I53: Height of emission release point (ft) | J53: GEPNx | K53: Emax,EPNx, hourly,periodic(low pressure) (lb/hr)
F54: =IF(E54="","", E54/$E$65) ->  | G54: =$D$35 -> 188 | K54: =IF(J54="","", F54*G54/J54) -> 
F55: =IF(E55="","", E55/$E$50) ->  | G55: =$D$35 -> 188 | K55: =IF(J55="","", F55*G55/J55) -> 
G56: 188
G57: 188
F58: =IF(E58="","", E58/$E$50) ->  | G58: 188 | K58: =IF(J58="","", F58*G58/J58) -> 
F59: =IF(E59="","", E59/$E$50) ->  | G59: 188 | K59: =IF(J59="","", F59*G59/J59) -> 
F60: =IF(E60="","", E60/$E$50) ->  | G60: 188 | K60: =IF(J60="","", F60*G60/J60) -> 
F61: =IF(E61="","", E61/$E$50) ->  | G61: 188 | K61: =IF(J61="","", F61*G61/J61) -> 
F62: =IF(E62="","", E62/$E$50) ->  | G62: 188 | K62: =IF(J62="","", F62*G62/J62) -> 
G63: 188
E64: Eestimated,total,hourly,periodic (low pressure) (lb/hr) | F64: Total | H64: =IF(OR(E65=0,K65=0), "Pass or Fail?", IF(E65<=K65, "Passed","Failed b/c total estimated emissions must be less than maximum acceptable emissions.")) -> Pass or Fail? | K64: Emax,total, hourly,periodic(low pressure) (lb/hr)
E65: =SUM(E54:E63) -> 0 | F65: =SUM(F54:F63) -> 0 | K65: =SUM(K54:K63) -> 0
B67: NO2 Hourly High Pressure Periodic - Impact Review
B68: EPN | C68: Source Name | D68: Which impacts table corresponds to this EPN? | E68: Periodic (high P) hourly estimated NO2 emissions for each EPN (lbs/hr) | F68: WREPNx | G68: AAQSNO2, hourly (µg/m3) | H68: Distance from emission point to nearest property line (ft) | I68: Height of emission release point (ft) | J68: GEPNx | K68: Emax,EPNx, hourly,periodic(high pressure) (lb/hr)
F69: =IF(E69="","", E69/$E$80) ->  | G69: =$D$35 -> 188 | K69: =IF(J69="","", F69*G69/J69) -> 
G70: =$D$35 -> 188
G71: 188
G72: 188
G73: 188
G74: 188
G75: 188
G76: 188
G77: 188
G78: =$D$35 -> 188
E79: Eestimated,total,hourly,periodic (high pressure) (lb/hr) | F79: Total | H79: =IF(OR(E80=0,K80=0), "Pass or Fail?", IF(E80<=K80, "Passed","Failed b/c total estimated emissions must be less than maximum acceptable emissions.")) -> Pass or Fail? | K79: Emax,total, hourly,periodic(high pressure) (lb/hr)
E80: =SUM(E69:E78) -> 0 | F80: =SUM(F69:F78) -> 0 | K80: =SUM(K69:K78) -> 0

Sheet Fugitives and Vents (hidden)
O1: ='Facility Information'!C27 -> Company Name
A2: hide | B2: hide | C2: hide | D2: hide | E2: hide | F2: hide | G2: hide | H2: hide | I2: hide | J2: hide | K2: hide | L2: hide | M2: hide | O2: ='Facility Information'!C28 -> Site Name
U3: Oil and gas site emissions were modeled with the disperion modeling program Industrial Source Complex Short Term 3 (ISCST3) (Version 02035) as unitized maximum concentrations. | AQ3: The table below and tables to the right show the emission rates of specific pollutants determined to be protective of human health and welfare and meet applicable national and state ambient air quality standards (NAAQS and SAAQS) at the listed release height and distance from the emission source to the receptor or property line.
U5: The table below shows the generic (not pollutant specific) disperion modeling results. | AQ5: The emission rates are based on the dispersion modeling results and either the Effects Screening Levels (ESLs) or ambient air quality standards applicable to each specific pollutant.
U7: Notes for chart below:
U9: Ghourly*0.08=Gannual
U10: Ghourly*0.4=G24hr
U12: 0.08 and 0.4 have no units, G always has units of (µg/m³)/(lb/hr) even after being multplied by 0.08 and 0.4
U14: Table below has Ghourly
U16: Fugitives and Process Vents | AF16: Fugitives and Process Vents | AQ16: Fugitives and Process Vents | BB16: Fugitives and Process Vents | BM16: Fugitives and Process Vents | BX16: Fugitives and Process Vents | CI16: Fugitives and Process Vents | CT16: Fugitives and Process Vents | DE16: Fugitives and Process Vents | DP16: Fugitives and Process Vents | EA16: Fugitives and Process Vents | EL16: Fugitives and Process Vents | EW16: Fugitives and Process Vents | FH16: Fugitives and Process Vents | FS16: Fugitives and Process Vents
U17: Generic Modeling Results | X17: Fugitives Adjusted with Modeling Factor | AF17: Generic Modeling Results | AQ17: Benzene hourly | AS17: short term ESL (µg/m3): | AT17: 170 | BB17: Benzene annual | BD17: long term ESL (µg/m3): | BE17: 4.5 | BM17: Crude Oil hourly | BO17: short term ESL (µg/m3): | BP17: 3500 | BX17: Condensate hourly | BZ17: short term ESL (µg/m3): | CA17: 3500 | CI17: Natural Gas hourly | CK17: short term ESL (µg/m3): | CL17: 18000 | CT17: H2S hourly | CV17: 1-hr SAAQS (µg/m3): | CW17: 108 | DE17: H2S annual | DG17: converted from hourly based on 8,760 hrs/yr | DP17: Toluene hourly | DR17: short term ESL (µg/m3): | DS17: 640 | EA17: Toluene annual | EC17: long term ESL (µg/m3): | ED17: 1200 | EL17: Xylene hourly | EN17: short term ESL (µg/m3): | EO17: 350 | EW17: Xylene annual | EY17: long term ESL (µg/m3): | EZ17: 180 | FH17: Ethylbenzene hourly | FJ17: short term ESL (µg/m3): | FK17: 2000 | FS17: Ethylbenz. annual | FU17: long term ESL (µg/m3): | FV17: 200
U18: Distance | V18: Fugitive 3ft height | W18: Loading 10 ft height | X18: Tank Hatch 20 ft height | Y18: Process Vessel 10 ft Vent | Z18: Process Vessel 20 ft Vent | AA18: Process Vessel 30 ft Vent | AB18: Process Vessel 40 ft Vent | AC18: Process Vessel 50 ft Vent | AD18: Process Vessel 60 ft Vent | AF18: Distance | AG18: Fugitive 3ft height | AH18: Loading 10 ft height | AI18: Tank Hatch 20 ft height | AJ18: Process Vessel 10 ft Vent | AK18: Process Vessel 20 ft Vent | AL18: Process Vessel 30 ft Vent | AM18: Process Vessel 40 ft Vent | AN18: Process Vessel 50 ft Vent | AO18: Process Vessel 60 ft Vent | AQ18: Distance | AR18: Fugitive 3ft height | AS18: Loading 10 ft height | AT18: Tank Hatch 20 ft height | AU18: Process Vessel 10 ft Vent | AV18: Process Vessel 20 ft Vent | AW18: Process Vessel 30 ft Vent | AX18: Process Vessel 40 ft Vent | AY18: Process Vessel 50 ft Vent | AZ18: Process Vessel 60 ft Vent | BB18: Distance | BC18: Fugitive 3ft height | BD18: Loading 10 ft height | BE18: Tank Hatch 20 ft height | BF18: Process Vessel 10 ft Vent | BG18: Process Vessel 20 ft Vent | BH18: Process Vessel 30 ft Vent | BI18: Process Vessel 40 ft Vent | BJ18: Process Vessel 50 ft Vent | BK18: Process Vessel 60 ft Vent | BM18: Distance | BN18: Fugitive 3ft height | BO18: Loading 10 ft height | BP18: Tank Hatch 20 ft height | BQ18: Process Vessel 10 ft Vent | BR18: Process Vessel 20 ft Vent | BS18: Process Vessel 30 ft Vent | BT18: Process Vessel 40 ft Vent | BU18: Process Vessel 50 ft Vent | BV18: Process Vessel 60 ft Vent | BX18: Distance | BY18: Fugitive 3ft height | BZ18: Loading 10 ft height | CA18: Tank Hatch 20 ft height | CB18: Process Vessel 10 ft Vent | CC18: Process Vessel 20 ft Vent | CD18: Process Vessel 30 ft Vent | CE18: Process Vessel 40 ft Vent | CF18: Process Vessel 50 ft Vent | CG18: Process Vessel 60 ft Vent | CI18: Distance | CJ18: Fugitive 3ft height | CK18: Loading 10 ft height | CL18: Tank Hatch 20 ft height | CM18: Process Vessel 10 ft Vent | CN18: Process Vessel 20 ft Vent | CO18: Process Vessel 30 ft Vent | CP18: Process Vessel 40 ft Vent | CQ18: Process Vessel 50 ft Vent | CR18: Process Vessel 60 ft Vent | CT18: Distance | CU18: Fugitive 3ft height | CV18: Loading 10 ft height | CW18: Tank Hatch 20 ft height | CX18: Process Vessel 10 ft Vent | CY18: Process Vessel 20 ft Vent | CZ18: Process Vessel 30 ft Vent | DA18: Process Vessel 40 ft Vent | DB18: Process Vessel 50 ft Vent | DC18: Process Vessel 60 ft Vent | DE18: Distance | DF18: Fugitive 3ft height | DG18: Loading 10 ft height | DH18: Tank Hatch 20 ft height | DI18: Process Vessel 10 ft Vent | DJ18: Process Vessel 20 ft Vent | DK18: Process Vessel 30 ft Vent | DL18: Process Vessel 40 ft Vent | DM18: Process Vessel 50 ft Vent | DN18: Process Vessel 60 ft Vent | DP18: Distance | DQ18: Fugitive 3ft height | DR18: Loading 10 ft height | DS18: Tank Hatch 20 ft height | DT18: Process Vessel 10 ft Vent | DU18: Process Vessel 20 ft Vent | DV18: Process Vessel 30 ft Vent | DW18: Process Vessel 40 ft Vent | DX18: Process Vessel 50 ft Vent | DY18: Process Vessel 60 ft Vent | EA18: Distance | EB18: Fugitive 3ft height | EC18: Loading 10 ft height | ED18: Tank Hatch 20 ft height | EE18: Process Vessel 10 ft Vent | EF18: Process Vessel 20 ft Vent | EG18: Process Vessel 30 ft Vent | EH18: Process Vessel 40 ft Vent | EI18: Process Vessel 50 ft Vent | EJ18: Process Vessel 60 ft Vent | EL18: Distance | EM18: Fugitive 3ft height | EN18: Loading 10 ft height | EO18: Tank Hatch 20 ft height | EP18: Process Vessel 10 ft Vent | EQ18: Process Vessel 20 ft Vent | ER18: Process Vessel 30 ft Vent | ES18: Process Vessel 40 ft Vent | ET18: Process Vessel 50 ft Vent | EU18: Process Vessel 60 ft Vent | EW18: Distance | EX18: Fugitive 3ft height | EY18: Loading 10 ft height | EZ18: Tank Hatch 20 ft height | FA18: Process Vessel 10 ft Vent | FB18: Process Vessel 20 ft Vent | FC18: Process Vessel 30 ft Vent | FD18: Process Vessel 40 ft Vent | FE18: Process Vessel 50 ft Vent | FF18: Process Vessel 60 ft Vent | FH18: Distance | FI18: Fugitive 3ft height | FJ18: Loading 10 ft height | FK18: Tank Hatch 20 ft height | FL18: Process Vessel 10 ft Vent | FM18: Process Vessel 20 ft Vent | FN18: Process Vessel 30 ft Vent | FO18: Process Vessel 40 ft Vent | FP18: Process Vessel 50 ft Vent | FQ18: Process Vessel 60 ft Vent | FS18: Distance | FT18: Fugitive 3ft height | FU18: Loading 10 ft height | FV18: Tank Hatch 20 ft height | FW18: Process Vessel 10 ft Vent | FX18: Process Vessel 20 ft Vent | FY18: Process Vessel 30 ft Vent | FZ18: Process Vessel 40 ft Vent | GA18: Process Vessel 50 ft Vent | GB18: Process Vessel 60 ft Vent
U19: (ft) | V19: Ghourly (µg/m³)/(lb/hr) | W19: Ghourly (µg/m³)/(lb/hr) | X19: Ghourly (µg/m³)/(lb/hr) | Y19: Ghourly (µg/m³)/(lb/hr) | Z19: Ghourly (µg/m³)/(lb/hr) | AA19: Ghourly (µg/m³)/(lb/hr) | AB19: Ghourly (µg/m³)/(lb/hr) | AC19: Ghourly (µg/m³)/(lb/hr) | AD19: Ghourly (µg/m³)/(lb/hr) | AF19: (ft) | AG19: Ghourly (µg/m³)/(lb/hr) | AH19: Ghourly (µg/m³)/(lb/hr) | AI19: Ghourly (µg/m³)/(lb/hr) | AJ19: Ghourly (µg/m³)/(lb/hr) | AK19: Ghourly (µg/m³)/(lb/hr) | AL19: Ghourly (µg/m³)/(lb/hr) | AM19: Ghourly (µg/m³)/(lb/hr) | AN19: Ghourly (µg/m³)/(lb/hr) | AO19: Ghourly (µg/m³)/(lb/hr) | AQ19: (ft) | AR19: (lb/hr) | AS19: (lb/hr) | AT19: (lb/hr) | AU19: (lb/hr) | AV19: (lb/hr) | AW19: (lb/hr) | AX19: (lb/hr) | AY19: (lb/hr) | AZ19: (lb/hr) | BB19: (ft) | BC19: (tpy) | BD19: (tpy) | BE19: (tpy) | BF19: (tpy) | BG19: (tpy) | BH19: (tpy) | BI19: (tpy) | BJ19: (tpy) | BK19: (tpy) | BM19: (ft) | BN19: (lb/hr) | BO19: (lb/hr) | BP19: (lb/hr) | BQ19: (lb/hr) | BR19: (lb/hr) | BS19: (lb/hr) | BT19: (lb/hr) | BU19: (lb/hr) | BV19: (lb/hr) | BX19: (ft) | BY19: (lb/hr) | BZ19: (lb/hr) | CA19: (lb/hr) | CB19: (lb/hr) | CC19: (lb/hr) | CD19: (lb/hr) | CE19: (lb/hr) | CF19: (lb/hr) | CG19: (lb/hr) | CI19: (ft) | CJ19: (lb/hr) | CK19: (lb/hr) | CL19: (lb/hr) | CM19: (lb/hr) | CN19: (lb/hr) | CO19: (lb/hr) | CP19: (lb/hr) | CQ19: (lb/hr) | CR19: (lb/hr) | CT19: (ft) | CU19: (lb/hr) | CV19: (lb/hr) | CW19: (lb/hr) | CX19: (lb/hr) | CY19: (lb/hr) | CZ19: (lb/hr) | DA19: (lb/hr) | DB19: (lb/hr) | DC19: (lb/hr) | DE19: (ft) | DF19: (tpy) | DG19: (tpy) | DH19: (tpy) | DI19: (tpy) | DJ19: (tpy) | DK19: (tpy) | DL19: (tpy) | DM19: (tpy) | DN19: (tpy) | DP19: (ft) | DQ19: (lb/hr) | DR19: (lb/hr) | DS19: (lb/hr) | DT19: (lb/hr) | DU19: (lb/hr) | DV19: (lb/hr) | DW19: (lb/hr) | DX19: (lb/hr) | DY19: (lb/hr) | EA19: (ft) | EB19: (tpy) | EC19: (tpy) | ED19: (tpy) | EE19: (tpy) | EF19: (tpy) | EG19: (tpy) | EH19: (tpy) | EI19: (tpy) | EJ19: (tpy) | EL19: (ft) | EM19: (lb/hr) | EN19: (lb/hr) | EO19: (lb/hr) | EP19: (lb/hr) | EQ19: (lb/hr) | ER19: (lb/hr) | ES19: (lb/hr) | ET19: (lb/hr) | EU19: (lb/hr) | EW19: (ft) | EX19: (tpy) | EY19: (tpy) | EZ19: (tpy) | FA19: (tpy) | FB19: (tpy) | FC19: (tpy) | FD19: (tpy) | FE19: (tpy) | FF19: (tpy) | FH19: (ft) | FI19: (lb/hr) | FJ19: (lb/hr) | FK19: (lb/hr) | FL19: (lb/hr) | FM19: (lb/hr) | FN19: (lb/hr) | FO19: (lb/hr) | FP19: (lb/hr) | FQ19: (lb/hr) | FS19: (ft) | FT19: (tpy) | FU19: (tpy) | FV19: (tpy) | FW19: (tpy) | FX19: (tpy) | FY19: (tpy) | FZ19: (tpy) | GA19: (tpy) | GB19: (tpy)
